Workbook

Sheet 使い方
A1: 年齢調整・疾病別医療費分析（細小（８２）分類）ツールの使い方（Version 1.1）
A2: （１）ＫＤＢの「年齢調整・疾病別医療費分析（細小（８２）分類）」の画面から、ＣＳＶファイルを出力・保存する。
A3: （２）（１）のCSVファイルをエクセルで開く。
A4: （３）（２）で開いたCSVファイルの内容（データのある範囲だけ※）を、このツールの「CSVデータ」シートにコピー＆ペーストする。
A5: （４）「出力票」シートの左上にある「計算開始」をクリックして数秒待つと、計算結果が表示されるので、印刷する。※※
A7: ※A1～AE25203 （この範囲と一致していない場合はＫＤＢのバージョンが違うので使えません）
A8: ※※「集計対象年齢」の下限（≧0）と上限（≦74）を指定することも出来ます。
A9: 見本データは全て仮想値です。
A10: 計算が極端に遅くなった場合には、ファイルを開き直してください。
A12: このエクセルファイルは、マクロを使っています。 セキュリティの警告でマクロが無効にされた場合は、コンテンツの有効化を行って下さい。
A14: ●本ツールの解説 高齢者ほど様々な疾患に罹患しやすく、医療費が高額になることはよく知られています。Ａ地区（＝自市）よりもＢ地区（＝比較対象）の方が一人あたり医療費が高額だったとしても、Ｂ地区の方が高齢者の割合が多ければ、Ａ地区よりもＢ地区の方が（高齢者が多いので）一人あたり医療費は高額であたりまえとも考えられるので、医療費からみた健康状態に地区間の差があるかどうか判断できません。また、人口が多ければ当然、医療費の総額も高額になります。 そこで、Ｂ地区（比較対象）の年齢別人口構成がＡ地区（自市）と同一だった場合に期待される医療費の総額を計算し、Ａ市（自市）の医療費の総額と比較すれば、年齢の影響を補正したうえで医療費から見た両地区の健康状態を比較することができます。本ツールでは、年齢調整した医療費のことを「標準化医療費」と呼びます（Ａ地区の医療費は元の値のままです）。Ａ地区とＢ地区の「標準化医療費の比」（地域差指数とも言います）を計算すれば、年齢の影響を補正したうえでＡ地区（自市）で何倍医療費がかかっているかを調べることができます。また、Ａ地区とＢ地区の「標準化医療費の差」を計算すれば、年齢の影響を補正したうえでＡ地区（自市）はいくら医療費が多くかかっているかを調べることができます。
A16: 修正履歴
A17: Ver.1.1 2016/9/21 集計対象年齢を指定できるようにしました。
A18: Ver.0.6 2015/11/1

Sheet CSVデータ
A1: レコード種別 | B1: 保険者番号 | C1: 保険者名 | D1: 地区名 | E1: 作成年月
A2: 共通部 | B2: 999999 | C2: サンプル市 | E2: H26年度（累計）
A3: レコード種別 | B3: 年齢 | C3: 性別 | D3: 入外区分 | E3: 細小分類別疾患 | F3: 疾病別レセプト件数（保険者（地区）） | G3: 被保険者数（保険者（地区）） | H3: 千人当たりレセプト件数（保険者（地区）） | I3: 総点数（保険者（地区）） | J3: １件当たり点数（保険者（地区）） | K3: 疾病別レセプト件数（県） | L3: 被保険者数（県） | M3: 千人当たりレセプト件数（県） | N3: 総点数（県）（合計） | O3: １件当たり点数（県） | P3: 保険者数（県） | Q3: １保険者当たり総点数（県） | R3: 疾病別レセプト件数（同規模） | S3: 被保険者数（同規模） | T3: 千人当たりレセプト件数（同規模） | U3: 総点数（同規模）（合計） | V3: １件当たり点数（同規模） | W3: 保険者数（同規模） | X3: １保険者当たり総点数（同規模） | Y3: 疾病別レセプト件数（国） | Z3: 被保険者数（国） | AA3: 千人当たりレセプト件数（国） | AB3: 総点数（国）（合計） | AC3: １件当たり点数（国） | AD3: 保険者数（国） | AE3: １保険者当たり総点数（国）
A4: 明細部 | B4: 0 | C4: 男 | D4: 入院 | E4: 脳梗塞 | F4: 0 | G4: 77 | H4: 0 | I4: 0 | J4: 0 | K4: 0 | L4: 7634 | M4: 0 | N4: 0 | O4: 0 | P4: 88 | Q4: 0 | R4: 0 | S4: 15024 | T4: 0 | U4: 0 | V4: 0 | W4: 340 | X4: 0 | Y4: 0 | Z4: 102331 | AA4: 0 | AB4: 0 | AC4: 0 | AD4: 2377 | AE4: 0
A5: 明細部 | B5: 0 | C5: 男 | D5: 入院 | E5: クモ膜下出血 | F5: 0 | G5: 77 | H5: 0 | I5: 0 | J5: 0 | K5: 0 | L5: 7634 | M5: 0 | N5: 0 | O5: 0 | P5: 88 | Q5: 0 | R5: 0 | S5: 15024 | T5: 0 | U5: 0 | V5: 0 | W5: 340 | X5: 0 | Y5: 0 | Z5: 102331 | AA5: 0 | AB5: 0 | AC5: 0 | AD5: 2377 | AE5: 0
A6: 明細部 | B6: 0 | C6: 男 | D6: 入院 | E6: 脳出血 | F6: 0 | G6: 77 | H6: 0 | I6: 0 | J6: 0 | K6: 0 | L6: 7634 | M6: 0 | N6: 0 | O6: 0 | P6: 88 | Q6: 0 | R6: 0 | S6: 15024 | T6: 0 | U6: 0 | V6: 0 | W6: 340 | X6: 0 | Y6: 0 | Z6: 102331 | AA6: 0 | AB6: 0 | AC6: 0 | AD6: 2377 | AE6: 0
A7: 明細部 | B7: 0 | C7: 男 | D7: 入院 | E7: 一過性脳虚血発作 | F7: 0 | G7: 77 | H7: 0 | I7: 0 | J7: 0 | K7: 0 | L7: 7634 | M7: 0 | N7: 0 | O7: 0 | P7: 88 | Q7: 0 | R7: 0 | S7: 15024 | T7: 0 | U7: 0 | V7: 0 | W7: 340 | X7: 0 | Y7: 0 | Z7: 102331 | AA7: 0 | AB7: 0 | AC7: 0 | AD7: 2377 | AE7: 0
A8: 明細部 | B8: 0 | C8: 男 | D8: 入院 | E8: パーキンソン病 | F8: 0 | G8: 77 | H8: 0 | I8: 0 | J8: 0 | K8: 0 | L8: 7634 | M8: 0 | N8: 0 | O8: 0 | P8: 88 | Q8: 0 | R8: 0 | S8: 15024 | T8: 0 | U8: 0 | V8: 0 | W8: 340 | X8: 0 | Y8: 0 | Z8: 102331 | AA8: 0 | AB8: 0 | AC8: 0 | AD8: 2377 | AE8: 0
A9: 明細部 | B9: 0 | C9: 男 | D9: 入院 | E9: 脳腫瘍 | F9: 0 | G9: 77 | H9: 0 | I9: 0 | J9: 0 | K9: 0 | L9: 7634 | M9: 0 | N9: 0 | O9: 0 | P9: 88 | Q9: 0 | R9: 0 | S9: 15024 | T9: 0 | U9: 0 | V9: 0 | W9: 340 | X9: 0 | Y9: 0 | Z9: 102331 | AA9: 0 | AB9: 0 | AC9: 0 | AD9: 2377 | AE9: 0
A10: 明細部 | B10: 0 | C10: 男 | D10: 入院 | E10: うつ病 | F10: 0 | G10: 77 | H10: 0 | I10: 0 | J10: 0 | K10: 0 | L10: 7634 | M10: 0 | N10: 0 | O10: 0 | P10: 88 | Q10: 0 | R10: 0 | S10: 15024 | T10: 0 | U10: 0 | V10: 0 | W10: 340 | X10: 0 | Y10: 0 | Z10: 102331 | AA10: 0 | AB10: 0 | AC10: 0 | AD10: 2377 | AE10: 0
A11: 明細部 | B11: 0 | C11: 男 | D11: 入院 | E11: 認知症 | F11: 0 | G11: 77 | H11: 0 | I11: 0 | J11: 0 | K11: 0 | L11: 7634 | M11: 0 | N11: 0 | O11: 0 | P11: 88 | Q11: 0 | R11: 0 | S11: 15024 | T11: 0 | U11: 0 | V11: 0 | W11: 340 | X11: 0 | Y11: 0 | Z11: 102331 | AA11: 0 | AB11: 0 | AC11: 0 | AD11: 2377 | AE11: 0
A12: 明細部 | B12: 0 | C12: 男 | D12: 入院 | E12: 統合失調症 | F12: 0 | G12: 77 | H12: 0 | I12: 0 | J12: 0 | K12: 0 | L12: 7634 | M12: 0 | N12: 0 | O12: 0 | P12: 88 | Q12: 0 | R12: 0 | S12: 15024 | T12: 0 | U12: 0 | V12: 0 | W12: 340 | X12: 0 | Y12: 0 | Z12: 102331 | AA12: 0 | AB12: 0 | AC12: 0 | AD12: 2377 | AE12: 0
A13: 明細部 | B13: 0 | C13: 男 | D13: 入院 | E13: 緑内障 | F13: 0 | G13: 77 | H13: 0 | I13: 0 | J13: 0 | K13: 0 | L13: 7634 | M13: 0 | N13: 0 | O13: 0 | P13: 88 | Q13: 0 | R13: 0 | S13: 15024 | T13: 0 | U13: 0 | V13: 0 | W13: 340 | X13: 0 | Y13: 0 | Z13: 102331 | AA13: 0 | AB13: 0 | AC13: 0 | AD13: 2377 | AE13: 0
A14: 明細部 | B14: 0 | C14: 男 | D14: 入院 | E14: 白内障 | F14: 0 | G14: 77 | H14: 0 | I14: 0 | J14: 0 | K14: 0 | L14: 7634 | M14: 0 | N14: 0 | O14: 0 | P14: 88 | Q14: 0 | R14: 0 | S14: 15024 | T14: 0 | U14: 0 | V14: 0 | W14: 340 | X14: 0 | Y14: 0 | Z14: 102331 | AA14: 0 | AB14: 0 | AC14: 0 | AD14: 2377 | AE14: 0
A15: 明細部 | B15: 0 | C15: 男 | D15: 入院 | E15: 糖尿病網膜症 | F15: 0 | G15: 77 | H15: 0 | I15: 0 | J15: 0 | K15: 0 | L15: 7634 | M15: 0 | N15: 0 | O15: 0 | P15: 88 | Q15: 0 | R15: 0 | S15: 15024 | T15: 0 | U15: 0 | V15: 0 | W15: 340 | X15: 0 | Y15: 0 | Z15: 102331 | AA15: 0 | AB15: 0 | AC15: 0 | AD15: 2377 | AE15: 0
A16: 明細部 | B16: 0 | C16: 男 | D16: 入院 | E16: インフルエンザ | F16: 0 | G16: 77 | H16: 0 | I16: 0 | J16: 0 | K16: 0 | L16: 7634 | M16: 0 | N16: 0 | O16: 0 | P16: 88 | Q16: 0 | R16: 0 | S16: 15024 | T16: 0 | U16: 0 | V16: 0 | W16: 340 | X16: 0 | Y16: 0 | Z16: 102331 | AA16: 0 | AB16: 0 | AC16: 0 | AD16: 2377 | AE16: 0
A17: 明細部 | B17: 0 | C17: 男 | D17: 入院 | E17: 肺がん | F17: 0 | G17: 77 | H17: 0 | I17: 0 | J17: 0 | K17: 0 | L17: 7634 | M17: 0 | N17: 0 | O17: 0 | P17: 88 | Q17: 0 | R17: 0 | S17: 15024 | T17: 0 | U17: 0 | V17: 0 | W17: 340 | X17: 0 | Y17: 0 | Z17: 102331 | AA17: 0 | AB17: 0 | AC17: 0 | AD17: 2377 | AE17: 0
A18: 明細部 | B18: 0 | C18: 男 | D18: 入院 | E18: 肺炎 | F18: 0 | G18: 77 | H18: 0 | I18: 0 | J18: 0 | K18: 0 | L18: 7634 | M18: 0 | N18: 0 | O18: 0 | P18: 88 | Q18: 0 | R18: 0 | S18: 15024 | T18: 0 | U18: 0 | V18: 0 | W18: 340 | X18: 0 | Y18: 0 | Z18: 102331 | AA18: 0 | AB18: 0 | AC18: 0 | AD18: 2377 | AE18: 0
A19: 明細部 | B19: 0 | C19: 男 | D19: 入院 | E19: 肺結核・胸膜炎 | F19: 0 | G19: 77 | H19: 0 | I19: 0 | J19: 0 | K19: 0 | L19: 7634 | M19: 0 | N19: 0 | O19: 0 | P19: 88 | Q19: 0 | R19: 0 | S19: 15024 | T19: 0 | U19: 0 | V19: 0 | W19: 340 | X19: 0 | Y19: 0 | Z19: 102331 | AA19: 0 | AB19: 0 | AC19: 0 | AD19: 2377 | AE19: 0
A20: 明細部 | B20: 0 | C20: 男 | D20: 入院 | E20: 気管支喘息 | F20: 0 | G20: 77 | H20: 0 | I20: 0 | J20: 0 | K20: 0 | L20: 7634 | M20: 0 | N20: 0 | O20: 0 | P20: 88 | Q20: 0 | R20: 0 | S20: 15024 | T20: 0 | U20: 0 | V20: 0 | W20: 340 | X20: 0 | Y20: 0 | Z20: 102331 | AA20: 0 | AB20: 0 | AC20: 0 | AD20: 2377 | AE20: 0
A21: 明細部 | B21: 0 | C21: 男 | D21: 入院 | E21: 肺気腫 | F21: 0 | G21: 77 | H21: 0 | I21: 0 | J21: 0 | K21: 0 | L21: 7634 | M21: 0 | N21: 0 | O21: 0 | P21: 88 | Q21: 0 | R21: 0 | S21: 15024 | T21: 0 | U21: 0 | V21: 0 | W21: 340 | X21: 0 | Y21: 0 | Z21: 102331 | AA21: 0 | AB21: 0 | AC21: 0 | AD21: 2377 | AE21: 0
A22: 明細部 | B22: 0 | C22: 男 | D22: 入院 | E22: 慢性閉塞性肺疾患（COPD） | F22: 0 | G22: 77 | H22: 0 | I22: 0 | J22: 0 | K22: 0 | L22: 7634 | M22: 0 | N22: 0 | O22: 0 | P22: 88 | Q22: 0 | R22: 0 | S22: 15024 | T22: 0 | U22: 0 | V22: 0 | W22: 340 | X22: 0 | Y22: 0 | Z22: 102331 | AA22: 0 | AB22: 0 | AC22: 0 | AD22: 2377 | AE22: 0
A23: 明細部 | B23: 0 | C23: 男 | D23: 入院 | E23: 間質性肺炎 | F23: 0 | G23: 77 | H23: 0 | I23: 0 | J23: 0 | K23: 0 | L23: 7634 | M23: 0 | N23: 0 | O23: 0 | P23: 88 | Q23: 0 | R23: 0 | S23: 15024 | T23: 0 | U23: 0 | V23: 0 | W23: 340 | X23: 0 | Y23: 0 | Z23: 102331 | AA23: 0 | AB23: 0 | AC23: 0 | AD23: 2377 | AE23: 0
A24: 明細部 | B24: 0 | C24: 男 | D24: 入院 | E24: 気胸 | F24: 0 | G24: 77 | H24: 0 | I24: 0 | J24: 0 | K24: 0 | L24: 7634 | M24: 0 | N24: 0 | O24: 0 | P24: 88 | Q24: 0 | R24: 0 | S24: 15024 | T24: 0 | U24: 0 | V24: 0 | W24: 340 | X24: 0 | Y24: 0 | Z24: 102331 | AA24: 0 | AB24: 0 | AC24: 0 | AD24: 2377 | AE24: 0
A25: 明細部 | B25: 0 | C25: 男 | D25: 入院 | E25: 睡眠時無呼吸症候群 | F25: 0 | G25: 77 | H25: 0 | I25: 0 | J25: 0 | K25: 0 | L25: 7634 | M25: 0 | N25: 0 | O25: 0 | P25: 88 | Q25: 0 | R25: 0 | S25: 15024 | T25: 0 | U25: 0 | V25: 0 | W25: 340 | X25: 0 | Y25: 0 | Z25: 102331 | AA25: 0 | AB25: 0 | AC25: 0 | AD25: 2377 | AE25: 0
A26: 明細部 | B26: 0 | C26: 男 | D26: 入院 | E26: 非定型（非結核性）抗酸菌症 | F26: 0 | G26: 77 | H26: 0 | I26: 0 | J26: 0 | K26: 0 | L26: 7634 | M26: 0 | N26: 0 | O26: 0 | P26: 88 | Q26: 0 | R26: 0 | S26: 15024 | T26: 0 | U26: 0 | V26: 0 | W26: 340 | X26: 0 | Y26: 0 | Z26: 102331 | AA26: 0 | AB26: 0 | AC26: 0 | AD26: 2377 | AE26: 0
A27: 明細部 | B27: 0 | C27: 男 | D27: 入院 | E27: 脂質異常症 | F27: 0 | G27: 77 | H27: 0 | I27: 0 | J27: 0 | K27: 0 | L27: 7634 | M27: 0 | N27: 0 | O27: 0 | P27: 88 | Q27: 0 | R27: 0 | S27: 15024 | T27: 0 | U27: 0 | V27: 0 | W27: 340 | X27: 0 | Y27: 0 | Z27: 102331 | AA27: 0 | AB27: 0 | AC27: 0 | AD27: 2377 | AE27: 0
A28: 明細部 | B28: 0 | C28: 男 | D28: 入院 | E28: 糖尿病 | F28: 0 | G28: 77 | H28: 0 | I28: 0 | J28: 0 | K28: 0 | L28: 7634 | M28: 0 | N28: 0 | O28: 0 | P28: 88 | Q28: 0 | R28: 0 | S28: 15024 | T28: 0 | U28: 0 | V28: 0 | W28: 340 | X28: 0 | Y28: 0 | Z28: 102331 | AA28: 0 | AB28: 0 | AC28: 0 | AD28: 2377 | AE28: 0
A29: 明細部 | B29: 0 | C29: 男 | D29: 入院 | E29: 痛風・高尿酸血症 | F29: 0 | G29: 77 | H29: 0 | I29: 0 | J29: 0 | K29: 0 | L29: 7634 | M29: 0 | N29: 0 | O29: 0 | P29: 88 | Q29: 0 | R29: 0 | S29: 15024 | T29: 0 | U29: 0 | V29: 0 | W29: 340 | X29: 0 | Y29: 0 | Z29: 102331 | AA29: 0 | AB29: 0 | AC29: 0 | AD29: 2377 | AE29: 0
A30: 明細部 | B30: 0 | C30: 男 | D30: 入院 | E30: 甲状腺機能低下症 | F30: 0 | G30: 77 | H30: 0 | I30: 0 | J30: 0 | K30: 0 | L30: 7634 | M30: 0 | N30: 0 | O30: 0 | P30: 88 | Q30: 0 | R30: 0 | S30: 15024 | T30: 0 | U30: 0 | V30: 0 | W30: 340 | X30: 0 | Y30: 0 | Z30: 102331 | AA30: 0 | AB30: 0 | AC30: 0 | AD30: 2377 | AE30: 0
A31: 明細部 | B31: 0 | C31: 男 | D31: 入院 | E31: 甲状腺機能亢進症 | F31: 0 | G31: 77 | H31: 0 | I31: 0 | J31: 0 | K31: 0 | L31: 7634 | M31: 0 | N31: 0 | O31: 0 | P31: 88 | Q31: 0 | R31: 0 | S31: 15024 | T31: 0 | U31: 0 | V31: 0 | W31: 340 | X31: 0 | Y31: 0 | Z31: 102331 | AA31: 0 | AB31: 0 | AC31: 0 | AD31: 2377 | AE31: 0
A32: 明細部 | B32: 0 | C32: 男 | D32: 入院 | E32: 甲状腺がん | F32: 0 | G32: 77 | H32: 0 | I32: 0 | J32: 0 | K32: 0 | L32: 7634 | M32: 0 | N32: 0 | O32: 0 | P32: 88 | Q32: 0 | R32: 0 | S32: 15024 | T32: 0 | U32: 0 | V32: 0 | W32: 340 | X32: 0 | Y32: 0 | Z32: 102331 | AA32: 0 | AB32: 0 | AC32: 0 | AD32: 2377 | AE32: 0
A33: 明細部 | B33: 0 | C33: 男 | D33: 入院 | E33: 高血圧症 | F33: 0 | G33: 77 | H33: 0 | I33: 0 | J33: 0 | K33: 0 | L33: 7634 | M33: 0 | N33: 0 | O33: 0 | P33: 88 | Q33: 0 | R33: 0 | S33: 15024 | T33: 0 | U33: 0 | V33: 0 | W33: 340 | X33: 0 | Y33: 0 | Z33: 102331 | AA33: 0 | AB33: 0 | AC33: 0 | AD33: 2377 | AE33: 0
A34: 明細部 | B34: 0 | C34: 男 | D34: 入院 | E34: 狭心症 | F34: 0 | G34: 77 | H34: 0 | I34: 0 | J34: 0 | K34: 0 | L34: 7634 | M34: 0 | N34: 0 | O34: 0 | P34: 88 | Q34: 0 | R34: 0 | S34: 15024 | T34: 0 | U34: 0 | V34: 0 | W34: 340 | X34: 0 | Y34: 0 | Z34: 102331 | AA34: 0 | AB34: 0 | AC34: 0 | AD34: 2377 | AE34: 0
A35: 明細部 | B35: 0 | C35: 男 | D35: 入院 | E35: 心筋梗塞 | F35: 0 | G35: 77 | H35: 0 | I35: 0 | J35: 0 | K35: 0 | L35: 7634 | M35: 0 | N35: 0 | O35: 0 | P35: 88 | Q35: 0 | R35: 0 | S35: 15024 | T35: 0 | U35: 0 | V35: 0 | W35: 340 | X35: 0 | Y35: 0 | Z35: 102331 | AA35: 0 | AB35: 0 | AC35: 0 | AD35: 2377 | AE35: 0
A36: 明細部 | B36: 0 | C36: 男 | D36: 入院 | E36: 不整脈 | F36: 0 | G36: 77 | H36: 0 | I36: 0 | J36: 0 | K36: 0 | L36: 7634 | M36: 0 | N36: 0 | O36: 0 | P36: 88 | Q36: 0 | R36: 0 | S36: 15024 | T36: 0 | U36: 0 | V36: 0 | W36: 340 | X36: 0 | Y36: 0 | Z36: 102331 | AA36: 0 | AB36: 0 | AC36: 0 | AD36: 2377 | AE36: 0
A37: 明細部 | B37: 0 | C37: 男 | D37: 入院 | E37: 心臓弁膜症 | F37: 0 | G37: 77 | H37: 0 | I37: 0 | J37: 0 | K37: 0 | L37: 7634 | M37: 0 | N37: 0 | O37: 0 | P37: 88 | Q37: 0 | R37: 0 | S37: 15024 | T37: 0 | U37: 0 | V37: 0 | W37: 340 | X37: 0 | Y37: 0 | Z37: 102331 | AA37: 0 | AB37: 0 | AC37: 0 | AD37: 2377 | AE37: 0
A38: 明細部 | B38: 0 | C38: 男 | D38: 入院 | E38: 心房・心室中隔欠損症 | F38: 0 | G38: 77 | H38: 0 | I38: 0 | J38: 0 | K38: 0 | L38: 7634 | M38: 0 | N38: 0 | O38: 0 | P38: 88 | Q38: 0 | R38: 0 | S38: 15024 | T38: 0 | U38: 0 | V38: 0 | W38: 340 | X38: 0 | Y38: 0 | Z38: 102331 | AA38: 0 | AB38: 0 | AC38: 0 | AD38: 2377 | AE38: 0
A39: 明細部 | B39: 0 | C39: 男 | D39: 入院 | E39: 大動脈瘤 | F39: 0 | G39: 77 | H39: 0 | I39: 0 | J39: 0 | K39: 0 | L39: 7634 | M39: 0 | N39: 0 | O39: 0 | P39: 88 | Q39: 0 | R39: 0 | S39: 15024 | T39: 0 | U39: 0 | V39: 0 | W39: 340 | X39: 0 | Y39: 0 | Z39: 102331 | AA39: 0 | AB39: 0 | AC39: 0 | AD39: 2377 | AE39: 0
A40: 明細部 | B40: 0 | C40: 男 | D40: 入院 | E40: 食道がん | F40: 0 | G40: 77 | H40: 0 | I40: 0 | J40: 0 | K40: 0 | L40: 7634 | M40: 0 | N40: 0 | O40: 0 | P40: 88 | Q40: 0 | R40: 0 | S40: 15024 | T40: 0 | U40: 0 | V40: 0 | W40: 340 | X40: 0 | Y40: 0 | Z40: 102331 | AA40: 0 | AB40: 0 | AC40: 0 | AD40: 2377 | AE40: 0
A41: 明細部 | B41: 0 | C41: 男 | D41: 入院 | E41: 食道静脈瘤 | F41: 0 | G41: 77 | H41: 0 | I41: 0 | J41: 0 | K41: 0 | L41: 7634 | M41: 0 | N41: 0 | O41: 0 | P41: 88 | Q41: 0 | R41: 0 | S41: 15024 | T41: 0 | U41: 0 | V41: 0 | W41: 340 | X41: 0 | Y41: 0 | Z41: 102331 | AA41: 0 | AB41: 0 | AC41: 0 | AD41: 2377 | AE41: 0
A42: 明細部 | B42: 0 | C42: 男 | D42: 入院 | E42: 逆流性食道炎 | F42: 0 | G42: 77 | H42: 0 | I42: 0 | J42: 0 | K42: 0 | L42: 7634 | M42: 0 | N42: 0 | O42: 0 | P42: 88 | Q42: 0 | R42: 0 | S42: 15024 | T42: 0 | U42: 0 | V42: 0 | W42: 340 | X42: 0 | Y42: 0 | Z42: 102331 | AA42: 0 | AB42: 0 | AC42: 0 | AD42: 2377 | AE42: 0
A43: 明細部 | B43: 0 | C43: 男 | D43: 入院 | E43: 胃がん | F43: 0 | G43: 77 | H43: 0 | I43: 0 | J43: 0 | K43: 0 | L43: 7634 | M43: 0 | N43: 0 | O43: 0 | P43: 88 | Q43: 0 | R43: 0 | S43: 15024 | T43: 0 | U43: 0 | V43: 0 | W43: 340 | X43: 0 | Y43: 0 | Z43: 102331 | AA43: 0 | AB43: 0 | AC43: 0 | AD43: 2377 | AE43: 0
A44: 明細部 | B44: 0 | C44: 男 | D44: 入院 | E44: 胃潰瘍 | F44: 0 | G44: 77 | H44: 0 | I44: 0 | J44: 0 | K44: 0 | L44: 7634 | M44: 0 | N44: 0 | O44: 0 | P44: 88 | Q44: 0 | R44: 0 | S44: 15024 | T44: 0 | U44: 0 | V44: 0 | W44: 340 | X44: 0 | Y44: 0 | Z44: 102331 | AA44: 0 | AB44: 0 | AC44: 0 | AD44: 2377 | AE44: 0
A45: 明細部 | B45: 0 | C45: 男 | D45: 入院 | E45: 十二指腸潰瘍 | F45: 0 | G45: 77 | H45: 0 | I45: 0 | J45: 0 | K45: 0 | L45: 7634 | M45: 0 | N45: 0 | O45: 0 | P45: 88 | Q45: 0 | R45: 0 | S45: 15024 | T45: 0 | U45: 0 | V45: 0 | W45: 340 | X45: 0 | Y45: 0 | Z45: 102331 | AA45: 0 | AB45: 0 | AC45: 0 | AD45: 2377 | AE45: 0
A46: 明細部 | B46: 0 | C46: 男 | D46: 入院 | E46: ヘリコバクターピロリ感染症 | F46: 0 | G46: 77 | H46: 0 | I46: 0 | J46: 0 | K46: 0 | L46: 7634 | M46: 0 | N46: 0 | O46: 0 | P46: 88 | Q46: 0 | R46: 0 | S46: 15024 | T46: 0 | U46: 0 | V46: 0 | W46: 340 | X46: 0 | Y46: 0 | Z46: 102331 | AA46: 0 | AB46: 0 | AC46: 0 | AD46: 2377 | AE46: 0
A47: 明細部 | B47: 0 | C47: 男 | D47: 入院 | E47: 大腸がん | F47: 0 | G47: 77 | H47: 0 | I47: 0 | J47: 0 | K47: 0 | L47: 7634 | M47: 0 | N47: 0 | O47: 0 | P47: 88 | Q47: 0 | R47: 0 | S47: 15024 | T47: 0 | U47: 0 | V47: 0 | W47: 340 | X47: 0 | Y47: 0 | Z47: 102331 | AA47: 0 | AB47: 0 | AC47: 0 | AD47: 2377 | AE47: 0
A48: 明細部 | B48: 0 | C48: 男 | D48: 入院 | E48: 大腸ポリープ | F48: 0 | G48: 77 | H48: 0 | I48: 0 | J48: 0 | K48: 0 | L48: 7634 | M48: 0 | N48: 0 | O48: 0 | P48: 88 | Q48: 0 | R48: 0 | S48: 15024 | T48: 0 | U48: 0 | V48: 0 | W48: 340 | X48: 0 | Y48: 0 | Z48: 102331 | AA48: 0 | AB48: 0 | AC48: 0 | AD48: 2377 | AE48: 0
A49: 明細部 | B49: 0 | C49: 男 | D49: 入院 | E49: 虫垂炎 | F49: 0 | G49: 77 | H49: 0 | I49: 0 | J49: 0 | K49: 0 | L49: 7634 | M49: 0 | N49: 0 | O49: 0 | P49: 88 | Q49: 0 | R49: 0 | S49: 15024 | T49: 0 | U49: 0 | V49: 0 | W49: 340 | X49: 0 | Y49: 0 | Z49: 102331 | AA49: 0 | AB49: 0 | AC49: 0 | AD49: 2377 | AE49: 0
A50: 明細部 | B50: 0 | C50: 男 | D50: 入院 | E50: 腸閉塞 | F50: 0 | G50: 77 | H50: 0 | I50: 0 | J50: 0 | K50: 0 | L50: 7634 | M50: 0 | N50: 0 | O50: 0 | P50: 88 | Q50: 0 | R50: 0 | S50: 15024 | T50: 0 | U50: 0 | V50: 0 | W50: 340 | X50: 0 | Y50: 0 | Z50: 102331 | AA50: 0 | AB50: 0 | AC50: 0 | AD50: 2377 | AE50: 0
A51: 明細部 | B51: 0 | C51: 男 | D51: 入院 | E51: 潰瘍性腸炎 | F51: 0 | G51: 77 | H51: 0 | I51: 0 | J51: 0 | K51: 0 | L51: 7634 | M51: 0 | N51: 0 | O51: 0 | P51: 88 | Q51: 0 | R51: 0 | S51: 15024 | T51: 0 | U51: 0 | V51: 0 | W51: 340 | X51: 0 | Y51: 0 | Z51: 102331 | AA51: 0 | AB51: 0 | AC51: 0 | AD51: 2377 | AE51: 0
A52: 明細部 | B52: 0 | C52: 男 | D52: 入院 | E52: クローン病 | F52: 0 | G52: 77 | H52: 0 | I52: 0 | J52: 0 | K52: 0 | L52: 7634 | M52: 0 | N52: 0 | O52: 0 | P52: 88 | Q52: 0 | R52: 0 | S52: 15024 | T52: 0 | U52: 0 | V52: 0 | W52: 340 | X52: 0 | Y52: 0 | Z52: 102331 | AA52: 0 | AB52: 0 | AC52: 0 | AD52: 2377 | AE52: 0
A53: 明細部 | B53: 0 | C53: 男 | D53: 入院 | E53: 肝がん | F53: 0 | G53: 77 | H53: 0 | I53: 0 | J53: 0 | K53: 0 | L53: 7634 | M53: 0 | N53: 0 | O53: 0 | P53: 88 | Q53: 0 | R53: 0 | S53: 15024 | T53: 0 | U53: 0 | V53: 0 | W53: 340 | X53: 0 | Y53: 0 | Z53: 102331 | AA53: 0 | AB53: 0 | AC53: 0 | AD53: 2377 | AE53: 0
A54: 明細部 | B54: 0 | C54: 男 | D54: 入院 | E54: Ｂ型肝炎 | F54: 0 | G54: 77 | H54: 0 | I54: 0 | J54: 0 | K54: 0 | L54: 7634 | M54: 0 | N54: 0 | O54: 0 | P54: 88 | Q54: 0 | R54: 0 | S54: 15024 | T54: 0 | U54: 0 | V54: 0 | W54: 340 | X54: 0 | Y54: 0 | Z54: 102331 | AA54: 0 | AB54: 0 | AC54: 0 | AD54: 2377 | AE54: 0
A55: 明細部 | B55: 0 | C55: 男 | D55: 入院 | E55: Ｃ型肝炎 | F55: 0 | G55: 77 | H55: 0 | I55: 0 | J55: 0 | K55: 0 | L55: 7634 | M55: 0 | N55: 0 | O55: 0 | P55: 88 | Q55: 0 | R55: 0 | S55: 15024 | T55: 0 | U55: 0 | V55: 0 | W55: 340 | X55: 0 | Y55: 0 | Z55: 102331 | AA55: 0 | AB55: 0 | AC55: 0 | AD55: 2377 | AE55: 0
A56: 明細部 | B56: 0 | C56: 男 | D56: 入院 | E56: アルコール性肝障害 | F56: 0 | G56: 77 | H56: 0 | I56: 0 | J56: 0 | K56: 0 | L56: 7634 | M56: 0 | N56: 0 | O56: 0 | P56: 88 | Q56: 0 | R56: 0 | S56: 15024 | T56: 0 | U56: 0 | V56: 0 | W56: 340 | X56: 0 | Y56: 0 | Z56: 102331 | AA56: 0 | AB56: 0 | AC56: 0 | AD56: 2377 | AE56: 0
A57: 明細部 | B57: 0 | C57: 男 | D57: 入院 | E57: 肝硬変 | F57: 0 | G57: 77 | H57: 0 | I57: 0 | J57: 0 | K57: 0 | L57: 7634 | M57: 0 | N57: 0 | O57: 0 | P57: 88 | Q57: 0 | R57: 0 | S57: 15024 | T57: 0 | U57: 0 | V57: 0 | W57: 340 | X57: 0 | Y57: 0 | Z57: 102331 | AA57: 0 | AB57: 0 | AC57: 0 | AD57: 2377 | AE57: 0
A58: 明細部 | B58: 0 | C58: 男 | D58: 入院 | E58: 脂肪肝 | F58: 0 | G58: 77 | H58: 0 | I58: 0 | J58: 0 | K58: 0 | L58: 7634 | M58: 0 | N58: 0 | O58: 0 | P58: 88 | Q58: 0 | R58: 0 | S58: 15024 | T58: 0 | U58: 0 | V58: 0 | W58: 340 | X58: 0 | Y58: 0 | Z58: 102331 | AA58: 0 | AB58: 0 | AC58: 0 | AD58: 2377 | AE58: 0
A59: 明細部 | B59: 0 | C59: 男 | D59: 入院 | E59: 胆石症 | F59: 0 | G59: 77 | H59: 0 | I59: 0 | J59: 0 | K59: 0 | L59: 7634 | M59: 0 | N59: 0 | O59: 0 | P59: 88 | Q59: 0 | R59: 0 | S59: 15024 | T59: 0 | U59: 0 | V59: 0 | W59: 340 | X59: 0 | Y59: 0 | Z59: 102331 | AA59: 0 | AB59: 0 | AC59: 0 | AD59: 2377 | AE59: 0
A60: 明細部 | B60: 0 | C60: 男 | D60: 入院 | E60: 慢性膵炎 | F60: 0 | G60: 77 | H60: 0 | I60: 0 | J60: 0 | K60: 0 | L60: 7634 | M60: 0 | N60: 0 | O60: 0 | P60: 88 | Q60: 0 | R60: 0 | S60: 15024 | T60: 0 | U60: 0 | V60: 0 | W60: 340 | X60: 0 | Y60: 0 | Z60: 102331 | AA60: 0 | AB60: 0 | AC60: 0 | AD60: 2377 | AE60: 0
A61: 明細部 | B61: 0 | C61: 男 | D61: 入院 | E61: 膵臓がん | F61: 0 | G61: 77 | H61: 0 | I61: 0 | J61: 0 | K61: 0 | L61: 7634 | M61: 0 | N61: 0 | O61: 0 | P61: 88 | Q61: 0 | R61: 0 | S61: 15024 | T61: 0 | U61: 0 | V61: 0 | W61: 340 | X61: 0 | Y61: 0 | Z61: 102331 | AA61: 0 | AB61: 0 | AC61: 0 | AD61: 2377 | AE61: 0
A62: 明細部 | B62: 0 | C62: 男 | D62: 入院 | E62: 貧血 | F62: 0 | G62: 77 | H62: 0 | I62: 0 | J62: 0 | K62: 0 | L62: 7634 | M62: 0 | N62: 0 | O62: 0 | P62: 88 | Q62: 0 | R62: 0 | S62: 15024 | T62: 0 | U62: 0 | V62: 0 | W62: 340 | X62: 0 | Y62: 0 | Z62: 102331 | AA62: 0 | AB62: 0 | AC62: 0 | AD62: 2377 | AE62: 0
A63: 明細部 | B63: 0 | C63: 男 | D63: 入院 | E63: 白血病 | F63: 0 | G63: 77 | H63: 0 | I63: 0 | J63: 0 | K63: 0 | L63: 7634 | M63: 0 | N63: 0 | O63: 0 | P63: 88 | Q63: 0 | R63: 0 | S63: 15024 | T63: 0 | U63: 0 | V63: 0 | W63: 340 | X63: 0 | Y63: 0 | Z63: 102331 | AA63: 0 | AB63: 0 | AC63: 0 | AD63: 2377 | AE63: 0
A64: 明細部 | B64: 0 | C64: 男 | D64: 入院 | E64: 難聴 | F64: 0 | G64: 77 | H64: 0 | I64: 0 | J64: 0 | K64: 0 | L64: 7634 | M64: 0 | N64: 0 | O64: 0 | P64: 88 | Q64: 0 | R64: 0 | S64: 15024 | T64: 0 | U64: 0 | V64: 0 | W64: 340 | X64: 0 | Y64: 0 | Z64: 102331 | AA64: 0 | AB64: 0 | AC64: 0 | AD64: 2377 | AE64: 0
A65: 明細部 | B65: 0 | C65: 男 | D65: 入院 | E65: 喉頭がん | F65: 0 | G65: 77 | H65: 0 | I65: 0 | J65: 0 | K65: 0 | L65: 7634 | M65: 0 | N65: 0 | O65: 0 | P65: 88 | Q65: 0 | R65: 0 | S65: 15024 | T65: 0 | U65: 0 | V65: 0 | W65: 340 | X65: 0 | Y65: 0 | Z65: 102331 | AA65: 0 | AB65: 0 | AC65: 0 | AD65: 2377 | AE65: 0
A66: 明細部 | B66: 0 | C66: 男 | D66: 入院 | E66: 骨折 | F66: 0 | G66: 77 | H66: 0 | I66: 0 | J66: 0 | K66: 0 | L66: 7634 | M66: 0 | N66: 0 | O66: 0 | P66: 88 | Q66: 0 | R66: 0 | S66: 15024 | T66: 0 | U66: 0 | V66: 0 | W66: 340 | X66: 0 | Y66: 0 | Z66: 102331 | AA66: 0 | AB66: 0 | AC66: 0 | AD66: 2377 | AE66: 0
A67: 明細部 | B67: 0 | C67: 男 | D67: 入院 | E67: 骨粗しょう症 | F67: 0 | G67: 77 | H67: 0 | I67: 0 | J67: 0 | K67: 0 | L67: 7634 | M67: 0 | N67: 0 | O67: 0 | P67: 88 | Q67: 0 | R67: 0 | S67: 15024 | T67: 0 | U67: 0 | V67: 0 | W67: 340 | X67: 0 | Y67: 0 | Z67: 102331 | AA67: 0 | AB67: 0 | AC67: 0 | AD67: 2377 | AE67: 0
A68: 明細部 | B68: 0 | C68: 男 | D68: 入院 | E68: 骨がん | F68: 0 | G68: 77 | H68: 0 | I68: 0 | J68: 0 | K68: 0 | L68: 7634 | M68: 0 | N68: 0 | O68: 0 | P68: 88 | Q68: 0 | R68: 0 | S68: 15024 | T68: 0 | U68: 0 | V68: 0 | W68: 340 | X68: 0 | Y68: 0 | Z68: 102331 | AA68: 0 | AB68: 0 | AC68: 0 | AD68: 2377 | AE68: 0
A69: 明細部 | B69: 0 | C69: 男 | D69: 入院 | E69: 関節疾患 | F69: 0 | G69: 77 | H69: 0 | I69: 0 | J69: 0 | K69: 0 | L69: 7634 | M69: 0 | N69: 0 | O69: 0 | P69: 88 | Q69: 0 | R69: 0 | S69: 15024 | T69: 0 | U69: 0 | V69: 0 | W69: 340 | X69: 0 | Y69: 0 | Z69: 102331 | AA69: 0 | AB69: 0 | AC69: 0 | AD69: 2377 | AE69: 0
A70: 明細部 | B70: 0 | C70: 男 | D70: 入院 | E70: 腎炎・ネフローゼ | F70: 0 | G70: 77 | H70: 0 | I70: 0 | J70: 0 | K70: 0 | L70: 7634 | M70: 0 | N70: 0 | O70: 0 | P70: 88 | Q70: 0 | R70: 0 | S70: 15024 | T70: 0 | U70: 0 | V70: 0 | W70: 340 | X70: 0 | Y70: 0 | Z70: 102331 | AA70: 0 | AB70: 0 | AC70: 0 | AD70: 2377 | AE70: 0
A71: 明細部 | B71: 0 | C71: 男 | D71: 入院 | E71: 慢性腎不全（透析なし） | F71: 0 | G71: 77 | H71: 0 | I71: 0 | J71: 0 | K71: 0 | L71: 7634 | M71: 0 | N71: 0 | O71: 0 | P71: 88 | Q71: 0 | R71: 0 | S71: 15024 | T71: 0 | U71: 0 | V71: 0 | W71: 340 | X71: 0 | Y71: 0 | Z71: 102331 | AA71: 0 | AB71: 0 | AC71: 0 | AD71: 2377 | AE71: 0
A72: 明細部 | B72: 0 | C72: 男 | D72: 入院 | E72: 慢性腎不全（透析あり） | F72: 0 | G72: 77 | H72: 0 | I72: 0 | J72: 0 | K72: 0 | L72: 7634 | M72: 0 | N72: 0 | O72: 0 | P72: 88 | Q72: 0 | R72: 0 | S72: 15024 | T72: 0 | U72: 0 | V72: 0 | W72: 340 | X72: 0 | Y72: 0 | Z72: 102331 | AA72: 0 | AB72: 0 | AC72: 0 | AD72: 2377 | AE72: 0
A73: 明細部 | B73: 0 | C73: 男 | D73: 入院 | E73: 腎結石 | F73: 0 | G73: 77 | H73: 0 | I73: 0 | J73: 0 | K73: 0 | L73: 7634 | M73: 0 | N73: 0 | O73: 0 | P73: 88 | Q73: 0 | R73: 0 | S73: 15024 | T73: 0 | U73: 0 | V73: 0 | W73: 340 | X73: 0 | Y73: 0 | Z73: 102331 | AA73: 0 | AB73: 0 | AC73: 0 | AD73: 2377 | AE73: 0
A74: 明細部 | B74: 0 | C74: 男 | D74: 入院 | E74: 尿路結石（尿管・膀胱） | F74: 0 | G74: 77 | H74: 0 | I74: 0 | J74: 0 | K74: 0 | L74: 7634 | M74: 0 | N74: 0 | O74: 0 | P74: 88 | Q74: 0 | R74: 0 | S74: 15024 | T74: 0 | U74: 0 | V74: 0 | W74: 340 | X74: 0 | Y74: 0 | Z74: 102331 | AA74: 0 | AB74: 0 | AC74: 0 | AD74: 2377 | AE74: 0
A75: 明細部 | B75: 0 | C75: 男 | D75: 入院 | E75: 腎臓がん | F75: 0 | G75: 77 | H75: 0 | I75: 0 | J75: 0 | K75: 0 | L75: 7634 | M75: 0 | N75: 0 | O75: 0 | P75: 88 | Q75: 0 | R75: 0 | S75: 15024 | T75: 0 | U75: 0 | V75: 0 | W75: 340 | X75: 0 | Y75: 0 | Z75: 102331 | AA75: 0 | AB75: 0 | AC75: 0 | AD75: 2377 | AE75: 0
A76: 明細部 | B76: 0 | C76: 男 | D76: 入院 | E76: 膀胱がん | F76: 0 | G76: 77 | H76: 0 | I76: 0 | J76: 0 | K76: 0 | L76: 7634 | M76: 0 | N76: 0 | O76: 0 | P76: 88 | Q76: 0 | R76: 0 | S76: 15024 | T76: 0 | U76: 0 | V76: 0 | W76: 340 | X76: 0 | Y76: 0 | Z76: 102331 | AA76: 0 | AB76: 0 | AC76: 0 | AD76: 2377 | AE76: 0
A77: 明細部 | B77: 0 | C77: 男 | D77: 入院 | E77: 前立腺がん | F77: 0 | G77: 77 | H77: 0 | I77: 0 | J77: 0 | K77: 0 | L77: 7634 | M77: 0 | N77: 0 | O77: 0 | P77: 88 | Q77: 0 | R77: 0 | S77: 15024 | T77: 0 | U77: 0 | V77: 0 | W77: 340 | X77: 0 | Y77: 0 | Z77: 102331 | AA77: 0 | AB77: 0 | AC77: 0 | AD77: 2377 | AE77: 0
A78: 明細部 | B78: 0 | C78: 男 | D78: 入院 | E78: 前立腺肥大 | F78: 0 | G78: 77 | H78: 0 | I78: 0 | J78: 0 | K78: 0 | L78: 7634 | M78: 0 | N78: 0 | O78: 0 | P78: 88 | Q78: 0 | R78: 0 | S78: 15024 | T78: 0 | U78: 0 | V78: 0 | W78: 340 | X78: 0 | Y78: 0 | Z78: 102331 | AA78: 0 | AB78: 0 | AC78: 0 | AD78: 2377 | AE78: 0
A79: 明細部 | B79: 0 | C79: 男 | D79: 入院 | E79: 子宮頚がん | F79: 0 | G79: 77 | H79: 0 | I79: 0 | J79: 0 | K79: 0 | L79: 7634 | M79: 0 | N79: 0 | O79: 0 | P79: 88 | Q79: 0 | R79: 0 | S79: 15024 | T79: 0 | U79: 0 | V79: 0 | W79: 340 | X79: 0 | Y79: 0 | Z79: 102331 | AA79: 0 | AB79: 0 | AC79: 0 | AD79: 2377 | AE79: 0
A80: 明細部 | B80: 0 | C80: 男 | D80: 入院 | E80: 子宮体がん | F80: 0 | G80: 77 | H80: 0 | I80: 0 | J80: 0 | K80: 0 | L80: 7634 | M80: 0 | N80: 0 | O80: 0 | P80: 88 | Q80: 0 | R80: 0 | S80: 15024 | T80: 0 | U80: 0 | V80: 0 | W80: 340 | X80: 0 | Y80: 0 | Z80: 102331 | AA80: 0 | AB80: 0 | AC80: 0 | AD80: 2377 | AE80: 0
A81: 明細部 | B81: 0 | C81: 男 | D81: 入院 | E81: 子宮筋腫 | F81: 0 | G81: 77 | H81: 0 | I81: 0 | J81: 0 | K81: 0 | L81: 7634 | M81: 0 | N81: 0 | O81: 0 | P81: 88 | Q81: 0 | R81: 0 | S81: 15024 | T81: 0 | U81: 0 | V81: 0 | W81: 340 | X81: 0 | Y81: 0 | Z81: 102331 | AA81: 0 | AB81: 0 | AC81: 0 | AD81: 2377 | AE81: 0
A82: 明細部 | B82: 0 | C82: 男 | D82: 入院 | E82: 卵巣腫瘍（悪性） | F82: 0 | G82: 77 | H82: 0 | I82: 0 | J82: 0 | K82: 0 | L82: 7634 | M82: 0 | N82: 0 | O82: 0 | P82: 88 | Q82: 0 | R82: 0 | S82: 15024 | T82: 0 | U82: 0 | V82: 0 | W82: 340 | X82: 0 | Y82: 0 | Z82: 102331 | AA82: 0 | AB82: 0 | AC82: 0 | AD82: 2377 | AE82: 0
A83: 明細部 | B83: 0 | C83: 男 | D83: 入院 | E83: 卵巣腫瘍（良性） | F83: 0 | G83: 77 | H83: 0 | I83: 0 | J83: 0 | K83: 0 | L83: 7634 | M83: 0 | N83: 0 | O83: 0 | P83: 88 | Q83: 0 | R83: 0 | S83: 15024 | T83: 0 | U83: 0 | V83: 0 | W83: 340 | X83: 0 | Y83: 0 | Z83: 102331 | AA83: 0 | AB83: 0 | AC83: 0 | AD83: 2377 | AE83: 0
A84: 明細部 | B84: 0 | C84: 男 | D84: 入院 | E84: 乳がん | F84: 0 | G84: 77 | H84: 0 | I84: 0 | J84: 0 | K84: 0 | L84: 7634 | M84: 0 | N84: 0 | O84: 0 | P84: 88 | Q84: 0 | R84: 0 | S84: 15024 | T84: 0 | U84: 0 | V84: 0 | W84: 340 | X84: 0 | Y84: 0 | Z84: 102331 | AA84: 0 | AB84: 0 | AC84: 0 | AD84: 2377 | AE84: 0
A85: 明細部 | B85: 0 | C85: 男 | D85: 入院 | E85: 乳腺症 | F85: 0 | G85: 77 | H85: 0 | I85: 0 | J85: 0 | K85: 0 | L85: 7634 | M85: 0 | N85: 0 | O85: 0 | P85: 88 | Q85: 0 | R85: 0 | S85: 15024 | T85: 0 | U85: 0 | V85: 0 | W85: 340 | X85: 0 | Y85: 0 | Z85: 102331 | AA85: 0 | AB85: 0 | AC85: 0 | AD85: 2377 | AE85: 0
A86: 明細部 | B86: 0 | C86: 男 | D86: 入院 | E86: その他 | F86: 0 | G86: 77 | H86: 0 | I86: 0 | J86: 0 | K86: 0 | L86: 7634 | M86: 0 | N86: 0 | O86: 0 | P86: 88 | Q86: 0 | R86: 0 | S86: 15024 | T86: 0 | U86: 0 | V86: 0 | W86: 340 | X86: 0 | Y86: 0 | Z86: 102331 | AA86: 0 | AB86: 0 | AC86: 0 | AD86: 2377 | AE86: 0
A87: 明細部 | B87: 0 | C87: 男 | D87: 入院 | E87: 小児科 | F87: 14 | G87: 77 | H87: 35.46837619 | I87: 597574 | J87: 55463 | K87: 1999 | L87: 7634 | M87: 49.87901768 | N87: 103257047 | O87: 69726 | P87: 88 | Q87: 1528950 | R87: 5341 | S87: 15024 | T87: 61.45019182 | U87: 197953124 | V87: 57924 | W87: 340 | X87: 791970 | Y87: 30330 | Z87: 102331 | AA87: 60.00951331 | AB87: 1346169147 | AC87: 59676 | AD87: 2377 | AE87: 749159
A88: 明細部 | B88: 1 | C88: 男 | D88: 入院 | E88: 脳梗塞 | F88: 0 | G88: 51 | H88: 0 | I88: 0 | J88: 0 | K88: 0 | L88: 7183 | M88: 0 | N88: 0 | O88: 0 | P88: 88 | Q88: 0 | R88: 0 | S88: 14369 | T88: 0 | U88: 0 | V88: 0 | W88: 340 | X88: 0 | Y88: 0 | Z88: 98274 | AA88: 0 | AB88: 0 | AC88: 0 | AD88: 2377 | AE88: 0
A89: 明細部 | B89: 1 | C89: 男 | D89: 入院 | E89: クモ膜下出血 | F89: 0 | G89: 51 | H89: 0 | I89: 0 | J89: 0 | K89: 0 | L89: 7183 | M89: 0 | N89: 0 | O89: 0 | P89: 88 | Q89: 0 | R89: 0 | S89: 14369 | T89: 0 | U89: 0 | V89: 0 | W89: 340 | X89: 0 | Y89: 0 | Z89: 98274 | AA89: 0 | AB89: 0 | AC89: 0 | AD89: 2377 | AE89: 0
A90: 明細部 | B90: 1 | C90: 男 | D90: 入院 | E90: 脳出血 | F90: 0 | G90: 51 | H90: 0 | I90: 0 | J90: 0 | K90: 0 | L90: 7183 | M90: 0 | N90: 0 | O90: 0 | P90: 88 | Q90: 0 | R90: 0 | S90: 14369 | T90: 0 | U90: 0 | V90: 0 | W90: 340 | X90: 0 | Y90: 0 | Z90: 98274 | AA90: 0 | AB90: 0 | AC90: 0 | AD90: 2377 | AE90: 0
A91: 明細部 | B91: 1 | C91: 男 | D91: 入院 | E91: 一過性脳虚血発作 | F91: 0 | G91: 51 | H91: 0 | I91: 0 | J91: 0 | K91: 0 | L91: 7183 | M91: 0 | N91: 0 | O91: 0 | P91: 88 | Q91: 0 | R91: 0 | S91: 14369 | T91: 0 | U91: 0 | V91: 0 | W91: 340 | X91: 0 | Y91: 0 | Z91: 98274 | AA91: 0 | AB91: 0 | AC91: 0 | AD91: 2377 | AE91: 0
A92: 明細部 | B92: 1 | C92: 男 | D92: 入院 | E92: パーキンソン病 | F92: 0 | G92: 51 | H92: 0 | I92: 0 | J92: 0 | K92: 0 | L92: 7183 | M92: 0 | N92: 0 | O92: 0 | P92: 88 | Q92: 0 | R92: 0 | S92: 14369 | T92: 0 | U92: 0 | V92: 0 | W92: 340 | X92: 0 | Y92: 0 | Z92: 98274 | AA92: 0 | AB92: 0 | AC92: 0 | AD92: 2377 | AE92: 0
A93: 明細部 | B93: 1 | C93: 男 | D93: 入院 | E93: 脳腫瘍 | F93: 0 | G93: 51 | H93: 0 | I93: 0 | J93: 0 | K93: 0 | L93: 7183 | M93: 0 | N93: 0 | O93: 0 | P93: 88 | Q93: 0 | R93: 0 | S93: 14369 | T93: 0 | U93: 0 | V93: 0 | W93: 340 | X93: 0 | Y93: 0 | Z93: 98274 | AA93: 0 | AB93: 0 | AC93: 0 | AD93: 2377 | AE93: 0
A94: 明細部 | B94: 1 | C94: 男 | D94: 入院 | E94: うつ病 | F94: 0 | G94: 51 | H94: 0 | I94: 0 | J94: 0 | K94: 0 | L94: 7183 | M94: 0 | N94: 0 | O94: 0 | P94: 88 | Q94: 0 | R94: 0 | S94: 14369 | T94: 0 | U94: 0 | V94: 0 | W94: 340 | X94: 0 | Y94: 0 | Z94: 98274 | AA94: 0 | AB94: 0 | AC94: 0 | AD94: 2377 | AE94: 0
A95: 明細部 | B95: 1 | C95: 男 | D95: 入院 | E95: 認知症 | F95: 0 | G95: 51 | H95: 0 | I95: 0 | J95: 0 | K95: 0 | L95: 7183 | M95: 0 | N95: 0 | O95: 0 | P95: 88 | Q95: 0 | R95: 0 | S95: 14369 | T95: 0 | U95: 0 | V95: 0 | W95: 340 | X95: 0 | Y95: 0 | Z95: 98274 | AA95: 0 | AB95: 0 | AC95: 0 | AD95: 2377 | AE95: 0
A96: 明細部 | B96: 1 | C96: 男 | D96: 入院 | E96: 統合失調症 | F96: 0 | G96: 51 | H96: 0 | I96: 0 | J96: 0 | K96: 0 | L96: 7183 | M96: 0 | N96: 0 | O96: 0 | P96: 88 | Q96: 0 | R96: 0 | S96: 14369 | T96: 0 | U96: 0 | V96: 0 | W96: 340 | X96: 0 | Y96: 0 | Z96: 98274 | AA96: 0 | AB96: 0 | AC96: 0 | AD96: 2377 | AE96: 0
A97: 明細部 | B97: 1 | C97: 男 | D97: 入院 | E97: 緑内障 | F97: 0 | G97: 51 | H97: 0 | I97: 0 | J97: 0 | K97: 0 | L97: 7183 | M97: 0 | N97: 0 | O97: 0 | P97: 88 | Q97: 0 | R97: 0 | S97: 14369 | T97: 0 | U97: 0 | V97: 0 | W97: 340 | X97: 0 | Y97: 0 | Z97: 98274 | AA97: 0 | AB97: 0 | AC97: 0 | AD97: 2377 | AE97: 0
A98: 明細部 | B98: 1 | C98: 男 | D98: 入院 | E98: 白内障 | F98: 0 | G98: 51 | H98: 0 | I98: 0 | J98: 0 | K98: 0 | L98: 7183 | M98: 0 | N98: 0 | O98: 0 | P98: 88 | Q98: 0 | R98: 0 | S98: 14369 | T98: 0 | U98: 0 | V98: 0 | W98: 340 | X98: 0 | Y98: 0 | Z98: 98274 | AA98: 0 | AB98: 0 | AC98: 0 | AD98: 2377 | AE98: 0
A99: 明細部 | B99: 1 | C99: 男 | D99: 入院 | E99: 糖尿病網膜症 | F99: 0 | G99: 51 | H99: 0 | I99: 0 | J99: 0 | K99: 0 | L99: 7183 | M99: 0 | N99: 0 | O99: 0 | P99: 88 | Q99: 0 | R99: 0 | S99: 14369 | T99: 0 | U99: 0 | V99: 0 | W99: 340 | X99: 0 | Y99: 0 | Z99: 98274 | AA99: 0 | AB99: 0 | AC99: 0 | AD99: 2377 | AE99: 0
A100: 明細部 | B100: 1 | C100: 男 | D100: 入院 | E100: インフルエンザ | F100: 0 | G100: 51 | H100: 0 | I100: 0 | J100: 0 | K100: 0 | L100: 7183 | M100: 0 | N100: 0 | O100: 0 | P100: 88 | Q100: 0 | R100: 0 | S100: 14369 | T100: 0 | U100: 0 | V100: 0 | W100: 340 | X100: 0 | Y100: 0 | Z100: 98274 | AA100: 0 | AB100: 0 | AC100: 0 | AD100: 2377 | AE100: 0
A101: 明細部 | B101: 1 | C101: 男 | D101: 入院 | E101: 肺がん | F101: 0 | G101: 51 | H101: 0 | I101: 0 | J101: 0 | K101: 0 | L101: 7183 | M101: 0 | N101: 0 | O101: 0 | P101: 88 | Q101: 0 | R101: 0 | S101: 14369 | T101: 0 | U101: 0 | V101: 0 | W101: 340 | X101: 0 | Y101: 0 | Z101: 98274 | AA101: 0 | AB101: 0 | AC101: 0 | AD101: 2377 | AE101: 0
A102: 明細部 | B102: 1 | C102: 男 | D102: 入院 | E102: 肺炎 | F102: 0 | G102: 51 | H102: 0 | I102: 0 | J102: 0 | K102: 0 | L102: 7183 | M102: 0 | N102: 0 | O102: 0 | P102: 88 | Q102: 0 | R102: 0 | S102: 14369 | T102: 0 | U102: 0 | V102: 0 | W102: 340 | X102: 0 | Y102: 0 | Z102: 98274 | AA102: 0 | AB102: 0 | AC102: 0 | AD102: 2377 | AE102: 0
A103: 明細部 | B103: 1 | C103: 男 | D103: 入院 | E103: 肺結核・胸膜炎 | F103: 0 | G103: 51 | H103: 0 | I103: 0 | J103: 0 | K103: 0 | L103: 7183 | M103: 0 | N103: 0 | O103: 0 | P103: 88 | Q103: 0 | R103: 0 | S103: 14369 | T103: 0 | U103: 0 | V103: 0 | W103: 340 | X103: 0 | Y103: 0 | Z103: 98274 | AA103: 0 | AB103: 0 | AC103: 0 | AD103: 2377 | AE103: 0
A104: 明細部 | B104: 1 | C104: 男 | D104: 入院 | E104: 気管支喘息 | F104: 0 | G104: 51 | H104: 0 | I104: 0 | J104: 0 | K104: 0 | L104: 7183 | M104: 0 | N104: 0 | O104: 0 | P104: 88 | Q104: 0 | R104: 0 | S104: 14369 | T104: 0 | U104: 0 | V104: 0 | W104: 340 | X104: 0 | Y104: 0 | Z104: 98274 | AA104: 0 | AB104: 0 | AC104: 0 | AD104: 2377 | AE104: 0
A105: 明細部 | B105: 1 | C105: 男 | D105: 入院 | E105: 肺気腫 | F105: 0 | G105: 51 | H105: 0 | I105: 0 | J105: 0 | K105: 0 | L105: 7183 | M105: 0 | N105: 0 | O105: 0 | P105: 88 | Q105: 0 | R105: 0 | S105: 14369 | T105: 0 | U105: 0 | V105: 0 | W105: 340 | X105: 0 | Y105: 0 | Z105: 98274 | AA105: 0 | AB105: 0 | AC105: 0 | AD105: 2377 | AE105: 0
A106: 明細部 | B106: 1 | C106: 男 | D106: 入院 | E106: 慢性閉塞性肺疾患（COPD） | F106: 0 | G106: 51 | H106: 0 | I106: 0 | J106: 0 | K106: 0 | L106: 7183 | M106: 0 | N106: 0 | O106: 0 | P106: 88 | Q106: 0 | R106: 0 | S106: 14369 | T106: 0 | U106: 0 | V106: 0 | W106: 340 | X106: 0 | Y106: 0 | Z106: 98274 | AA106: 0 | AB106: 0 | AC106: 0 | AD106: 2377 | AE106: 0
A107: 明細部 | B107: 1 | C107: 男 | D107: 入院 | E107: 間質性肺炎 | F107: 0 | G107: 51 | H107: 0 | I107: 0 | J107: 0 | K107: 0 | L107: 7183 | M107: 0 | N107: 0 | O107: 0 | P107: 88 | Q107: 0 | R107: 0 | S107: 14369 | T107: 0 | U107: 0 | V107: 0 | W107: 340 | X107: 0 | Y107: 0 | Z107: 98274 | AA107: 0 | AB107: 0 | AC107: 0 | AD107: 2377 | AE107: 0
A108: 明細部 | B108: 1 | C108: 男 | D108: 入院 | E108: 気胸 | F108: 0 | G108: 51 | H108: 0 | I108: 0 | J108: 0 | K108: 0 | L108: 7183 | M108: 0 | N108: 0 | O108: 0 | P108: 88 | Q108: 0 | R108: 0 | S108: 14369 | T108: 0 | U108: 0 | V108: 0 | W108: 340 | X108: 0 | Y108: 0 | Z108: 98274 | AA108: 0 | AB108: 0 | AC108: 0 | AD108: 2377 | AE108: 0
A109: 明細部 | B109: 1 | C109: 男 | D109: 入院 | E109: 睡眠時無呼吸症候群 | F109: 0 | G109: 51 | H109: 0 | I109: 0 | J109: 0 | K109: 0 | L109: 7183 | M109: 0 | N109: 0 | O109: 0 | P109: 88 | Q109: 0 | R109: 0 | S109: 14369 | T109: 0 | U109: 0 | V109: 0 | W109: 340 | X109: 0 | Y109: 0 | Z109: 98274 | AA109: 0 | AB109: 0 | AC109: 0 | AD109: 2377 | AE109: 0
A110: 明細部 | B110: 1 | C110: 男 | D110: 入院 | E110: 非定型（非結核性）抗酸菌症 | F110: 0 | G110: 51 | H110: 0 | I110: 0 | J110: 0 | K110: 0 | L110: 7183 | M110: 0 | N110: 0 | O110: 0 | P110: 88 | Q110: 0 | R110: 0 | S110: 14369 | T110: 0 | U110: 0 | V110: 0 | W110: 340 | X110: 0 | Y110: 0 | Z110: 98274 | AA110: 0 | AB110: 0 | AC110: 0 | AD110: 2377 | AE110: 0
A111: 明細部 | B111: 1 | C111: 男 | D111: 入院 | E111: 脂質異常症 | F111: 0 | G111: 51 | H111: 0 | I111: 0 | J111: 0 | K111: 0 | L111: 7183 | M111: 0 | N111: 0 | O111: 0 | P111: 88 | Q111: 0 | R111: 0 | S111: 14369 | T111: 0 | U111: 0 | V111: 0 | W111: 340 | X111: 0 | Y111: 0 | Z111: 98274 | AA111: 0 | AB111: 0 | AC111: 0 | AD111: 2377 | AE111: 0
A112: 明細部 | B112: 1 | C112: 男 | D112: 入院 | E112: 糖尿病 | F112: 0 | G112: 51 | H112: 0 | I112: 0 | J112: 0 | K112: 0 | L112: 7183 | M112: 0 | N112: 0 | O112: 0 | P112: 88 | Q112: 0 | R112: 0 | S112: 14369 | T112: 0 | U112: 0 | V112: 0 | W112: 340 | X112: 0 | Y112: 0 | Z112: 98274 | AA112: 0 | AB112: 0 | AC112: 0 | AD112: 2377 | AE112: 0
A113: 明細部 | B113: 1 | C113: 男 | D113: 入院 | E113: 痛風・高尿酸血症 | F113: 0 | G113: 51 | H113: 0 | I113: 0 | J113: 0 | K113: 0 | L113: 7183 | M113: 0 | N113: 0 | O113: 0 | P113: 88 | Q113: 0 | R113: 0 | S113: 14369 | T113: 0 | U113: 0 | V113: 0 | W113: 340 | X113: 0 | Y113: 0 | Z113: 98274 | AA113: 0 | AB113: 0 | AC113: 0 | AD113: 2377 | AE113: 0
A114: 明細部 | B114: 1 | C114: 男 | D114: 入院 | E114: 甲状腺機能低下症 | F114: 0 | G114: 51 | H114: 0 | I114: 0 | J114: 0 | K114: 0 | L114: 7183 | M114: 0 | N114: 0 | O114: 0 | P114: 88 | Q114: 0 | R114: 0 | S114: 14369 | T114: 0 | U114: 0 | V114: 0 | W114: 340 | X114: 0 | Y114: 0 | Z114: 98274 | AA114: 0 | AB114: 0 | AC114: 0 | AD114: 2377 | AE114: 0
A115: 明細部 | B115: 1 | C115: 男 | D115: 入院 | E115: 甲状腺機能亢進症 | F115: 0 | G115: 51 | H115: 0 | I115: 0 | J115: 0 | K115: 0 | L115: 7183 | M115: 0 | N115: 0 | O115: 0 | P115: 88 | Q115: 0 | R115: 0 | S115: 14369 | T115: 0 | U115: 0 | V115: 0 | W115: 340 | X115: 0 | Y115: 0 | Z115: 98274 | AA115: 0 | AB115: 0 | AC115: 0 | AD115: 2377 | AE115: 0
A116: 明細部 | B116: 1 | C116: 男 | D116: 入院 | E116: 甲状腺がん | F116: 0 | G116: 51 | H116: 0 | I116: 0 | J116: 0 | K116: 0 | L116: 7183 | M116: 0 | N116: 0 | O116: 0 | P116: 88 | Q116: 0 | R116: 0 | S116: 14369 | T116: 0 | U116: 0 | V116: 0 | W116: 340 | X116: 0 | Y116: 0 | Z116: 98274 | AA116: 0 | AB116: 0 | AC116: 0 | AD116: 2377 | AE116: 0
A117: 明細部 | B117: 1 | C117: 男 | D117: 入院 | E117: 高血圧症 | F117: 0 | G117: 51 | H117: 0 | I117: 0 | J117: 0 | K117: 0 | L117: 7183 | M117: 0 | N117: 0 | O117: 0 | P117: 88 | Q117: 0 | R117: 0 | S117: 14369 | T117: 0 | U117: 0 | V117: 0 | W117: 340 | X117: 0 | Y117: 0 | Z117: 98274 | AA117: 0 | AB117: 0 | AC117: 0 | AD117: 2377 | AE117: 0
A118: 明細部 | B118: 1 | C118: 男 | D118: 入院 | E118: 狭心症 | F118: 0 | G118: 51 | H118: 0 | I118: 0 | J118: 0 | K118: 0 | L118: 7183 | M118: 0 | N118: 0 | O118: 0 | P118: 88 | Q118: 0 | R118: 0 | S118: 14369 | T118: 0 | U118: 0 | V118: 0 | W118: 340 | X118: 0 | Y118: 0 | Z118: 98274 | AA118: 0 | AB118: 0 | AC118: 0 | AD118: 2377 | AE118: 0
A119: 明細部 | B119: 1 | C119: 男 | D119: 入院 | E119: 心筋梗塞 | F119: 0 | G119: 51 | H119: 0 | I119: 0 | J119: 0 | K119: 0 | L119: 7183 | M119: 0 | N119: 0 | O119: 0 | P119: 88 | Q119: 0 | R119: 0 | S119: 14369 | T119: 0 | U119: 0 | V119: 0 | W119: 340 | X119: 0 | Y119: 0 | Z119: 98274 | AA119: 0 | AB119: 0 | AC119: 0 | AD119: 2377 | AE119: 0
A120: 明細部 | B120: 1 | C120: 男 | D120: 入院 | E120: 不整脈 | F120: 0 | G120: 51 | H120: 0 | I120: 0 | J120: 0 | K120: 0 | L120: 7183 | M120: 0 | N120: 0 | O120: 0 | P120: 88 | Q120: 0 | R120: 0 | S120: 14369 | T120: 0 | U120: 0 | V120: 0 | W120: 340 | X120: 0 | Y120: 0 | Z120: 98274 | AA120: 0 | AB120: 0 | AC120: 0 | AD120: 2377 | AE120: 0
A121: 明細部 | B121: 1 | C121: 男 | D121: 入院 | E121: 心臓弁膜症 | F121: 0 | G121: 51 | H121: 0 | I121: 0 | J121: 0 | K121: 0 | L121: 7183 | M121: 0 | N121: 0 | O121: 0 | P121: 88 | Q121: 0 | R121: 0 | S121: 14369 | T121: 0 | U121: 0 | V121: 0 | W121: 340 | X121: 0 | Y121: 0 | Z121: 98274 | AA121: 0 | AB121: 0 | AC121: 0 | AD121: 2377 | AE121: 0
A122: 明細部 | B122: 1 | C122: 男 | D122: 入院 | E122: 心房・心室中隔欠損症 | F122: 0 | G122: 51 | H122: 0 | I122: 0 | J122: 0 | K122: 0 | L122: 7183 | M122: 0 | N122: 0 | O122: 0 | P122: 88 | Q122: 0 | R122: 0 | S122: 14369 | T122: 0 | U122: 0 | V122: 0 | W122: 340 | X122: 0 | Y122: 0 | Z122: 98274 | AA122: 0 | AB122: 0 | AC122: 0 | AD122: 2377 | AE122: 0
A123: 明細部 | B123: 1 | C123: 男 | D123: 入院 | E123: 大動脈瘤 | F123: 0 | G123: 51 | H123: 0 | I123: 0 | J123: 0 | K123: 0 | L123: 7183 | M123: 0 | N123: 0 | O123: 0 | P123: 88 | Q123: 0 | R123: 0 | S123: 14369 | T123: 0 | U123: 0 | V123: 0 | W123: 340 | X123: 0 | Y123: 0 | Z123: 98274 | AA123: 0 | AB123: 0 | AC123: 0 | AD123: 2377 | AE123: 0
A124: 明細部 | B124: 1 | C124: 男 | D124: 入院 | E124: 食道がん | F124: 0 | G124: 51 | H124: 0 | I124: 0 | J124: 0 | K124: 0 | L124: 7183 | M124: 0 | N124: 0 | O124: 0 | P124: 88 | Q124: 0 | R124: 0 | S124: 14369 | T124: 0 | U124: 0 | V124: 0 | W124: 340 | X124: 0 | Y124: 0 | Z124: 98274 | AA124: 0 | AB124: 0 | AC124: 0 | AD124: 2377 | AE124: 0
A125: 明細部 | B125: 1 | C125: 男 | D125: 入院 | E125: 食道静脈瘤 | F125: 0 | G125: 51 | H125: 0 | I125: 0 | J125: 0 | K125: 0 | L125: 7183 | M125: 0 | N125: 0 | O125: 0 | P125: 88 | Q125: 0 | R125: 0 | S125: 14369 | T125: 0 | U125: 0 | V125: 0 | W125: 340 | X125: 0 | Y125: 0 | Z125: 98274 | AA125: 0 | AB125: 0 | AC125: 0 | AD125: 2377 | AE125: 0
A126: 明細部 | B126: 1 | C126: 男 | D126: 入院 | E126: 逆流性食道炎 | F126: 0 | G126: 51 | H126: 0 | I126: 0 | J126: 0 | K126: 0 | L126: 7183 | M126: 0 | N126: 0 | O126: 0 | P126: 88 | Q126: 0 | R126: 0 | S126: 14369 | T126: 0 | U126: 0 | V126: 0 | W126: 340 | X126: 0 | Y126: 0 | Z126: 98274 | AA126: 0 | AB126: 0 | AC126: 0 | AD126: 2377 | AE126: 0
A127: 明細部 | B127: 1 | C127: 男 | D127: 入院 | E127: 胃がん | F127: 0 | G127: 51 | H127: 0 | I127: 0 | J127: 0 | K127: 0 | L127: 7183 | M127: 0 | N127: 0 | O127: 0 | P127: 88 | Q127: 0 | R127: 0 | S127: 14369 | T127: 0 | U127: 0 | V127: 0 | W127: 340 | X127: 0 | Y127: 0 | Z127: 98274 | AA127: 0 | AB127: 0 | AC127: 0 | AD127: 2377 | AE127: 0
A128: 明細部 | B128: 1 | C128: 男 | D128: 入院 | E128: 胃潰瘍 | F128: 0 | G128: 51 | H128: 0 | I128: 0 | J128: 0 | K128: 0 | L128: 7183 | M128: 0 | N128: 0 | O128: 0 | P128: 88 | Q128: 0 | R128: 0 | S128: 14369 | T128: 0 | U128: 0 | V128: 0 | W128: 340 | X128: 0 | Y128: 0 | Z128: 98274 | AA128: 0 | AB128: 0 | AC128: 0 | AD128: 2377 | AE128: 0
A129: 明細部 | B129: 1 | C129: 男 | D129: 入院 | E129: 十二指腸潰瘍 | F129: 0 | G129: 51 | H129: 0 | I129: 0 | J129: 0 | K129: 0 | L129: 7183 | M129: 0 | N129: 0 | O129: 0 | P129: 88 | Q129: 0 | R129: 0 | S129: 14369 | T129: 0 | U129: 0 | V129: 0 | W129: 340 | X129: 0 | Y129: 0 | Z129: 98274 | AA129: 0 | AB129: 0 | AC129: 0 | AD129: 2377 | AE129: 0
A130: 明細部 | B130: 1 | C130: 男 | D130: 入院 | E130: ヘリコバクターピロリ感染症 | F130: 0 | G130: 51 | H130: 0 | I130: 0 | J130: 0 | K130: 0 | L130: 7183 | M130: 0 | N130: 0 | O130: 0 | P130: 88 | Q130: 0 | R130: 0 | S130: 14369 | T130: 0 | U130: 0 | V130: 0 | W130: 340 | X130: 0 | Y130: 0 | Z130: 98274 | AA130: 0 | AB130: 0 | AC130: 0 | AD130: 2377 | AE130: 0
A131: 明細部 | B131: 1 | C131: 男 | D131: 入院 | E131: 大腸がん | F131: 0 | G131: 51 | H131: 0 | I131: 0 | J131: 0 | K131: 0 | L131: 7183 | M131: 0 | N131: 0 | O131: 0 | P131: 88 | Q131: 0 | R131: 0 | S131: 14369 | T131: 0 | U131: 0 | V131: 0 | W131: 340 | X131: 0 | Y131: 0 | Z131: 98274 | AA131: 0 | AB131: 0 | AC131: 0 | AD131: 2377 | AE131: 0
A132: 明細部 | B132: 1 | C132: 男 | D132: 入院 | E132: 大腸ポリープ | F132: 0 | G132: 51 | H132: 0 | I132: 0 | J132: 0 | K132: 0 | L132: 7183 | M132: 0 | N132: 0 | O132: 0 | P132: 88 | Q132: 0 | R132: 0 | S132: 14369 | T132: 0 | U132: 0 | V132: 0 | W132: 340 | X132: 0 | Y132: 0 | Z132: 98274 | AA132: 0 | AB132: 0 | AC132: 0 | AD132: 2377 | AE132: 0
A133: 明細部 | B133: 1 | C133: 男 | D133: 入院 | E133: 虫垂炎 | F133: 0 | G133: 51 | H133: 0 | I133: 0 | J133: 0 | K133: 0 | L133: 7183 | M133: 0 | N133: 0 | O133: 0 | P133: 88 | Q133: 0 | R133: 0 | S133: 14369 | T133: 0 | U133: 0 | V133: 0 | W133: 340 | X133: 0 | Y133: 0 | Z133: 98274 | AA133: 0 | AB133: 0 | AC133: 0 | AD133: 2377 | AE133: 0
A134: 明細部 | B134: 1 | C134: 男 | D134: 入院 | E134: 腸閉塞 | F134: 0 | G134: 51 | H134: 0 | I134: 0 | J134: 0 | K134: 0 | L134: 7183 | M134: 0 | N134: 0 | O134: 0 | P134: 88 | Q134: 0 | R134: 0 | S134: 14369 | T134: 0 | U134: 0 | V134: 0 | W134: 340 | X134: 0 | Y134: 0 | Z134: 98274 | AA134: 0 | AB134: 0 | AC134: 0 | AD134: 2377 | AE134: 0
A135: 明細部 | B135: 1 | C135: 男 | D135: 入院 | E135: 潰瘍性腸炎 | F135: 0 | G135: 51 | H135: 0 | I135: 0 | J135: 0 | K135: 0 | L135: 7183 | M135: 0 | N135: 0 | O135: 0 | P135: 88 | Q135: 0 | R135: 0 | S135: 14369 | T135: 0 | U135: 0 | V135: 0 | W135: 340 | X135: 0 | Y135: 0 | Z135: 98274 | AA135: 0 | AB135: 0 | AC135: 0 | AD135: 2377 | AE135: 0
A136: 明細部 | B136: 1 | C136: 男 | D136: 入院 | E136: クローン病 | F136: 0 | G136: 51 | H136: 0 | I136: 0 | J136: 0 | K136: 0 | L136: 7183 | M136: 0 | N136: 0 | O136: 0 | P136: 88 | Q136: 0 | R136: 0 | S136: 14369 | T136: 0 | U136: 0 | V136: 0 | W136: 340 | X136: 0 | Y136: 0 | Z136: 98274 | AA136: 0 | AB136: 0 | AC136: 0 | AD136: 2377 | AE136: 0
A137: 明細部 | B137: 1 | C137: 男 | D137: 入院 | E137: 肝がん | F137: 0 | G137: 51 | H137: 0 | I137: 0 | J137: 0 | K137: 0 | L137: 7183 | M137: 0 | N137: 0 | O137: 0 | P137: 88 | Q137: 0 | R137: 0 | S137: 14369 | T137: 0 | U137: 0 | V137: 0 | W137: 340 | X137: 0 | Y137: 0 | Z137: 98274 | AA137: 0 | AB137: 0 | AC137: 0 | AD137: 2377 | AE137: 0
A138: 明細部 | B138: 1 | C138: 男 | D138: 入院 | E138: Ｂ型肝炎 | F138: 0 | G138: 51 | H138: 0 | I138: 0 | J138: 0 | K138: 0 | L138: 7183 | M138: 0 | N138: 0 | O138: 0 | P138: 88 | Q138: 0 | R138: 0 | S138: 14369 | T138: 0 | U138: 0 | V138: 0 | W138: 340 | X138: 0 | Y138: 0 | Z138: 98274 | AA138: 0 | AB138: 0 | AC138: 0 | AD138: 2377 | AE138: 0
A139: 明細部 | B139: 1 | C139: 男 | D139: 入院 | E139: Ｃ型肝炎 | F139: 0 | G139: 51 | H139: 0 | I139: 0 | J139: 0 | K139: 0 | L139: 7183 | M139: 0 | N139: 0 | O139: 0 | P139: 88 | Q139: 0 | R139: 0 | S139: 14369 | T139: 0 | U139: 0 | V139: 0 | W139: 340 | X139: 0 | Y139: 0 | Z139: 98274 | AA139: 0 | AB139: 0 | AC139: 0 | AD139: 2377 | AE139: 0
A140: 明細部 | B140: 1 | C140: 男 | D140: 入院 | E140: アルコール性肝障害 | F140: 0 | G140: 51 | H140: 0 | I140: 0 | J140: 0 | K140: 0 | L140: 7183 | M140: 0 | N140: 0 | O140: 0 | P140: 88 | Q140: 0 | R140: 0 | S140: 14369 | T140: 0 | U140: 0 | V140: 0 | W140: 340 | X140: 0 | Y140: 0 | Z140: 98274 | AA140: 0 | AB140: 0 | AC140: 0 | AD140: 2377 | AE140: 0
A141: 明細部 | B141: 1 | C141: 男 | D141: 入院 | E141: 肝硬変 | F141: 0 | G141: 51 | H141: 0 | I141: 0 | J141: 0 | K141: 0 | L141: 7183 | M141: 0 | N141: 0 | O141: 0 | P141: 88 | Q141: 0 | R141: 0 | S141: 14369 | T141: 0 | U141: 0 | V141: 0 | W141: 340 | X141: 0 | Y141: 0 | Z141: 98274 | AA141: 0 | AB141: 0 | AC141: 0 | AD141: 2377 | AE141: 0
A142: 明細部 | B142: 1 | C142: 男 | D142: 入院 | E142: 脂肪肝 | F142: 0 | G142: 51 | H142: 0 | I142: 0 | J142: 0 | K142: 0 | L142: 7183 | M142: 0 | N142: 0 | O142: 0 | P142: 88 | Q142: 0 | R142: 0 | S142: 14369 | T142: 0 | U142: 0 | V142: 0 | W142: 340 | X142: 0 | Y142: 0 | Z142: 98274 | AA142: 0 | AB142: 0 | AC142: 0 | AD142: 2377 | AE142: 0
A143: 明細部 | B143: 1 | C143: 男 | D143: 入院 | E143: 胆石症 | F143: 0 | G143: 51 | H143: 0 | I143: 0 | J143: 0 | K143: 0 | L143: 7183 | M143: 0 | N143: 0 | O143: 0 | P143: 88 | Q143: 0 | R143: 0 | S143: 14369 | T143: 0 | U143: 0 | V143: 0 | W143: 340 | X143: 0 | Y143: 0 | Z143: 98274 | AA143: 0 | AB143: 0 | AC143: 0 | AD143: 2377 | AE143: 0
A144: 明細部 | B144: 1 | C144: 男 | D144: 入院 | E144: 慢性膵炎 | F144: 0 | G144: 51 | H144: 0 | I144: 0 | J144: 0 | K144: 0 | L144: 7183 | M144: 0 | N144: 0 | O144: 0 | P144: 88 | Q144: 0 | R144: 0 | S144: 14369 | T144: 0 | U144: 0 | V144: 0 | W144: 340 | X144: 0 | Y144: 0 | Z144: 98274 | AA144: 0 | AB144: 0 | AC144: 0 | AD144: 2377 | AE144: 0
A145: 明細部 | B145: 1 | C145: 男 | D145: 入院 | E145: 膵臓がん | F145: 0 | G145: 51 | H145: 0 | I145: 0 | J145: 0 | K145: 0 | L145: 7183 | M145: 0 | N145: 0 | O145: 0 | P145: 88 | Q145: 0 | R145: 0 | S145: 14369 | T145: 0 | U145: 0 | V145: 0 | W145: 340 | X145: 0 | Y145: 0 | Z145: 98274 | AA145: 0 | AB145: 0 | AC145: 0 | AD145: 2377 | AE145: 0
A146: 明細部 | B146: 1 | C146: 男 | D146: 入院 | E146: 貧血 | F146: 0 | G146: 51 | H146: 0 | I146: 0 | J146: 0 | K146: 0 | L146: 7183 | M146: 0 | N146: 0 | O146: 0 | P146: 88 | Q146: 0 | R146: 0 | S146: 14369 | T146: 0 | U146: 0 | V146: 0 | W146: 340 | X146: 0 | Y146: 0 | Z146: 98274 | AA146: 0 | AB146: 0 | AC146: 0 | AD146: 2377 | AE146: 0
A147: 明細部 | B147: 1 | C147: 男 | D147: 入院 | E147: 白血病 | F147: 0 | G147: 51 | H147: 0 | I147: 0 | J147: 0 | K147: 0 | L147: 7183 | M147: 0 | N147: 0 | O147: 0 | P147: 88 | Q147: 0 | R147: 0 | S147: 14369 | T147: 0 | U147: 0 | V147: 0 | W147: 340 | X147: 0 | Y147: 0 | Z147: 98274 | AA147: 0 | AB147: 0 | AC147: 0 | AD147: 2377 | AE147: 0
A148: 明細部 | B148: 1 | C148: 男 | D148: 入院 | E148: 難聴 | F148: 0 | G148: 51 | H148: 0 | I148: 0 | J148: 0 | K148: 0 | L148: 7183 | M148: 0 | N148: 0 | O148: 0 | P148: 88 | Q148: 0 | R148: 0 | S148: 14369 | T148: 0 | U148: 0 | V148: 0 | W148: 340 | X148: 0 | Y148: 0 | Z148: 98274 | AA148: 0 | AB148: 0 | AC148: 0 | AD148: 2377 | AE148: 0
A149: 明細部 | B149: 1 | C149: 男 | D149: 入院 | E149: 喉頭がん | F149: 0 | G149: 51 | H149: 0 | I149: 0 | J149: 0 | K149: 0 | L149: 7183 | M149: 0 | N149: 0 | O149: 0 | P149: 88 | Q149: 0 | R149: 0 | S149: 14369 | T149: 0 | U149: 0 | V149: 0 | W149: 340 | X149: 0 | Y149: 0 | Z149: 98274 | AA149: 0 | AB149: 0 | AC149: 0 | AD149: 2377 | AE149: 0
A150: 明細部 | B150: 1 | C150: 男 | D150: 入院 | E150: 骨折 | F150: 0 | G150: 51 | H150: 0 | I150: 0 | J150: 0 | K150: 0 | L150: 7183 | M150: 0 | N150: 0 | O150: 0 | P150: 88 | Q150: 0 | R150: 0 | S150: 14369 | T150: 0 | U150: 0 | V150: 0 | W150: 340 | X150: 0 | Y150: 0 | Z150: 98274 | AA150: 0 | AB150: 0 | AC150: 0 | AD150: 2377 | AE150: 0
A151: 明細部 | B151: 1 | C151: 男 | D151: 入院 | E151: 骨粗しょう症 | F151: 0 | G151: 51 | H151: 0 | I151: 0 | J151: 0 | K151: 0 | L151: 7183 | M151: 0 | N151: 0 | O151: 0 | P151: 88 | Q151: 0 | R151: 0 | S151: 14369 | T151: 0 | U151: 0 | V151: 0 | W151: 340 | X151: 0 | Y151: 0 | Z151: 98274 | AA151: 0 | AB151: 0 | AC151: 0 | AD151: 2377 | AE151: 0
A152: 明細部 | B152: 1 | C152: 男 | D152: 入院 | E152: 骨がん | F152: 0 | G152: 51 | H152: 0 | I152: 0 | J152: 0 | K152: 0 | L152: 7183 | M152: 0 | N152: 0 | O152: 0 | P152: 88 | Q152: 0 | R152: 0 | S152: 14369 | T152: 0 | U152: 0 | V152: 0 | W152: 340 | X152: 0 | Y152: 0 | Z152: 98274 | AA152: 0 | AB152: 0 | AC152: 0 | AD152: 2377 | AE152: 0
A153: 明細部 | B153: 1 | C153: 男 | D153: 入院 | E153: 関節疾患 | F153: 0 | G153: 51 | H153: 0 | I153: 0 | J153: 0 | K153: 0 | L153: 7183 | M153: 0 | N153: 0 | O153: 0 | P153: 88 | Q153: 0 | R153: 0 | S153: 14369 | T153: 0 | U153: 0 | V153: 0 | W153: 340 | X153: 0 | Y153: 0 | Z153: 98274 | AA153: 0 | AB153: 0 | AC153: 0 | AD153: 2377 | AE153: 0
A154: 明細部 | B154: 1 | C154: 男 | D154: 入院 | E154: 腎炎・ネフローゼ | F154: 0 | G154: 51 | H154: 0 | I154: 0 | J154: 0 | K154: 0 | L154: 7183 | M154: 0 | N154: 0 | O154: 0 | P154: 88 | Q154: 0 | R154: 0 | S154: 14369 | T154: 0 | U154: 0 | V154: 0 | W154: 340 | X154: 0 | Y154: 0 | Z154: 98274 | AA154: 0 | AB154: 0 | AC154: 0 | AD154: 2377 | AE154: 0
A155: 明細部 | B155: 1 | C155: 男 | D155: 入院 | E155: 慢性腎不全（透析なし） | F155: 0 | G155: 51 | H155: 0 | I155: 0 | J155: 0 | K155: 0 | L155: 7183 | M155: 0 | N155: 0 | O155: 0 | P155: 88 | Q155: 0 | R155: 0 | S155: 14369 | T155: 0 | U155: 0 | V155: 0 | W155: 340 | X155: 0 | Y155: 0 | Z155: 98274 | AA155: 0 | AB155: 0 | AC155: 0 | AD155: 2377 | AE155: 0
A156: 明細部 | B156: 1 | C156: 男 | D156: 入院 | E156: 慢性腎不全（透析あり） | F156: 0 | G156: 51 | H156: 0 | I156: 0 | J156: 0 | K156: 0 | L156: 7183 | M156: 0 | N156: 0 | O156: 0 | P156: 88 | Q156: 0 | R156: 0 | S156: 14369 | T156: 0 | U156: 0 | V156: 0 | W156: 340 | X156: 0 | Y156: 0 | Z156: 98274 | AA156: 0 | AB156: 0 | AC156: 0 | AD156: 2377 | AE156: 0
A157: 明細部 | B157: 1 | C157: 男 | D157: 入院 | E157: 腎結石 | F157: 0 | G157: 51 | H157: 0 | I157: 0 | J157: 0 | K157: 0 | L157: 7183 | M157: 0 | N157: 0 | O157: 0 | P157: 88 | Q157: 0 | R157: 0 | S157: 14369 | T157: 0 | U157: 0 | V157: 0 | W157: 340 | X157: 0 | Y157: 0 | Z157: 98274 | AA157: 0 | AB157: 0 | AC157: 0 | AD157: 2377 | AE157: 0
A158: 明細部 | B158: 1 | C158: 男 | D158: 入院 | E158: 尿路結石（尿管・膀胱） | F158: 0 | G158: 51 | H158: 0 | I158: 0 | J158: 0 | K158: 0 | L158: 7183 | M158: 0 | N158: 0 | O158: 0 | P158: 88 | Q158: 0 | R158: 0 | S158: 14369 | T158: 0 | U158: 0 | V158: 0 | W158: 340 | X158: 0 | Y158: 0 | Z158: 98274 | AA158: 0 | AB158: 0 | AC158: 0 | AD158: 2377 | AE158: 0
A159: 明細部 | B159: 1 | C159: 男 | D159: 入院 | E159: 腎臓がん | F159: 0 | G159: 51 | H159: 0 | I159: 0 | J159: 0 | K159: 0 | L159: 7183 | M159: 0 | N159: 0 | O159: 0 | P159: 88 | Q159: 0 | R159: 0 | S159: 14369 | T159: 0 | U159: 0 | V159: 0 | W159: 340 | X159: 0 | Y159: 0 | Z159: 98274 | AA159: 0 | AB159: 0 | AC159: 0 | AD159: 2377 | AE159: 0
A160: 明細部 | B160: 1 | C160: 男 | D160: 入院 | E160: 膀胱がん | F160: 0 | G160: 51 | H160: 0 | I160: 0 | J160: 0 | K160: 0 | L160: 7183 | M160: 0 | N160: 0 | O160: 0 | P160: 88 | Q160: 0 | R160: 0 | S160: 14369 | T160: 0 | U160: 0 | V160: 0 | W160: 340 | X160: 0 | Y160: 0 | Z160: 98274 | AA160: 0 | AB160: 0 | AC160: 0 | AD160: 2377 | AE160: 0
A161: 明細部 | B161: 1 | C161: 男 | D161: 入院 | E161: 前立腺がん | F161: 0 | G161: 51 | H161: 0 | I161: 0 | J161: 0 | K161: 0 | L161: 7183 | M161: 0 | N161: 0 | O161: 0 | P161: 88 | Q161: 0 | R161: 0 | S161: 14369 | T161: 0 | U161: 0 | V161: 0 | W161: 340 | X161: 0 | Y161: 0 | Z161: 98274 | AA161: 0 | AB161: 0 | AC161: 0 | AD161: 2377 | AE161: 0
A162: 明細部 | B162: 1 | C162: 男 | D162: 入院 | E162: 前立腺肥大 | F162: 0 | G162: 51 | H162: 0 | I162: 0 | J162: 0 | K162: 0 | L162: 7183 | M162: 0 | N162: 0 | O162: 0 | P162: 88 | Q162: 0 | R162: 0 | S162: 14369 | T162: 0 | U162: 0 | V162: 0 | W162: 340 | X162: 0 | Y162: 0 | Z162: 98274 | AA162: 0 | AB162: 0 | AC162: 0 | AD162: 2377 | AE162: 0
A163: 明細部 | B163: 1 | C163: 男 | D163: 入院 | E163: 子宮頚がん | F163: 0 | G163: 51 | H163: 0 | I163: 0 | J163: 0 | K163: 0 | L163: 7183 | M163: 0 | N163: 0 | O163: 0 | P163: 88 | Q163: 0 | R163: 0 | S163: 14369 | T163: 0 | U163: 0 | V163: 0 | W163: 340 | X163: 0 | Y163: 0 | Z163: 98274 | AA163: 0 | AB163: 0 | AC163: 0 | AD163: 2377 | AE163: 0
A164: 明細部 | B164: 1 | C164: 男 | D164: 入院 | E164: 子宮体がん | F164: 0 | G164: 51 | H164: 0 | I164: 0 | J164: 0 | K164: 0 | L164: 7183 | M164: 0 | N164: 0 | O164: 0 | P164: 88 | Q164: 0 | R164: 0 | S164: 14369 | T164: 0 | U164: 0 | V164: 0 | W164: 340 | X164: 0 | Y164: 0 | Z164: 98274 | AA164: 0 | AB164: 0 | AC164: 0 | AD164: 2377 | AE164: 0
A165: 明細部 | B165: 1 | C165: 男 | D165: 入院 | E165: 子宮筋腫 | F165: 0 | G165: 51 | H165: 0 | I165: 0 | J165: 0 | K165: 0 | L165: 7183 | M165: 0 | N165: 0 | O165: 0 | P165: 88 | Q165: 0 | R165: 0 | S165: 14369 | T165: 0 | U165: 0 | V165: 0 | W165: 340 | X165: 0 | Y165: 0 | Z165: 98274 | AA165: 0 | AB165: 0 | AC165: 0 | AD165: 2377 | AE165: 0
A166: 明細部 | B166: 1 | C166: 男 | D166: 入院 | E166: 卵巣腫瘍（悪性） | F166: 0 | G166: 51 | H166: 0 | I166: 0 | J166: 0 | K166: 0 | L166: 7183 | M166: 0 | N166: 0 | O166: 0 | P166: 88 | Q166: 0 | R166: 0 | S166: 14369 | T166: 0 | U166: 0 | V166: 0 | W166: 340 | X166: 0 | Y166: 0 | Z166: 98274 | AA166: 0 | AB166: 0 | AC166: 0 | AD166: 2377 | AE166: 0
A167: 明細部 | B167: 1 | C167: 男 | D167: 入院 | E167: 卵巣腫瘍（良性） | F167: 0 | G167: 51 | H167: 0 | I167: 0 | J167: 0 | K167: 0 | L167: 7183 | M167: 0 | N167: 0 | O167: 0 | P167: 88 | Q167: 0 | R167: 0 | S167: 14369 | T167: 0 | U167: 0 | V167: 0 | W167: 340 | X167: 0 | Y167: 0 | Z167: 98274 | AA167: 0 | AB167: 0 | AC167: 0 | AD167: 2377 | AE167: 0
A168: 明細部 | B168: 1 | C168: 男 | D168: 入院 | E168: 乳がん | F168: 0 | G168: 51 | H168: 0 | I168: 0 | J168: 0 | K168: 0 | L168: 7183 | M168: 0 | N168: 0 | O168: 0 | P168: 88 | Q168: 0 | R168: 0 | S168: 14369 | T168: 0 | U168: 0 | V168: 0 | W168: 340 | X168: 0 | Y168: 0 | Z168: 98274 | AA168: 0 | AB168: 0 | AC168: 0 | AD168: 2377 | AE168: 0
A169: 明細部 | B169: 1 | C169: 男 | D169: 入院 | E169: 乳腺症 | F169: 0 | G169: 51 | H169: 0 | I169: 0 | J169: 0 | K169: 0 | L169: 7183 | M169: 0 | N169: 0 | O169: 0 | P169: 88 | Q169: 0 | R169: 0 | S169: 14369 | T169: 0 | U169: 0 | V169: 0 | W169: 340 | X169: 0 | Y169: 0 | Z169: 98274 | AA169: 0 | AB169: 0 | AC169: 0 | AD169: 2377 | AE169: 0
A170: 明細部 | B170: 1 | C170: 男 | D170: 入院 | E170: その他 | F170: 0 | G170: 51 | H170: 0 | I170: 0 | J170: 0 | K170: 0 | L170: 7183 | M170: 0 | N170: 0 | O170: 0 | P170: 88 | Q170: 0 | R170: 0 | S170: 14369 | T170: 0 | U170: 0 | V170: 0 | W170: 340 | X170: 0 | Y170: 0 | Z170: 98274 | AA170: 0 | AB170: 0 | AC170: 0 | AD170: 2377 | AE170: 0
A171: 明細部 | B171: 1 | C171: 男 | D171: 入院 | E171: 小児科 | F171: 6 | G171: 51 | H171: 20.49386136 | I171: 1194228 | J171: 241556 | K171: 496 | L171: 7183 | M171: 12.6668162 | N171: 22617799 | O171: 57991 | P171: 88 | Q171: 330263 | R171: 1858 | S171: 14369 | T171: 21.36894736 | U171: 55837352 | V171: 47200 | W171: 340 | X171: 219977 | Y171: 9796 | Z171: 98274 | AA171: 20.09830703 | AB171: 357641680 | AC171: 48313 | AD171: 2377 | AE171: 193784
A172: 明細部 | B172: 2 | C172: 男 | D172: 入院 | E172: 脳梗塞 | F172: 0 | G172: 63 | H172: 0 | I172: 0 | J172: 0 | K172: 0 | L172: 7383 | M172: 0 | N172: 0 | O172: 0 | P172: 88 | Q172: 0 | R172: 0 | S172: 15109 | T172: 0 | U172: 0 | V172: 0 | W172: 340 | X172: 0 | Y172: 0 | Z172: 100594 | AA172: 0 | AB172: 0 | AC172: 0 | AD172: 2377 | AE172: 0
A173: 明細部 | B173: 2 | C173: 男 | D173: 入院 | E173: クモ膜下出血 | F173: 0 | G173: 63 | H173: 0 | I173: 0 | J173: 0 | K173: 0 | L173: 7383 | M173: 0 | N173: 0 | O173: 0 | P173: 88 | Q173: 0 | R173: 0 | S173: 15109 | T173: 0 | U173: 0 | V173: 0 | W173: 340 | X173: 0 | Y173: 0 | Z173: 100594 | AA173: 0 | AB173: 0 | AC173: 0 | AD173: 2377 | AE173: 0
A174: 明細部 | B174: 2 | C174: 男 | D174: 入院 | E174: 脳出血 | F174: 0 | G174: 63 | H174: 0 | I174: 0 | J174: 0 | K174: 0 | L174: 7383 | M174: 0 | N174: 0 | O174: 0 | P174: 88 | Q174: 0 | R174: 0 | S174: 15109 | T174: 0 | U174: 0 | V174: 0 | W174: 340 | X174: 0 | Y174: 0 | Z174: 100594 | AA174: 0 | AB174: 0 | AC174: 0 | AD174: 2377 | AE174: 0
A175: 明細部 | B175: 2 | C175: 男 | D175: 入院 | E175: 一過性脳虚血発作 | F175: 0 | G175: 63 | H175: 0 | I175: 0 | J175: 0 | K175: 0 | L175: 7383 | M175: 0 | N175: 0 | O175: 0 | P175: 88 | Q175: 0 | R175: 0 | S175: 15109 | T175: 0 | U175: 0 | V175: 0 | W175: 340 | X175: 0 | Y175: 0 | Z175: 100594 | AA175: 0 | AB175: 0 | AC175: 0 | AD175: 2377 | AE175: 0
A176: 明細部 | B176: 2 | C176: 男 | D176: 入院 | E176: パーキンソン病 | F176: 0 | G176: 63 | H176: 0 | I176: 0 | J176: 0 | K176: 0 | L176: 7383 | M176: 0 | N176: 0 | O176: 0 | P176: 88 | Q176: 0 | R176: 0 | S176: 15109 | T176: 0 | U176: 0 | V176: 0 | W176: 340 | X176: 0 | Y176: 0 | Z176: 100594 | AA176: 0 | AB176: 0 | AC176: 0 | AD176: 2377 | AE176: 0
A177: 明細部 | B177: 2 | C177: 男 | D177: 入院 | E177: 脳腫瘍 | F177: 0 | G177: 63 | H177: 0 | I177: 0 | J177: 0 | K177: 0 | L177: 7383 | M177: 0 | N177: 0 | O177: 0 | P177: 88 | Q177: 0 | R177: 0 | S177: 15109 | T177: 0 | U177: 0 | V177: 0 | W177: 340 | X177: 0 | Y177: 0 | Z177: 100594 | AA177: 0 | AB177: 0 | AC177: 0 | AD177: 2377 | AE177: 0
A178: 明細部 | B178: 2 | C178: 男 | D178: 入院 | E178: うつ病 | F178: 0 | G178: 63 | H178: 0 | I178: 0 | J178: 0 | K178: 0 | L178: 7383 | M178: 0 | N178: 0 | O178: 0 | P178: 88 | Q178: 0 | R178: 0 | S178: 15109 | T178: 0 | U178: 0 | V178: 0 | W178: 340 | X178: 0 | Y178: 0 | Z178: 100594 | AA178: 0 | AB178: 0 | AC178: 0 | AD178: 2377 | AE178: 0
A179: 明細部 | B179: 2 | C179: 男 | D179: 入院 | E179: 認知症 | F179: 0 | G179: 63 | H179: 0 | I179: 0 | J179: 0 | K179: 0 | L179: 7383 | M179: 0 | N179: 0 | O179: 0 | P179: 88 | Q179: 0 | R179: 0 | S179: 15109 | T179: 0 | U179: 0 | V179: 0 | W179: 340 | X179: 0 | Y179: 0 | Z179: 100594 | AA179: 0 | AB179: 0 | AC179: 0 | AD179: 2377 | AE179: 0
A180: 明細部 | B180: 2 | C180: 男 | D180: 入院 | E180: 統合失調症 | F180: 0 | G180: 63 | H180: 0 | I180: 0 | J180: 0 | K180: 0 | L180: 7383 | M180: 0 | N180: 0 | O180: 0 | P180: 88 | Q180: 0 | R180: 0 | S180: 15109 | T180: 0 | U180: 0 | V180: 0 | W180: 340 | X180: 0 | Y180: 0 | Z180: 100594 | AA180: 0 | AB180: 0 | AC180: 0 | AD180: 2377 | AE180: 0
A181: 明細部 | B181: 2 | C181: 男 | D181: 入院 | E181: 緑内障 | F181: 0 | G181: 63 | H181: 0 | I181: 0 | J181: 0 | K181: 0 | L181: 7383 | M181: 0 | N181: 0 | O181: 0 | P181: 88 | Q181: 0 | R181: 0 | S181: 15109 | T181: 0 | U181: 0 | V181: 0 | W181: 340 | X181: 0 | Y181: 0 | Z181: 100594 | AA181: 0 | AB181: 0 | AC181: 0 | AD181: 2377 | AE181: 0
A182: 明細部 | B182: 2 | C182: 男 | D182: 入院 | E182: 白内障 | F182: 0 | G182: 63 | H182: 0 | I182: 0 | J182: 0 | K182: 0 | L182: 7383 | M182: 0 | N182: 0 | O182: 0 | P182: 88 | Q182: 0 | R182: 0 | S182: 15109 | T182: 0 | U182: 0 | V182: 0 | W182: 340 | X182: 0 | Y182: 0 | Z182: 100594 | AA182: 0 | AB182: 0 | AC182: 0 | AD182: 2377 | AE182: 0
A183: 明細部 | B183: 2 | C183: 男 | D183: 入院 | E183: 糖尿病網膜症 | F183: 0 | G183: 63 | H183: 0 | I183: 0 | J183: 0 | K183: 0 | L183: 7383 | M183: 0 | N183: 0 | O183: 0 | P183: 88 | Q183: 0 | R183: 0 | S183: 15109 | T183: 0 | U183: 0 | V183: 0 | W183: 340 | X183: 0 | Y183: 0 | Z183: 100594 | AA183: 0 | AB183: 0 | AC183: 0 | AD183: 2377 | AE183: 0
A184: 明細部 | B184: 2 | C184: 男 | D184: 入院 | E184: インフルエンザ | F184: 0 | G184: 63 | H184: 0 | I184: 0 | J184: 0 | K184: 0 | L184: 7383 | M184: 0 | N184: 0 | O184: 0 | P184: 88 | Q184: 0 | R184: 0 | S184: 15109 | T184: 0 | U184: 0 | V184: 0 | W184: 340 | X184: 0 | Y184: 0 | Z184: 100594 | AA184: 0 | AB184: 0 | AC184: 0 | AD184: 2377 | AE184: 0
A185: 明細部 | B185: 2 | C185: 男 | D185: 入院 | E185: 肺がん | F185: 0 | G185: 63 | H185: 0 | I185: 0 | J185: 0 | K185: 0 | L185: 7383 | M185: 0 | N185: 0 | O185: 0 | P185: 88 | Q185: 0 | R185: 0 | S185: 15109 | T185: 0 | U185: 0 | V185: 0 | W185: 340 | X185: 0 | Y185: 0 | Z185: 100594 | AA185: 0 | AB185: 0 | AC185: 0 | AD185: 2377 | AE185: 0
A186: 明細部 | B186: 2 | C186: 男 | D186: 入院 | E186: 肺炎 | F186: 0 | G186: 63 | H186: 0 | I186: 0 | J186: 0 | K186: 0 | L186: 7383 | M186: 0 | N186: 0 | O186: 0 | P186: 88 | Q186: 0 | R186: 0 | S186: 15109 | T186: 0 | U186: 0 | V186: 0 | W186: 340 | X186: 0 | Y186: 0 | Z186: 100594 | AA186: 0 | AB186: 0 | AC186: 0 | AD186: 2377 | AE186: 0
A187: 明細部 | B187: 2 | C187: 男 | D187: 入院 | E187: 肺結核・胸膜炎 | F187: 0 | G187: 63 | H187: 0 | I187: 0 | J187: 0 | K187: 0 | L187: 7383 | M187: 0 | N187: 0 | O187: 0 | P187: 88 | Q187: 0 | R187: 0 | S187: 15109 | T187: 0 | U187: 0 | V187: 0 | W187: 340 | X187: 0 | Y187: 0 | Z187: 100594 | AA187: 0 | AB187: 0 | AC187: 0 | AD187: 2377 | AE187: 0
A188: 明細部 | B188: 2 | C188: 男 | D188: 入院 | E188: 気管支喘息 | F188: 0 | G188: 63 | H188: 0 | I188: 0 | J188: 0 | K188: 0 | L188: 7383 | M188: 0 | N188: 0 | O188: 0 | P188: 88 | Q188: 0 | R188: 0 | S188: 15109 | T188: 0 | U188: 0 | V188: 0 | W188: 340 | X188: 0 | Y188: 0 | Z188: 100594 | AA188: 0 | AB188: 0 | AC188: 0 | AD188: 2377 | AE188: 0
A189: 明細部 | B189: 2 | C189: 男 | D189: 入院 | E189: 肺気腫 | F189: 0 | G189: 63 | H189: 0 | I189: 0 | J189: 0 | K189: 0 | L189: 7383 | M189: 0 | N189: 0 | O189: 0 | P189: 88 | Q189: 0 | R189: 0 | S189: 15109 | T189: 0 | U189: 0 | V189: 0 | W189: 340 | X189: 0 | Y189: 0 | Z189: 100594 | AA189: 0 | AB189: 0 | AC189: 0 | AD189: 2377 | AE189: 0
A190: 明細部 | B190: 2 | C190: 男 | D190: 入院 | E190: 慢性閉塞性肺疾患（COPD） | F190: 0 | G190: 63 | H190: 0 | I190: 0 | J190: 0 | K190: 0 | L190: 7383 | M190: 0 | N190: 0 | O190: 0 | P190: 88 | Q190: 0 | R190: 0 | S190: 15109 | T190: 0 | U190: 0 | V190: 0 | W190: 340 | X190: 0 | Y190: 0 | Z190: 100594 | AA190: 0 | AB190: 0 | AC190: 0 | AD190: 2377 | AE190: 0
A191: 明細部 | B191: 2 | C191: 男 | D191: 入院 | E191: 間質性肺炎 | F191: 0 | G191: 63 | H191: 0 | I191: 0 | J191: 0 | K191: 0 | L191: 7383 | M191: 0 | N191: 0 | O191: 0 | P191: 88 | Q191: 0 | R191: 0 | S191: 15109 | T191: 0 | U191: 0 | V191: 0 | W191: 340 | X191: 0 | Y191: 0 | Z191: 100594 | AA191: 0 | AB191: 0 | AC191: 0 | AD191: 2377 | AE191: 0
A192: 明細部 | B192: 2 | C192: 男 | D192: 入院 | E192: 気胸 | F192: 0 | G192: 63 | H192: 0 | I192: 0 | J192: 0 | K192: 0 | L192: 7383 | M192: 0 | N192: 0 | O192: 0 | P192: 88 | Q192: 0 | R192: 0 | S192: 15109 | T192: 0 | U192: 0 | V192: 0 | W192: 340 | X192: 0 | Y192: 0 | Z192: 100594 | AA192: 0 | AB192: 0 | AC192: 0 | AD192: 2377 | AE192: 0
A193: 明細部 | B193: 2 | C193: 男 | D193: 入院 | E193: 睡眠時無呼吸症候群 | F193: 0 | G193: 63 | H193: 0 | I193: 0 | J193: 0 | K193: 0 | L193: 7383 | M193: 0 | N193: 0 | O193: 0 | P193: 88 | Q193: 0 | R193: 0 | S193: 15109 | T193: 0 | U193: 0 | V193: 0 | W193: 340 | X193: 0 | Y193: 0 | Z193: 100594 | AA193: 0 | AB193: 0 | AC193: 0 | AD193: 2377 | AE193: 0
A194: 明細部 | B194: 2 | C194: 男 | D194: 入院 | E194: 非定型（非結核性）抗酸菌症 | F194: 0 | G194: 63 | H194: 0 | I194: 0 | J194: 0 | K194: 0 | L194: 7383 | M194: 0 | N194: 0 | O194: 0 | P194: 88 | Q194: 0 | R194: 0 | S194: 15109 | T194: 0 | U194: 0 | V194: 0 | W194: 340 | X194: 0 | Y194: 0 | Z194: 100594 | AA194: 0 | AB194: 0 | AC194: 0 | AD194: 2377 | AE194: 0
A195: 明細部 | B195: 2 | C195: 男 | D195: 入院 | E195: 脂質異常症 | F195: 0 | G195: 63 | H195: 0 | I195: 0 | J195: 0 | K195: 0 | L195: 7383 | M195: 0 | N195: 0 | O195: 0 | P195: 88 | Q195: 0 | R195: 0 | S195: 15109 | T195: 0 | U195: 0 | V195: 0 | W195: 340 | X195: 0 | Y195: 0 | Z195: 100594 | AA195: 0 | AB195: 0 | AC195: 0 | AD195: 2377 | AE195: 0
A196: 明細部 | B196: 2 | C196: 男 | D196: 入院 | E196: 糖尿病 | F196: 0 | G196: 63 | H196: 0 | I196: 0 | J196: 0 | K196: 0 | L196: 7383 | M196: 0 | N196: 0 | O196: 0 | P196: 88 | Q196: 0 | R196: 0 | S196: 15109 | T196: 0 | U196: 0 | V196: 0 | W196: 340 | X196: 0 | Y196: 0 | Z196: 100594 | AA196: 0 | AB196: 0 | AC196: 0 | AD196: 2377 | AE196: 0
A197: 明細部 | B197: 2 | C197: 男 | D197: 入院 | E197: 痛風・高尿酸血症 | F197: 0 | G197: 63 | H197: 0 | I197: 0 | J197: 0 | K197: 0 | L197: 7383 | M197: 0 | N197: 0 | O197: 0 | P197: 88 | Q197: 0 | R197: 0 | S197: 15109 | T197: 0 | U197: 0 | V197: 0 | W197: 340 | X197: 0 | Y197: 0 | Z197: 100594 | AA197: 0 | AB197: 0 | AC197: 0 | AD197: 2377 | AE197: 0
A198: 明細部 | B198: 2 | C198: 男 | D198: 入院 | E198: 甲状腺機能低下症 | F198: 0 | G198: 63 | H198: 0 | I198: 0 | J198: 0 | K198: 0 | L198: 7383 | M198: 0 | N198: 0 | O198: 0 | P198: 88 | Q198: 0 | R198: 0 | S198: 15109 | T198: 0 | U198: 0 | V198: 0 | W198: 340 | X198: 0 | Y198: 0 | Z198: 100594 | AA198: 0 | AB198: 0 | AC198: 0 | AD198: 2377 | AE198: 0
A199: 明細部 | B199: 2 | C199: 男 | D199: 入院 | E199: 甲状腺機能亢進症 | F199: 0 | G199: 63 | H199: 0 | I199: 0 | J199: 0 | K199: 0 | L199: 7383 | M199: 0 | N199: 0 | O199: 0 | P199: 88 | Q199: 0 | R199: 0 | S199: 15109 | T199: 0 | U199: 0 | V199: 0 | W199: 340 | X199: 0 | Y199: 0 | Z199: 100594 | AA199: 0 | AB199: 0 | AC199: 0 | AD199: 2377 | AE199: 0
A200: 明細部 | B200: 2 | C200: 男 | D200: 入院 | E200: 甲状腺がん | F200: 0 | G200: 63 | H200: 0 | I200: 0 | J200: 0 | K200: 0 | L200: 7383 | M200: 0 | N200: 0 | O200: 0 | P200: 88 | Q200: 0 | R200: 0 | S200: 15109 | T200: 0 | U200: 0 | V200: 0 | W200: 340 | X200: 0 | Y200: 0 | Z200: 100594 | AA200: 0 | AB200: 0 | AC200: 0 | AD200: 2377 | AE200: 0
... 2050 more rows

Sheet 出力票
D1: 集計対象年齢 下限 | E1: 0 | F1: 上限 | G1: 74 | H1: （最大0～74歳） | J1: 年齢を変更後は必ず「計算開始」をクリックして再計算して下さい。
A2: 疾病別医療費分析（細小（８２）分類）［数値表］ | BM2: サンプル市
A3: =+CSVデータ!C2&" "&CSVデータ!E2&" "&E1&"～"&G1&"歳" -> サンプル市 H26年度（累計） 0～74歳 | U3: =TODAY() -> 2016-09-21 | BM3: 見本データ
A4: 入院・外来 | B4: 性別 | C4: 疾患名 | D4: 保険者（地区） | G4: 標準化医療費（期待総点数） | J4: 標準化医療費（期待総件数） | M4: 標準化医療費の差 | P4: 標準化医療費の比（地域差指数） | S4: 標準化比（レセプト件数）
D5: 被保険者数 | E5: レセプト件数 | F5: 総点数(A) | G5: vs.県(B) | H5: vs.同規模(C) | I5: vs.国(D) | J5: vs.県 | K5: vs.同規模 | L5: vs.国 | M5: vs.県(A-B) | N5: vs.同規模(A-C) | O5: vs.国(A-D) | P5: vs.県(A/B) | Q5: vs.同規模(A/C) | R5: vs.国(A/D) | S5: vs.県 | T5: vs.同規模 | U5: vs.国 | BM5: 見本データ | BP5: 見本データ
A6: 入院 | B6: 男性 | C6: 脳梗塞 | D6: 12575 | E6: 22 | F6: 1522748 | G6: 2940203.463 | H6: 3006776.545 | I6: 2948337.172 | J6: 44.50005496 | K6: 53.56436768 | L6: 45.61253849 | M6: =+F6-G6 -> -1417455.463 | N6: =+F6-H6 -> -1484028.545 | O6: =+F6-I6 -> -1425589.172 | P6: =+F6/G6 -> 0.5179056549 | Q6: =+F6/H6 -> 0.5064386984 | R6: =+F6/I6 -> 0.5164768856 | S6: =+E6/J6 -> 0.4943814119 | T6: =+E6/K6 -> 0.410720801 | U6: =+E6/L6 -> 0.4823235173
A7: 入院 | B7: 男性 | C7: クモ膜下出血 | D7: 12575 | E7: 6 | F7: 602730 | G7: 325302.5104 | H7: 296461.5385 | I7: 303078.2605 | J7: 3.545333688 | K7: 3.758149596 | L7: 3.406098027 | M7: =+F7-G7 -> 277427.4896 | N7: =+F7-H7 -> 306268.4615 | O7: =+F7-I7 -> 299651.7395 | P7: =+F7/G7 -> 1.85282923 | Q7: =+F7/H7 -> 2.033079917 | R7: =+F7/I7 -> 1.98869427 | S7: =+E7/J7 -> 1.692365382 | T7: =+E7/K7 -> 1.596530379 | U7: =+E7/L7 -> 1.761546483
A8: 入院 | B8: 男性 | C8: 脳出血 | D8: 12575 | E8: 12 | F8: 863779 | G8: 1531792.973 | H8: 1508051.471 | I8: 1508100.785 | J8: 20.65398072 | K8: 24.59889964 | L8: 21.33817886 | M8: -668013.9732 | N8: -644272.4706 | O8: -644321.7851 | P8: 0.5639006152 | Q8: 0.5727781955 | R8: 0.5727594658 | S8: 0.5810018013 | T8: 0.4878266987 | U8: 0.5623722661
A9: 入院 | B9: 男性 | C9: 一過性脳虚血発作 | D9: 12575 | E9: 0 | F9: 0 | G9: 9855.255774 | H9: 19366.61401 | I9: 19714.71713 | J9: 0.3444291012 | K9: 0.5776224676 | L9: 0.507790742 | M9: -9855.255774 | N9: -19366.61401 | O9: -19714.71713 | P9: 0 | Q9: 0 | R9: 0 | S9: 0 | T9: 0 | U9: 0
A10: 入院 | B10: 男性 | C10: パーキンソン病 | D10: 12575 | E10: 0 | F10: 0 | G10: 385124.2424 | H10: 444173.5292 | I10: 472162.4354 | J10: 6.02464759 | K10: 8.763334448 | L10: 8.030924998 | M10: -385124.2424 | N10: -444173.5292 | O10: -472162.4354 | P10: 0 | Q10: 0 | R10: 0 | S10: 0 | T10: 0 | U10: 0
A11: 入院 | B11: 男性 | C11: 脳腫瘍 | D11: 12575 | E11: 0 | F11: 0 | G11: 164056.8934 | H11: 248019.181 | I11: 232469.7023 | J11: 1.303612929 | K11: 2.229495975 | L11: 1.848851088 | M11: -164056.8934 | N11: -248019.181 | O11: -232469.7023 | P11: 0 | Q11: 0 | R11: 0 | S11: 0 | T11: 0 | U11: 0
A12: 入院 | B12: 男性 | C12: うつ病 | D12: 12575 | E12: 33 | F12: 1479479 | G12: 1175045.405 | H12: 2089842.587 | I12: 1805614.772 | J12: 30.04899815 | K12: 64.52052565 | L12: 48.32883281 | M12: 304433.5949 | N12: -610363.5869 | O12: -326135.7724 | P12: 1.25908241 | Q12: 0.7079380089 | R12: 0.8193768807 | S12: 1.098206331 | T12: 0.5114651449 | U12: 0.6828222012
A13: 入院 | B13: 男性 | C13: 認知症 | D13: 12575 | E13: 25 | F13: 1001409 | G13: 179831.659 | H13: 261104.0258 | I13: 239305.365 | J13: 4.546380037 | K13: 8.026963826 | L13: 6.303881158 | M13: 821577.341 | N13: 740304.9742 | O13: 762103.635 | P13: 5.568591236 | Q13: 3.835287475 | R13: 4.184649183 | S13: 5.498880383 | T13: 3.114502637 | U13: 3.965810804
A14: 入院 | B14: 男性 | C14: 統合失調症 | D14: 12575 | E14: 128 | F14: 5362522 | G14: 6077157.461 | H14: 10370336.71 | I14: 8833236.521 | J14: 158.7481099 | K14: 324.5868389 | L14: 238.9001707 | M14: -714635.4612 | N14: -5007814.712 | O14: -3470714.521 | P14: 0.8824062951 | Q14: 0.517102014 | R14: 0.6070846159 | S14: 0.8063088126 | T14: 0.3943474739 | U14: 0.5357886503
A15: 入院 | B15: 男性 | C15: 緑内障 | D15: 12575 | E15: 1 | F15: 244 | G15: 110761.1992 | H15: 125898.1889 | I15: 116343.7536 | J15: 3.005414634 | K15: 3.459711627 | L15: 2.996034957 | M15: -110517.1992 | N15: -125654.1889 | O15: -116099.7536 | P15: 0.002202937507 | Q15: 0.001938073948 | R15: 0.002097233348 | S15: 0.3327327912 | T15: 0.2890414311 | U15: 0.3337744767
A16: 入院 | B16: 男性 | C16: 白内障 | D16: 12575 | E16: 10 | F16: 312250 | G16: 323815.9638 | H16: 350122.0081 | I16: 353611.1617 | J16: 10.46467523 | K16: 14.15622866 | L16: 11.91401379 | M16: -11565.96378 | N16: -37872.00811 | O16: -41361.1617 | P16: 0.9642822928 | Q16: 0.8918319693 | R16: 0.8830320811 | S16: 0.9555958292 | T16: 0.706402831 | U16: 0.8393476941
A17: 入院 | B17: 男性 | C17: 糖尿病網膜症 | D17: 12575 | E17: 0 | F17: 0 | G17: 0 | H17: 0 | I17: 0 | J17: 0 | K17: 0 | L17: 0 | M17: 0 | N17: 0 | O17: 0
A18: 入院 | B18: 男性 | C18: インフルエンザ | D18: 12575 | E18: 0 | F18: 0 | G18: 2040.816231 | H18: 6987.63236 | I18: 4965.884343 | J18: 0.1099574758 | K18: 0.1853488612 | L18: 0.170237711 | M18: -2040.816231 | N18: -6987.63236 | O18: -4965.884343 | P18: 0 | Q18: 0 | R18: 0 | S18: 0 | T18: 0 | U18: 0
A19: 入院 | B19: 男性 | C19: 肺がん | D19: 12575 | E19: 19 | F19: 2066043 | G19: 1629354.292 | H19: 1729791.298 | I19: 1837815.981 | J19: 23.1316412 | K19: 28.94737453 | L19: 26.26561451 | M19: 436688.7084 | N19: 336251.7018 | O19: 228227.0189 | P19: 1.268013354 | Q19: 1.194388596 | R19: 1.124183825 | S19: 0.8213857302 | T19: 0.6563634977 | U19: 0.7233792299
A20: 入院 | B20: 男性 | C20: 肺炎 | D20: 12575 | E20: 39 | F20: 2278631 | G20: 1155129.469 | H20: 1408884.584 | I20: 1312383.166 | J20: 23.10789836 | K20: 32.37195326 | L20: 26.04359307 | M20: 1123501.531 | N20: 869746.4157 | O20: 966247.8341 | P20: 1.972619573 | Q20: 1.617329784 | R20: 1.736254365 | S20: 1.687734617 | T20: 1.204746581 | U20: 1.497489225
A21: 入院 | B21: 男性 | C21: 肺結核・胸膜炎 | D21: 12575 | E21: 4 | F21: 197509 | G21: 102806.5354 | H21: 98056.64651 | I21: 102431.2687 | J21: 2.219369331 | K21: 2.89766558 | L21: 2.614117843 | M21: 94702.46461 | N21: 99452.35349 | O21: 95077.7313 | P21: 1.921171638 | Q21: 2.014233681 | R21: 1.928210033 | S21: 1.802313813 | T21: 1.380421546 | U21: 1.530152901
A22: 入院 | B22: 男性 | C22: 気管支喘息 | D22: 12575 | E22: 3 | F22: 23410 | G22: 214439.7203 | H22: 351611.6205 | I22: 303808.8008 | J22: 4.231028445 | K22: 7.632685036 | L22: 6.243598679 | M22: -191029.7203 | N22: -328201.6205 | O22: -280398.8008 | P22: 0.1091682081 | Q22: 0.06657914197 | R22: 0.07705504232 | S22: 0.7090474665 | T22: 0.3930464818 | U22: 0.4804921255
A23: 入院 | B23: 男性 | C23: 肺気腫 | D23: 12575 | E23: 1 | F23: 27166 | G23: 226742.3696 | H23: 237508.0849 | I23: 226357.7761 | J23: 4.119116384 | K23: 5.396845291 | L23: 4.259901448 | M23: -199576.3696 | N23: -210342.0849 | O23: -199191.7761 | P23: 0.1198099854 | Q23: 0.1143792642 | R23: 0.1200135488 | S23: 0.2427705136 | T23: 0.1852934346 | U23: 0.2347472148
A24: 入院 | B24: 男性 | C24: 慢性閉塞性肺疾患（COPD） | D24: 12575 | E24: 1 | F24: 57890 | G24: 143868.3362 | H24: 147959.6167 | I24: 147833.6945 | J24: 2.506624459 | K24: 3.299645612 | L24: 2.887261696 | M24: -85978.33618 | N24: -90069.61667 | O24: -89943.69451 | P24: 0.4023817995 | Q24: 0.3912554067 | R24: 0.3915886712 | S24: 0.3989428876 | T24: 0.3030628491 | U24: 0.3463489303
A25: 入院 | B25: 男性 | C25: 間質性肺炎 | D25: 12575 | E25: 6 | F25: 291815 | G25: 275080.0206 | H25: 258421.621 | I25: 261619.734 | J25: 4.815417097 | K25: 5.424417073 | L25: 4.62432837 | M25: 16734.97945 | N25: 33393.37899 | O25: 30195.26601 | P25: 1.060836768 | Q25: 1.129220531 | R25: 1.115416622 | S25: 1.245997985 | T25: 1.106109637 | U25: 1.297485715
A26: 入院 | B26: 男性 | C26: 気胸 | D26: 12575 | E26: 0 | F26: 0 | G26: 150955.535 | H26: 162315.7115 | I26: 160569.7112 | J26: 2.788789626 | K26: 3.529579912 | L26: 3.004724308 | M26: -150955.535 | N26: -162315.7115 | O26: -160569.7112 | P26: 0 | Q26: 0 | R26: 0 | S26: 0 | T26: 0 | U26: 0
A27: 入院 | B27: 男性 | C27: 睡眠時無呼吸症候群 | D27: 12575 | E27: 13 | F27: 98947 | G27: 39277.09522 | H27: 58731.28933 | I27: 56150.40616 | J27: 4.586022626 | K27: 6.286264067 | L27: 5.567290379 | M27: 59669.90478 | N27: 40215.71067 | O27: 42796.59384 | P27: 2.519203608 | Q27: 1.684740811 | R27: 1.762177814 | S27: 2.834700362 | T27: 2.06800094 | U27: 2.335067711
A28: 入院 | B28: 男性 | C28: 非定型（非結核性）抗酸菌症 | D28: 12575 | E28: 0 | F28: 0 | G28: 5588.123413 | H28: 5749.573392 | I28: 5636.856701 | J28: 0.1297160452 | K28: 0.1900042659 | L28: 0.1625166776 | M28: -5588.123413 | N28: -5749.573392 | O28: -5636.856701 | P28: 0 | Q28: 0 | R28: 0 | S28: 0 | T28: 0 | U28: 0
A29: 入院 | B29: 男性 | C29: 脂質異常症 | D29: 12575 | E29: 0 | F29: 0 | G29: 28860.10446 | H29: 54919.78406 | I29: 47870.75883 | J29: 1.25983281 | K29: 2.366541539 | L29: 2.015137735 | M29: -28860.10446 | N29: -54919.78406 | O29: -47870.75883 | P29: 0 | Q29: 0 | R29: 0 | S29: 0 | T29: 0 | U29: 0
A30: 入院 | B30: 男性 | C30: 糖尿病 | D30: 12575 | E30: 27 | F30: 1398129 | G30: 1031940.952 | H30: 1290315.082 | I30: 1278700.742 | J30: 26.33928303 | K30: 38.75657974 | L30: 33.32518015 | M30: 366188.0479 | N30: 107813.9176 | O30: 119428.2582 | P30: 1.354853683 | Q30: 1.083556272 | R30: 1.09339813 | S30: 1.02508485 | T30: 0.6966559016 | U30: 0.8101981707
A31: 入院 | B31: 男性 | C31: 痛風・高尿酸血症 | D31: 12575 | E31: 0 | F31: 0 | G31: 11758.19333 | H31: 14255.96728 | I31: 13730.15921 | J31: 0.4290780123 | K31: 0.557782277 | L31: 0.5528259614 | M31: -11758.19333 | N31: -14255.96728 | O31: -13730.15921 | P31: 0 | Q31: 0 | R31: 0 | S31: 0 | T31: 0 | U31: 0
A32: 入院 | B32: 男性 | C32: 甲状腺機能低下症 | D32: 12575 | E32: 0 | F32: 0 | G32: 7301.74051 | H32: 14193.97841 | I32: 12652.46791 | J32: 0.2550855826 | K32: 0.5779520892 | L32: 0.4558513932 | M32: -7301.74051 | N32: -14193.97841 | O32: -12652.46791 | P32: 0 | Q32: 0 | R32: 0 | S32: 0 | T32: 0 | U32: 0
A33: 入院 | B33: 男性 | C33: 甲状腺機能亢進症 | D33: 12575 | E33: 0 | F33: 0 | G33: 8404.252109 | H33: 15315.87214 | I33: 14604.35156 | J33: 0.1781936218 | K33: 0.5369055648 | L33: 0.4584716722 | M33: -8404.252109 | N33: -15315.87214 | O33: -14604.35156 | P33: 0 | Q33: 0 | R33: 0 | S33: 0 | T33: 0 | U33: 0
A34: 入院 | B34: 男性 | C34: 甲状腺がん | D34: 12575 | E34: 0 | F34: 0 | G34: 30275.7345 | H34: 56709.04326 | I34: 53398.94999 | J34: 0.4469526391 | K34: 0.8904348895 | L34: 0.808188807 | M34: -30275.7345 | N34: -56709.04326 | O34: -53398.94999 | P34: 0 | Q34: 0 | R34: 0 | S34: 0 | T34: 0 | U34: 0
A35: 入院 | B35: 男性 | C35: 高血圧症 | D35: 12575 | E35: 14 | F35: 357946 | G35: 245836.592 | H35: 281636.882 | I35: 285492.1827 | J35: 9.516648077 | K35: 13.20791836 | L35: 11.17344847 | M35: 112109.408 | N35: 76309.11795 | O35: 72453.81729 | P35: 1.456032225 | Q35: 1.270948597 | R35: 1.253785643 | S35: 1.471106201 | T35: 1.05997021 | U35: 1.252970382
A36: 入院 | B36: 男性 | C36: 狭心症 | D36: 12575 | E36: 28 | F36: 2527110 | G36: 2906495.907 | H36: 2847933.81 | I36: 2917346.763 | J36: 38.04284971 | K36: 47.1295944 | L36: 41.63334601 | M36: -379385.9065 | N36: -320823.8095 | O36: -390236.7632 | P36: 0.8694696574 | Q36: 0.8873485723 | R36: 0.8662357289 | S36: 0.7360121604 | T36: 0.5941065345 | U36: 0.6725378257
A37: 入院 | B37: 男性 | C37: 心筋梗塞 | D37: 12575 | E37: 5 | F37: 784638 | G37: 971143.2464 | H37: 884464.1011 | I37: 866414.6276 | J37: 6.641469485 | K37: 7.720422267 | L37: 6.458387182 | M37: -186505.2464 | N37: -99826.10115 | O37: -81776.62758 | P37: 0.8079528977 | Q37: 0.8871338011 | R37: 0.9056149042 | S37: 0.7528454374 | T37: 0.6476329697 | U37: 0.7741870933
A38: 入院 | B38: 男性 | C38: 不整脈 | D38: 12575 | E38: 15 | F38: 1366204 | G38: 1371134.25 | H38: 1589198.089 | I38: 1623869.195 | J38: 13.89124852 | K38: 19.52511849 | L38: 16.70759208 | M38: -4930.249961 | N38: -222994.0889 | O38: -257665.1952 | P38: 0.9964042544 | Q38: 0.8596813761 | R38: 0.8413263852 | S38: 1.079816546 | T38: 0.7682411766 | U38: 0.8977954408
A39: 入院 | B39: 男性 | C39: 心臓弁膜症 | D39: 12575 | E39: 6 | F39: 995937 | G39: 712411.0328 | H39: 655154.2229 | I39: 662268.0744 | J39: 6.263938099 | K39: 7.566845045 | L39: 6.521119422 | M39: 283525.9672 | N39: 340782.7771 | O39: 333668.9256 | P39: 1.397980876 | Q39: 1.520156576 | R39: 1.503827587 | S39: 0.9578638718 | T39: 0.7929328491 | U39: 0.9200874286
A40: 入院 | B40: 男性 | C40: 心房・心室中隔欠損症 | D40: 12575 | E40: 0 | F40: 0 | G40: 0 | H40: 0 | I40: 10.29973613 | J40: 0 | K40: 0 | L40: 0.0005120934785 | M40: 0 | N40: 0 | O40: -10.29973613 | R40: 0 | U40: 0
A41: 入院 | B41: 男性 | C41: 大動脈瘤 | D41: 12575 | E41: 4 | F41: 1199376 | G41: 845722.176 | H41: 906211.0053 | I41: 898110.0175 | J41: 3.462171471 | K41: 4.548103173 | L41: 3.916342376 | M41: 353653.824 | N41: 293164.9947 | O41: 301265.9825 | P41: 1.41816785 | Q41: 1.323506328 | R41: 1.335444407 | S41: 1.155344278 | T41: 0.8794875244 | U41: 1.021361162
A42: 入院 | B42: 男性 | C42: 食道がん | D42: 12575 | E42: 12 | F42: 741266 | G42: 760054.8553 | H42: 730504.8823 | I42: 745358.8728 | J42: 10.78170681 | K42: 11.33357017 | L42: 10.35768813 | M42: -18788.85534 | N42: 10761.11766 | O42: -4092.872805 | P42: 0.9752796062 | Q42: 1.014731069 | R42: 0.9945088561 | S42: 1.112996319 | T42: 1.058801403 | U42: 1.158559695
A43: 入院 | B43: 男性 | C43: 食道静脈瘤 | D43: 12575 | E43: 0 | F43: 0 | G43: 107062.5709 | H43: 121935.7985 | I43: 122393.9047 | J43: 1.593499607 | K43: 2.15953889 | L43: 1.909250289 | M43: -107062.5709 | N43: -121935.7985 | O43: -122393.9047 | P43: 0 | Q43: 0 | R43: 0 | S43: 0 | T43: 0 | U43: 0
A44: 入院 | B44: 男性 | C44: 逆流性食道炎 | D44: 12575 | E44: 1 | F44: 88282 | G44: 145101.6033 | H44: 208579.2893 | I44: 198683.6889 | J44: 4.432230608 | K44: 7.522891514 | L44: 6.37775437 | M44: -56819.60329 | N44: -120297.2893 | O44: -110401.6889 | P44: 0.6084150554 | Q44: 0.4232539112 | R44: 0.4443344116 | S44: 0.2256200294 | T44: 0.1329276114 | U44: 0.1567950006
A45: 入院 | B45: 男性 | C45: 胃がん | D45: 12575 | E45: 23 | F45: 2001876 | G45: 1529881.085 | H45: 1670338.574 | I45: 1634639.886 | J45: 23.1401204 | K45: 29.34619239 | L45: 24.65308888 | M45: 471994.9154 | N45: 331537.4259 | O45: 367236.1141 | P45: 1.308517387 | Q45: 1.198485164 | R45: 1.224658726 | S45: 0.993944699 | T45: 0.7837473323 | U45: 0.9329459733
A46: 入院 | B46: 男性 | C46: 胃潰瘍 | D46: 12575 | E46: 8 | F46: 331577 | G46: 411101.7095 | H46: 409457.2216 | I46: 401592.7667 | J46: 11.37711581 | K46: 13.66681785 | L46: 11.65808549 | M46: -79524.70946 | N46: -77880.22163 | O46: -70015.76672 | P46: 0.8065570937 | Q46: 0.809796439 | R46: 0.8256548112 | S46: 0.7031659107 | T46: 0.5853593782 | U46: 0.6862190201
A47: 入院 | B47: 男性 | C47: 十二指腸潰瘍 | D47: 12575 | E47: 1 | F47: 52819 | G47: 92315.02837 | H47: 98238.20638 | I47: 102688.7052 | J47: 1.792787514 | K47: 2.727423649 | L47: 2.317765024 | M47: -39496.02837 | N47: -45419.20638 | O47: -49869.70523 | P47: 0.5721603615 | Q47: 0.5376625037 | R47: 0.5143603659 | S47: 0.5577905872 | T47: 0.3666463772 | U47: 0.431450121
A48: 入院 | B48: 男性 | C48: ヘリコバクターピロリ感染症 | D48: 12575 | E48: 0 | F48: 0 | G48: 1855.678137 | H48: 5755.207128 | I48: 4358.383235 | J48: 0.1107745788 | K48: 0.3005291109 | L48: 0.2488535009 | M48: -1855.678137 | N48: -5755.207128 | O48: -4358.383235 | P48: 0 | Q48: 0 | R48: 0 | S48: 0 | T48: 0 | U48: 0
A49: 入院 | B49: 男性 | C49: 大腸がん | D49: 12575 | E49: 11 | F49: 866874 | G49: 2363657.022 | H49: 2194968.39 | I49: 2206736.505 | J49: 31.93591564 | K49: 34.15058316 | L49: 29.74425155 | M49: -1496783.022 | N49: -1328094.39 | O49: -1339862.505 | P49: 0.3667511791 | Q49: 0.3949368948 | R49: 0.3928307698 | S49: 0.3444397876 | T49: 0.3221028451 | U49: 0.3698193576
A50: 入院 | B50: 男性 | C50: 大腸ポリープ | D50: 12575 | E50: 8 | F50: 221603 | G50: 439679.4003 | H50: 401628.3611 | I50: 410839.8972 | J50: 23.82598066 | K50: 25.03652607 | L50: 22.65705632 | M50: -218076.4003 | N50: -180025.3611 | O50: -189236.8972 | P50: 0.5040104218 | Q50: 0.5517613333 | R50: 0.5393901651 | S50: 0.3357679214 | T50: 0.3195331484 | U50: 0.3530908821
A51: 入院 | B51: 男性 | C51: 虫垂炎 | D51: 12575 | E51: 6 | F51: 534449 | G51: 217970.2627 | H51: 228377.9163 | I51: 228521.9548 | J51: 4.5683241 | K51: 5.716748372 | L51: 4.940057843 | M51: 316478.7373 | N51: 306071.0837 | O51: 305927.0452 | P51: 2.451935385 | Q51: 2.340195623 | R51: 2.338720586 | S51: 1.313391929 | T51: 1.049547681 | U51: 1.214560677
A52: 入院 | B52: 男性 | C52: 腸閉塞 | D52: 12575 | E52: 1 | F52: 186393 | G52: 412115.4851 | H52: 435752.0926 | I52: 424666.5216 | J52: 7.556790363 | K52: 10.25329419 | L52: 8.49609082 | M52: -225722.4851 | N52: -249359.0926 | O52: -238273.5216 | P52: 0.4522834175 | Q52: 0.4277500973 | R52: 0.4389161625 | S52: 0.1323313142 | T52: 0.0975296311 | U52: 0.11770119
A53: 入院 | B53: 男性 | C53: 潰瘍性腸炎 | D53: 12575 | E53: 0 | F53: 0 | G53: 104525.0639 | H53: 151514.6797 | I53: 120438.3794 | J53: 1.53193615 | K53: 2.806520305 | L53: 1.990404082 | M53: -104525.0639 | N53: -151514.6797 | O53: -120438.3794 | P53: 0 | Q53: 0 | R53: 0 | S53: 0 | T53: 0 | U53: 0
A54: 入院 | B54: 男性 | C54: クローン病 | D54: 12575 | E54: 2 | F54: 106427 | G54: 53486.50987 | H54: 102520.3049 | I54: 94418.8671 | J54: 1.059322056 | K54: 2.272231828 | L54: 1.718927335 | M54: 52940.49013 | N54: 3906.695088 | O54: 12008.1329 | P54: 1.989791449 | Q54: 1.03810655 | R54: 1.127179379 | S54: 1.887999961 | T54: 0.880191878 | U54: 1.163516316
A55: 入院 | B55: 男性 | C55: 肝がん | D55: 12575 | E55: 10 | F55: 926248 | G55: 659046.4313 | H55: 759161.7912 | I55: 788390.0841 | J55: 10.38555237 | K55: 13.19770115 | L55: 12.05899989 | M55: 267201.5687 | N55: 167086.2088 | O55: 137857.9159 | P55: 1.405436637 | Q55: 1.220093017 | R55: 1.174860033 | S55: 0.9628760842 | T55: 0.7577077162 | U55: 0.829256165
A56: 入院 | B56: 男性 | C56: Ｂ型肝炎 | D56: 12575 | E56: 2 | F56: 101038 | G56: 48621.52928 | H56: 74242.73406 | I56: 78490.98816 | J56: 1.115964983 | K56: 2.70650627 | L56: 2.372422779 | M56: 52416.47072 | N56: 26795.26594 | O56: 22547.01184 | P56: 2.078050639 | Q56: 1.360914321 | R56: 1.287256058 | S56: 1.792170928 | T56: 0.7389600469 | U56: 0.8430200628
A57: 入院 | B57: 男性 | C57: Ｃ型肝炎 | D57: 12575 | E57: 2 | F57: 116596 | G57: 74005.2671 | H57: 117770.6821 | I57: 116890.4705 | J57: 1.987528119 | K57: 3.444776506 | L57: 3.061997536 | M57: 42590.7329 | N57: -1174.682115 | O57: -294.4704725 | P57: 1.575509482 | Q57: 0.990025683 | R57: 0.9974808 | S57: 1.006275072 | T57: 0.5805891896 | U57: 0.6531683897
A58: 入院 | B58: 男性 | C58: アルコール性肝障害 | D58: 12575 | E58: 0 | F58: 0 | G58: 66743.21438 | H58: 93184.02308 | I58: 81633.21982 | J58: 1.576958066 | K58: 2.749854552 | L58: 2.200852639 | M58: -66743.21438 | N58: -93184.02308 | O58: -81633.21982 | P58: 0 | Q58: 0 | R58: 0 | S58: 0 | T58: 0 | U58: 0
A59: 入院 | B59: 男性 | C59: 肝硬変 | D59: 12575 | E59: 0 | F59: 0 | G59: 111357.2802 | H59: 117522.2925 | I59: 114929.8918 | J59: 2.533710582 | K59: 3.366520862 | L59: 2.923478896 | M59: -111357.2802 | N59: -117522.2925 | O59: -114929.8918 | P59: 0 | Q59: 0 | R59: 0 | S59: 0 | T59: 0 | U59: 0
A60: 入院 | B60: 男性 | C60: 脂肪肝 | D60: 12575 | E60: 1 | F60: 36971 | G60: 15421.53772 | H60: 20535.6765 | I60: 19122.80302 | J60: 0.4522924085 | K60: 0.8851279283 | L60: 0.780270064 | M60: 21549.46228 | N60: 16435.3235 | O60: 17848.19698 | P60: 2.397361448 | Q60: 1.80033027 | R60: 1.933346276 | S60: 2.210959064 | T60: 1.129780191 | U60: 1.281607543
A61: 入院 | B61: 男性 | C61: 胆石症 | D61: 12575 | E61: 9 | F61: 718854 | G61: 661844.5345 | H61: 735734.9973 | I61: 719261.942 | J61: 10.86656286 | K61: 14.45957535 | L61: 12.14053955 | M61: 57009.46545 | N61: -16880.99729 | O61: -407.9420266 | P61: 1.086137246 | Q61: 0.9770556011 | R61: 0.9994328325 | S61: 0.8282287704 | T61: 0.622424918 | U61: 0.7413179591
A62: 入院 | B62: 男性 | C62: 慢性膵炎 | D62: 12575 | E62: 1 | F62: 91706 | G62: 63605.61164 | H62: 61382.56977 | I62: 68916.06339 | J62: 1.063484861 | K62: 1.657962403 | L62: 1.569087809 | M62: 28100.38836 | N62: 30323.43023 | O62: 22789.93661 | P62: 1.441791025 | Q62: 1.494007181 | R62: 1.330691213 | S62: 0.940304876 | T62: 0.603149986 | U62: 0.6373129626
A63: 入院 | B63: 男性 | C63: 膵臓がん | D63: 12575 | E63: 7 | F63: 718430 | G63: 412650.5385 | H63: 492647.062 | I63: 480947.0316 | J63: 6.464989876 | K63: 8.600263717 | L63: 7.3892761 | M63: 305779.4615 | N63: 225782.938 | O63: 237482.9684 | P63: 1.741013116 | Q63: 1.458305662 | R63: 1.493781961 | S63: 1.082754982 | T63: 0.8139285295 | U63: 0.9473187773
A64: 入院 | B64: 男性 | C64: 貧血 | D64: 12575 | E64: 2 | F64: 261178 | G64: 167699.6901 | H64: 170682.5727 | I64: 155067.3334 | J64: 3.15477282 | K64: 3.92449134 | L64: 3.061328099 | M64: 93478.30992 | N64: 90495.42732 | O64: 106110.6666 | P64: 1.557414924 | Q64: 1.53019723 | R64: 1.684287685 | S64: 0.6339600706 | T64: 0.5096201843 | U64: 0.6533112215
A65: 入院 | B65: 男性 | C65: 白血病 | D65: 12575 | E65: 7 | F65: 537986 | G65: 365539.327 | H65: 324944.7658 | I65: 396422.4769 | J65: 2.536952348 | K65: 2.807227787 | L65: 2.783274443 | M65: 172446.673 | N65: 213041.2342 | O65: 141563.5231 | P65: 1.471759563 | Q65: 1.655622914 | R65: 1.357102665 | S65: 2.759216194 | T65: 2.493563235 | U65: 2.515023274
A66: 入院 | B66: 男性 | C66: 難聴 | D66: 12575 | E66: 2 | F66: 104184 | G66: 47132.68588 | H66: 64428.34509 | I66: 53461.10903 | J66: 0.9273372187 | K66: 1.593380992 | L66: 1.353105621 | M66: 57051.31412 | N66: 39755.65491 | O66: 50722.89097 | P66: 2.210440548 | Q66: 1.617052244 | R66: 1.948781121 | S66: 2.156712747 | T66: 1.255192581 | U66: 1.478081215
A67: 入院 | B67: 男性 | C67: 喉頭がん | D67: 12575 | E67: 1 | F67: 88030 | G67: 313642.2143 | H67: 383917.2013 | I67: 426266.5591 | J67: 3.981877163 | K67: 5.510646613 | L67: 5.175562709 | M67: -225612.2143 | N67: -295887.2013 | O67: -338236.5591 | P67: 0.2806701266 | Q67: 0.2292942324 | R67: 0.2065139714 | S67: 0.2511378325 | T67: 0.1814669076 | U67: 0.1932157055
A68: 入院 | B68: 男性 | C68: 骨折 | D68: 12575 | E68: 26 | F68: 1909796 | G68: 1713872.05 | H68: 2120544.574 | I68: 2014904.835 | J68: 27.36981818 | K68: 42.19772446 | L68: 35.01406217 | M68: 195923.9499 | N68: -210748.5741 | O68: -105108.8351 | P68: 1.114316556 | Q68: 0.9006158245 | R68: 0.9478343427 | S68: 0.949951506 | T68: 0.6161469684 | U68: 0.7425588004
A69: 入院 | B69: 男性 | C69: 骨粗しょう症 | D69: 12575 | E69: 0 | F69: 0 | G69: 89770.12134 | H69: 124685.1199 | I69: 121818.0951 | J69: 1.731750679 | K69: 2.863651257 | L69: 2.502399187 | M69: -89770.12134 | N69: -124685.1199 | O69: -121818.0951 | P69: 0 | Q69: 0 | R69: 0 | S69: 0 | T69: 0 | U69: 0
A70: 入院 | B70: 男性 | C70: 骨がん | D70: 12575 | E70: 1 | F70: 120651 | G70: 19791.33806 | H70: 28239.11077 | I70: 23584.29841 | J70: 0.2237061983 | K70: 0.2638398006 | L70: 0.242234547 | M70: 100859.6619 | N70: 92411.88923 | O70: 97066.70159 | P70: 6.096151742 | Q70: 4.272478725 | R70: 5.115734117 | S70: 4.470148827 | T70: 3.790178728 | U70: 4.128230314
A71: 入院 | B71: 男性 | C71: 関節疾患 | D71: 12575 | E71: 10 | F71: 1596977 | G71: 611055.4758 | H71: 816110.9388 | I71: 800086.0737 | J71: 10.13154458 | K71: 16.96162042 | L71: 14.43892877 | M71: =+F71-G71 -> 985921.5242 | N71: =+F71-H71 -> 780866.0612 | O71: =+F71-I71 -> 796890.9263 | P71: =+F71/G71 -> 2.61347302 | Q71: =+F71/H71 -> 1.956813619 | R71: =+F71/I71 -> 1.996006495 | S71: =+E71/J71 -> 0.9870163348 | T71: =+E71/K71 -> 0.5895663123 | U71: =+E71/L71 -> 0.692572154
A72: 入院 | B72: 男性 | C72: 腎炎・ネフローゼ | D72: 12575 | E72: 2 | F72: 136939 | G72: 58424.82215 | H72: 66321.82459 | I72: 64293.87269 | J72: 1.274371741 | K72: 1.836334199 | L72: 1.619425443 | M72: 78514.17785 | N72: 70617.17541 | O72: 72645.12731 | P72: 2.343849668 | Q72: 2.064765269 | R72: 2.129891921 | S72: 1.569400776 | T72: 1.08912637 | U72: 1.235005915
A73: 入院 | B73: 男性 | C73: 慢性腎不全（透析なし） | D73: 12575 | E73: 2 | F73: 92975 | G73: 215134.5709 | H73: 255043.969 | I73: 244066.0197 | J73: 4.828771943 | K73: 6.685945193 | L73: 5.583845015 | M73: -122159.5709 | N73: -162068.969 | O73: -151091.0197 | P73: 0.4321713595 | Q73: 0.3645449856 | R73: 0.3809420095 | S73: 0.4141839838 | T73: 0.2991349678 | U73: 0.3581761304
A74: 入院 | B74: 男性 | C74: 慢性腎不全（透析あり） | D74: 12575 | E74: 7 | F74: 489425 | G74: 2021110.556 | H74: 2050251.562 | I74: 2056550.23 | J74: 26.95526292 | K74: 32.28402125 | L74: 27.86445191 | M74: -1531685.556 | N74: -1560826.562 | O74: -1567125.23 | P74: 0.2421564711 | Q74: 0.238714609 | R74: 0.2379834895 | S74: 0.2596895464 | T74: 0.2168255294 | U74: 0.2512161381
A75: 入院 | B75: 男性 | C75: 腎結石 | D75: 12575 | E75: 3 | F75: 137665 | G75: 81678.72384 | H75: 100059.114 | I75: 95470.64074 | J75: 1.953120363 | K75: 2.632943648 | L75: 2.330266068 | M75: 55986.27616 | N75: 37605.88596 | O75: 42194.35926 | P75: 1.68544504 | Q75: 1.375836687 | R75: 1.441961622 | S75: 1.536003647 | T75: 1.139409118 | U75: 1.287406636
A76: 入院 | B76: 男性 | C76: 尿路結石（尿管・膀胱） | D76: 12575 | E76: 6 | F76: 292656 | G76: 178867.4008 | H76: 182967.9994 | I76: 172849.6989 | J76: 5.670764593 | K76: 6.673198347 | L76: 5.572820604 | M76: 113788.5992 | N76: 109688.0006 | O76: 119806.3011 | P76: 1.636161753 | Q76: 1.599492813 | R76: 1.693124153 | S76: 1.05805838 | T76: 0.8991190862 | U76: 1.076654073
A77: 入院 | B77: 男性 | C77: 腎臓がん | D77: 12575 | E77: 1 | F77: 66527 | G77: 286791.0158 | H77: 302342.5805 | I77: 301097.3455 | J77: 3.906349031 | K77: 4.185414692 | L77: 3.685257803 | M77: -220264.0158 | N77: -235815.5805 | O77: -234570.3455 | P77: 0.2319703071 | Q77: 0.2200384739 | R77: 0.2209484773 | S77: 0.2559935101 | T77: 0.2389249509 | U77: 0.2713514368
A78: 入院 | B78: 男性 | C78: 膀胱がん | D78: 12575 | E78: 10 | F78: 649410 | G78: 597485.8994 | H78: 527133.708 | I78: 524737.7962 | J78: 10.73082541 | K78: 11.76635152 | L78: 10.19980776 | M78: 51924.10055 | N78: 122276.292 | O78: 124672.2038 | P78: 1.086904311 | Q78: 1.231964472 | R78: 1.237589525 | S78: 0.931894763 | T78: 0.8498811196 | U78: 0.9804106347
A79: 入院 | B79: 男性 | C79: 前立腺がん | D79: 12575 | E79: 12 | F79: 1009075 | G79: 867215.4667 | H79: 895808.069 | I79: 888235.6246 | J79: 16.15321061 | K79: 19.86860358 | L79: 16.51964472 | M79: 141859.5333 | N79: 113266.931 | O79: 120839.3754 | P79: 1.163580493 | Q79: 1.12644107 | R79: 1.136044279 | S79: 0.7428863703 | T79: 0.6039679613 | U79: 0.7264078739
A80: 入院 | B80: 男性 | C80: 前立腺肥大 | D80: 12575 | E80: 11 | F80: 737661 | G80: 258223.2773 | H80: 270657.7729 | I80: 265312.3927 | J80: 7.621121624 | K80: 9.874931601 | L80: 8.376632108 | M80: 479437.7227 | N80: 467003.2271 | O80: 472348.6073 | P80: 2.856678947 | Q80: 2.725438076 | R80: 2.780348828 | S80: 1.443357099 | T80: 1.113931766 | U80: 1.313176926
A81: 入院 | B81: 男性 | C81: 子宮頚がん | D81: 12575 | E81: 0 | F81: 0 | G81: 0 | H81: 0 | I81: 0 | J81: 0 | K81: 0 | L81: 0 | M81: 0 | N81: 0 | O81: 0
A82: 入院 | B82: 男性 | C82: 子宮体がん | D82: 12575 | E82: 0 | F82: 0 | G82: 0 | H82: 0 | I82: 0 | J82: 0 | K82: 0 | L82: 0 | M82: 0 | N82: 0 | O82: 0
A83: 入院 | B83: 男性 | C83: 子宮筋腫 | D83: 12575 | E83: 0 | F83: 0 | G83: 0 | H83: 0 | I83: 0 | J83: 0 | K83: 0 | L83: 0 | M83: 0 | N83: 0 | O83: 0
A84: 入院 | B84: 男性 | C84: 卵巣腫瘍（悪性） | D84: 12575 | E84: 0 | F84: 0 | G84: 0 | H84: 0 | I84: 148.13478 | J84: 0 | K84: 0 | L84: 0.001424207218 | M84: 0 | N84: 0 | O84: -148.13478 | R84: 0 | U84: 0
A85: 入院 | B85: 男性 | C85: 卵巣腫瘍（良性） | D85: 12575 | E85: 0 | F85: 0 | G85: 0 | H85: 0 | I85: 0 | J85: 0 | K85: 0 | L85: 0 | M85: 0 | N85: 0 | O85: 0
A86: 入院 | B86: 男性 | C86: 乳がん | D86: 12575 | E86: 0 | F86: 0 | G86: 4861.960172 | H86: 5789.89069 | I86: 6245.85192 | J86: 0.07053430113 | K86: 0.1256808728 | L86: 0.1084424406 | M86: -4861.960172 | N86: -5789.89069 | O86: -6245.85192 | P86: 0 | Q86: 0 | R86: 0 | S86: 0 | T86: 0 | U86: 0
A87: 入院 | B87: 男性 | C87: 乳腺症 | D87: 12575 | E87: 0 | F87: 0 | G87: 0 | H87: 0 | I87: 0 | J87: 0 | K87: 0 | L87: 0 | M87: 0 | N87: 0 | O87: 0
A88: 入院 | B88: 男性 | C88: その他 | D88: 12575 | E88: 554 | F88: 28367301 | G88: 25482077.84 | H88: 32021505.27 | I88: 30640457.37 | J88: 469.3041901 | K88: 699.8749115 | L88: 576.3364613 | M88: 2885223.155 | N88: -3654204.271 | O88: -2273156.369 | P88: 1.113225584 | Q88: 0.8858828078 | R88: 0.9258119309 | S88: 1.180471029 | T88: 0.7915700233 | U88: 0.96124406
A89: 入院 | B89: 男性 | C89: 小児科 | D89: 12575 | E89: 59 | F89: 5535447 | G89: 2081775.779 | H89: 2349895.443 | I89: 2247480.09 | J89: 42.33185846 | K89: 64.59017555 | L89: 52.65255673 | M89: 3453671.221 | N89: 3185551.557 | O89: 3287966.91 | P89: 2.659002499 | Q89: 2.355614168 | R89: 2.46295708 | S89: 1.393749345 | T89: 0.9134516123 | U89: 1.120553372
A90: 入院 | B90: 女性 | C90: 脳梗塞 | D90: 11967 | E90: 32 | F90: 2519061 | G90: 1457714.025 | H90: 1404677.172 | I90: 1415173.54 | J90: 21.91735 | K90: 25.66427339 | L90: 22.00642073 | M90: 1061346.975 | N90: 1114383.828 | O90: 1103887.46 | P90: 1.72808998 | Q90: 1.793338035 | R90: 1.780036814 | S90: 1.460030524 | T90: 1.246869511 | U90: 1.454121067
A91: 入院 | B91: 女性 | C91: クモ膜下出血 | D91: 11967 | E91: 7 | F91: 385353 | G91: 572411.0493 | H91: 552754.1004 | I91: 495955.5584 | J91: 5.436941653 | K91: 5.9558183 | L91: 4.922073067 | M91: -187058.0493 | N91: -167401.1004 | O91: -110602.5584 | P91: 0.6732102751 | Q91: 0.6971508664 | R91: 0.7769909894 | S91: 1.287488527 | T91: 1.175321282 | U91: 1.422164991
A92: 入院 | B92: 女性 | C92: 脳出血 | D92: 11967 | E92: 15 | F92: 1427187 | G92: 809704.7652 | H92: 791036.0088 | I92: 794887.7707 | J92: 11.1354723 | K92: 12.64985208 | L92: 11.15411302 | M92: 617482.2348 | N92: 636150.9912 | O92: 632299.2293 | P92: 1.762601705 | Q92: 1.804199789 | R92: 1.795457236 | S92: 1.347046591 | T92: 1.185784617 | U92: 1.344795411
A93: 入院 | B93: 女性 | C93: 一過性脳虚血発作 | D93: 11967 | E93: 0 | F93: 0 | G93: 14289.59518 | H93: 29398.67249 | I93: 24593.52836 | J93: 0.3009175641 | K93: 0.5619628136 | L93: 0.4416129793 | M93: -14289.59518 | N93: -29398.67249 | O93: -24593.52836 | P93: 0 | Q93: 0 | R93: 0 | S93: 0 | T93: 0 | U93: 0
A94: 入院 | B94: 女性 | C94: パーキンソン病 | D94: 11967 | E94: 4 | F94: 226498 | G94: 310734.0038 | H94: 462338.5167 | I94: 454129.7593 | J94: 5.119128204 | K94: 9.091256783 | L94: 7.846132814 | M94: -84236.0038 | N94: -235840.5167 | O94: -227631.7593 | P94: 0.7289128233 | Q94: 0.4898964543 | R94: 0.4987517232 | S94: 0.7813830482 | T94: 0.4399831724 | U94: 0.5098052882
A95: 入院 | B95: 女性 | C95: 脳腫瘍 | D95: 11967 | E95: 0 | F95: 0 | G95: 99746.2967 | H95: 155365.9729 | I95: 142423.896 | J95: 0.5659100937 | K95: 1.27799025 | L95: 1.15309258 | M95: -99746.2967 | N95: -155365.9729 | O95: -142423.896 | P95: 0 | Q95: 0 | R95: 0 | S95: 0 | T95: 0 | U95: 0
A96: 入院 | B96: 女性 | C96: うつ病 | D96: 11967 | E96: 45 | F96: 1971243 | G96: 1246827.877 | H96: 1841040.403 | I96: 1732005.913 | J96: 32.30939274 | K96: 58.06299513 | L96: 47.12370893 | M96: 724415.1234 | N96: 130202.5972 | O96: 239237.0868 | P96: 1.581006518 | Q96: 1.070722292 | R96: 1.138127177 | S96: 1.392783837 | T96: 0.7750203016 | U96: 0.9549333238
A97: 入院 | B97: 女性 | C97: 認知症 | D97: 11967 | E97: 0 | F97: 0 | G97: 128814.8061 | H97: 209041.5751 | I97: 190899.855 | J97: 3.327462776 | K97: 6.369441916 | L97: 4.928290419 | M97: -128814.8061 | N97: -209041.5751 | O97: -190899.855 | P97: 0 | Q97: 0 | R97: 0 | S97: 0 | T97: 0 | U97: 0
A98: 入院 | B98: 女性 | C98: 統合失調症 | D98: 11967 | E98: 75 | F98: 2935909 | G98: 4925064.963 | H98: 7716477.862 | I98: 6634392.359 | J98: 128.5244422 | K98: 240.4859166 | L98: 178.7861481 | M98: -1989155.963 | N98: -4780568.862 | O98: -3698483.359 | P98: 0.5961157918 | Q98: 0.3804726784 | R98: 0.4425286961 | S98: 0.5835465904 | T98: 0.3118685746 | U98: 0.4194955861
A99: 入院 | B99: 女性 | C99: 緑内障 | D99: 11967 | E99: 2 | F99: 64327 | G99: 108026.1741 | H99: 108132.433 | I99: 105693.7459 | J99: 3.056706886 | K99: 3.286075465 | L99: 2.861706875 | M99: -43699.17408 | N99: -43805.43303 | O99: -41366.74589 | P99: 0.5954760552 | Q99: 0.5948908963 | R99: 0.6086169002 | S99: 0.6542989153 | T99: 0.6086287491 | U99: 0.6988835991
A100: 入院 | B100: 女性 | C100: 白内障 | D100: 11967 | E100: 11 | F100: 409536 | G100: 438422.2851 | H100: 499075.8945 | I100: 492317.3401 | J100: 14.33054436 | K100: 19.36467309 | L100: 16.43279737 | M100: -28886.28513 | N100: -89539.89451 | O100: -82781.34009 | P100: 0.9341131003 | Q100: 0.8205886209 | R100: 0.8318536981 | S100: 0.7675912179 | T100: 0.5680447045 | U100: 0.6693930286
A101: 入院 | B101: 女性 | C101: 糖尿病網膜症 | D101: 11967 | E101: 0 | F101: 0 | G101: 0 | H101: 0 | I101: 0 | J101: 0 | K101: 0 | L101: 0 | M101: 0 | N101: 0 | O101: 0
A102: 入院 | B102: 女性 | C102: インフルエンザ | D102: 11967 | E102: 0 | F102: 0 | G102: 2466.811451 | H102: 1831.748381 | I102: 2757.823946 | J102: 0.09974454257 | K102: 0.149133055 | L102: 0.1226873779 | M102: -2466.811451 | N102: -1831.748381 | O102: -2757.823946 | P102: 0 | Q102: 0 | R102: 0 | S102: 0 | T102: 0 | U102: 0
A103: 入院 | B103: 女性 | C103: 肺がん | D103: 11967 | E103: 7 | F103: 788233 | G103: 733189.3897 | H103: 857065.6583 | I103: 872988.028 | J103: 10.11713026 | K103: 13.48645702 | L103: 11.65447949 | M103: 55043.61035 | N103: -68832.65832 | O103: -84755.02799 | P103: 1.075074205 | Q103: 0.9196879986 | R103: 0.9029138714 | S103: 0.6918958068 | T103: 0.5190392101 | U103: 0.6006274245
A104: 入院 | B104: 女性 | C104: 肺炎 | D104: 11967 | E104: 5 | F104: 330636 | G104: 505090.4288 | H104: 662471.1333 | I104: 628592.3216 | J104: 11.11645921 | K104: 16.61404744 | L104: 13.47192231 | M104: -174454.4288 | N104: -331835.1333 | O104: -297956.3216 | P104: 0.654607534 | Q104: 0.4990949543 | R104: 0.5259943347 | S104: 0.4497835061 | T104: 0.3009501458 | U104: 0.3711422829
A105: 入院 | B105: 女性 | C105: 肺結核・胸膜炎 | D105: 11967 | E105: 0 | F105: 0 | G105: 45126.57986 | H105: 46697.4749 | I105: 50533.41178 | J105: 1.134800032 | K105: 1.345253756 | L105: 1.370684906 | M105: -45126.57986 | N105: -46697.4749 | O105: -50533.41178 | P105: 0 | Q105: 0 | R105: 0 | S105: 0 | T105: 0 | U105: 0
A106: 入院 | B106: 女性 | C106: 気管支喘息 | D106: 11967 | E106: 3 | F106: 152751 | G106: 243667.5091 | H106: 311529.9082 | I106: 283904.9462 | J106: 5.234403489 | K106: 7.892806354 | L106: 6.609449705 | M106: -90916.5091 | N106: -158778.9082 | O106: -131153.9462 | P106: 0.6268829216 | Q106: 0.4903253138 | R106: 0.5380357126 | S106: 0.573131209 | T106: 0.3800929436 | U106: 0.4538955789
A107: 入院 | B107: 女性 | C107: 肺気腫 | D107: 11967 | E107: 0 | F107: 0 | G107: 40294.70746 | H107: 36723.07595 | I107: 30555.97006 | J107: 0.6674228302 | K107: 0.6899132648 | L107: 0.569866254 | M107: -40294.70746 | N107: -36723.07595 | O107: -30555.97006 | P107: 0 | Q107: 0 | R107: 0 | S107: 0 | T107: 0 | U107: 0
A108: 入院 | B108: 女性 | C108: 慢性閉塞性肺疾患（COPD） | D108: 11967 | E108: 2 | F108: 298162 | G108: 43277.83478 | H108: 49837.69257 | I108: 34583.96193 | J108: 0.6943516497 | K108: 1.033170141 | L108: 0.6661523637 | M108: 254884.1652 | N108: 248324.3074 | O108: 263578.0381 | P108: 6.889485148 | Q108: 5.982660606 | R108: 8.621395102 | S108: 2.88038489 | T108: 1.935789587 | U108: 3.00231615
A109: 入院 | B109: 女性 | C109: 間質性肺炎 | D109: 11967 | E109: 0 | F109: 0 | G109: 156783.4713 | H109: 147659.4036 | I109: 147306.4067 | J109: 2.699585992 | K109: 3.192091679 | L109: 2.655217536 | M109: -156783.4713 | N109: -147659.4036 | O109: -147306.4067 | P109: 0 | Q109: 0 | R109: 0 | S109: 0 | T109: 0 | U109: 0
A110: 入院 | B110: 女性 | C110: 気胸 | D110: 11967 | E110: 1 | F110: 149199 | G110: 30642.93462 | H110: 30258.10356 | I110: 26405.274 | J110: 0.419859757 | K110: 0.6163549229 | L110: 0.4768739771 | M110: 118556.0654 | N110: 118940.8964 | O110: 122793.726 | P110: 4.868952724 | Q110: 4.930877432 | R110: 5.650348488 | S110: 2.381747675 | T110: 1.622441815 | U110: 2.096990081
A111: 入院 | B111: 女性 | C111: 睡眠時無呼吸症候群 | D111: 11967 | E111: 4 | F111: 28399 | G111: 13522.68198 | H111: 17696.50538 | I111: 20075.63463 | J111: 1.449758515 | K111: 2.159251014 | L111: 2.008188542 | M111: 14876.31802 | N111: 10702.49462 | O111: 8323.365372 | P111: 2.100101152 | Q111: 1.604780118 | R111: 1.414600361 | S111: 2.759080191 | T111: 1.852494209 | U111: 1.991844847
A112: 入院 | B112: 女性 | C112: 非定型（非結核性）抗酸菌症 | D112: 11967 | E112: 0 | F112: 0 | G112: 12577.36775 | H112: 12707.80542 | I112: 13284.29173 | J112: 0.31767156 | K112: 0.424096462 | L112: 0.3884554335 | M112: -12577.36775 | N112: -12707.80542 | O112: -13284.29173 | P112: 0 | Q112: 0 | R112: 0 | S112: 0 | T112: 0 | U112: 0
A113: 入院 | B113: 女性 | C113: 脂質異常症 | D113: 11967 | E113: 1 | F113: 4983 | G113: 23089.59967 | H113: 46513.85756 | I113: 42581.12556 | J113: 0.9356836705 | K113: 2.071417256 | L113: 1.695842804 | M113: -18106.59967 | N113: -41530.85756 | O113: -37598.12556 | P113: 0.2158114506 | Q113: 0.1071293645 | R113: 0.1170236797 | S113: 1.068737258 | T113: 0.4827612579 | U113: 0.5896772967
A114: 入院 | B114: 女性 | C114: 糖尿病 | D114: 11967 | E114: 12 | F114: 836918 | G114: 606495.7804 | H114: 791216.2002 | I114: 726233.0018 | J114: 15.88566092 | K114: 22.93266602 | L114: 18.71267326 | M114: 230422.2196 | N114: 45701.7998 | O114: 110684.9982 | P114: 1.379923863 | Q114: 1.057761456 | R114: 1.152409761 | S114: 0.7553982209 | T114: 0.5232710401 | U114: 0.6412766274
A115: 入院 | B115: 女性 | C115: 痛風・高尿酸血症 | D115: 11967 | E115: 0 | F115: 0 | G115: 1240.322255 | H115: 5259.692005 | I115: 3157.430005 | J115: 0.03597272575 | K115: 0.06933644481 | L115: 0.05354258212 | M115: -1240.322255 | N115: -5259.692005 | O115: -3157.430005 | P115: 0 | Q115: 0 | R115: 0 | S115: 0 | T115: 0 | U115: 0
A116: 入院 | B116: 女性 | C116: 甲状腺機能低下症 | D116: 11967 | E116: 2 | F116: 53444 | G116: 21184.76359 | H116: 20491.28432 | I116: 21983.52659 | J116: 0.6449608143 | K116: 1.019957955 | L116: 0.8448237763 | M116: 32259.23641 | N116: 32952.71568 | O116: 31460.47341 | P116: 2.522756498 | Q116: 2.608133251 | R116: 2.431093109 | S116: 3.100963587 | T116: 1.960865141 | U116: 2.367357615
A117: 入院 | B117: 女性 | C117: 甲状腺機能亢進症 | D117: 11967 | E117: 0 | F117: 0 | G117: 27731.83803 | H117: 38679.54266 | I117: 37527.93801 | J117: 0.768018999 | K117: 1.330834128 | L117: 1.143316519 | M117: -27731.83803 | N117: -38679.54266 | O117: -37527.93801 | P117: 0 | Q117: 0 | R117: 0 | S117: 0 | T117: 0 | U117: 0
A118: 入院 | B118: 女性 | C118: 甲状腺がん | D118: 11967 | E118: 0 | F118: 0 | G118: 92104.45903 | H118: 141560.8488 | I118: 144978.0448 | J118: 1.523869866 | K118: 2.427953727 | L118: 2.208706501 | M118: -92104.45903 | N118: -141560.8488 | O118: -144978.0448 | P118: 0 | Q118: 0 | R118: 0 | S118: 0 | T118: 0 | U118: 0
A119: 入院 | B119: 女性 | C119: 高血圧症 | D119: 11967 | E119: 5 | F119: 38640 | G119: 184073.5358 | H119: 212995.6211 | I119: 205849.7963 | J119: 5.905742883 | K119: 8.467870317 | L119: 7.234449226 | M119: -145433.5358 | N119: -174355.6211 | O119: -167209.7963 | P119: 0.2099161068 | Q119: 0.1814121802 | R119: 0.1877096829 | S119: 0.8466335395 | T119: 0.5904672383 | U119: 0.6911376172
A120: 入院 | B120: 女性 | C120: 狭心症 | D120: 11967 | E120: 13 | F120: 1000980 | G120: 864111.2384 | H120: 825208.5521 | I120: 896426.8069 | J120: 13.69863454 | K120: 16.77289155 | L120: 15.45505617 | M120: 136868.7616 | N120: 175771.4479 | O120: 104553.1931 | P120: 1.158392526 | Q120: 1.213002456 | R120: 1.116633274 | S120: 0.9489996952 | T120: 0.7750601593 | U120: 0.8411486738
A121: 入院 | B121: 女性 | C121: 心筋梗塞 | D121: 11967 | E121: 2 | F121: 26073 | G121: 239099.2589 | H121: 238069.639 | I121: 208291.2624 | J121: 2.007283517 | K121: 2.41534094 | L121: 1.925067778 | M121: -213026.2589 | N121: -211996.639 | O121: -182218.2624 | P121: 0.1090467621 | Q121: 0.109518375 | R121: 0.125175678 | S121: 0.9963714556 | T121: 0.8280404504 | U121: 1.038924459
A122: 入院 | B122: 女性 | C122: 不整脈 | D122: 11967 | E122: 5 | F122: 180218 | G122: 741541.3029 | H122: 723240.4298 | I122: 811777.2478 | J122: 7.495426737 | K122: 10.11763873 | L122: 9.122150988 | M122: -561323.3029 | N122: -543022.4298 | O122: -631559.2478 | P122: 0.2430316414 | Q122: 0.2491813131 | R122: 0.2220042512 | S122: 0.6670734269 | T122: 0.4941864536 | U122: 0.5481163387
A123: 入院 | B123: 女性 | C123: 心臓弁膜症 | D123: 11967 | E123: 9 | F123: 1626595 | G123: 415295.4994 | H123: 388089.2536 | I123: 403949.705 | J123: 3.654714563 | K123: 4.726984728 | L123: 4.223909252 | M123: 1211299.501 | N123: 1238505.746 | O123: 1222645.295 | P123: 3.916717138 | Q123: 4.19129101 | R123: 4.026726545 | S123: 2.462572616 | T123: 1.903962149 | U123: 2.130727595
A124: 入院 | B124: 女性 | C124: 心房・心室中隔欠損症 | D124: 11967 | E124: 0 | F124: 0 | G124: 0 | H124: 95.81732082 | I124: 69.72653695 | J124: 0 | K124: 0.006100682594 | L124: 0.002458379778 | M124: 0 | N124: -95.81732082 | O124: -69.72653695 | Q124: 0 | R124: 0 | T124: 0 | U124: 0
A125: 入院 | B125: 女性 | C125: 大動脈瘤 | D125: 11967 | E125: 3 | F125: 583542 | G125: 299533.3199 | H125: 288330.0436 | I125: 281428.9651 | J125: 1.190819901 | K125: 1.385557447 | L125: 1.20028237 | M125: 284008.6801 | N125: 295211.9564 | O125: 302113.0349 | P125: 1.948170575 | Q125: 2.023868178 | R125: 2.073496592 | S125: 2.519272644 | T125: 2.165193517 | U125: 2.499411868
A126: 入院 | B126: 女性 | C126: 食道がん | D126: 11967 | E126: 2 | F126: 370703 | G126: 117166.8566 | H126: 103307.227 | I126: 131542.1857 | J126: 1.506135627 | K126: 1.516801249 | L126: 1.720979727 | M126: 253536.1434 | N126: 267395.773 | O126: 239160.8143 | P126: 3.163889608 | Q126: 3.588354958 | R126: 2.818130154 | S126: 1.327901661 | T126: 1.318564315 | U126: 1.162128739
A127: 入院 | B127: 女性 | C127: 食道静脈瘤 | D127: 11967 | E127: 0 | F127: 0 | G127: 37481.05689 | H127: 42069.56662 | I127: 41122.48554 | J127: 0.602354243 | K127: 0.7005821234 | L127: 0.6227285864 | M127: -37481.05689 | N127: -42069.56662 | O127: -41122.48554 | P127: 0 | Q127: 0 | R127: 0 | S127: 0 | T127: 0 | U127: 0
A128: 入院 | B128: 女性 | C128: 逆流性食道炎 | D128: 11967 | E128: 1 | F128: 86640 | G128: 81643.43979 | H128: 116474.0044 | I128: 122076.8866 | J128: 2.582378412 | K128: 4.355106342 | L128: 3.919783817 | M128: 4996.560215 | N128: -29834.00438 | O128: -35436.88663 | P128: 1.061199776 | Q128: 0.7438569702 | R128: 0.709716658 | S128: 0.3872399163 | T128: 0.2296155183 | U128: 0.2551161102
A129: 入院 | B129: 女性 | C129: 胃がん | D129: 11967 | E129: 6 | F129: 735399 | G129: 617320.9047 | H129: 637863.6067 | I129: 652873.1597 | J129: 9.657469682 | K129: 11.1555041 | L129: 9.874110505 | M129: 118078.0953 | N129: 97535.39333 | O129: 82525.84026 | P129: 1.191275064 | Q129: 1.152909481 | R129: 1.126404094 | S129: 0.6212807492 | T129: 0.5378510866 | U129: 0.607649671
A130: 入院 | B130: 女性 | C130: 胃潰瘍 | D130: 11967 | E130: 4 | F130: 213758 | G130: 225445.1933 | H130: 221433.4428 | I130: 209745.6604 | J130: 6.762670481 | K130: 7.849737109 | L130: 6.49298943 | M130: -11687.1933 | N130: -7675.442822 | O130: 4012.339612 | P130: 0.9481594922 | Q130: 0.9653374724 | R130: 1.019129548 | S130: 0.5914823162 | T130: 0.5095712053 | U130: 0.6160490546
A131: 入院 | B131: 女性 | C131: 十二指腸潰瘍 | D131: 11967 | E131: 2 | F131: 108721 | G131: 23931.83581 | H131: 31947.58344 | I131: 28459.1489 | J131: 0.4738378749 | K131: 0.8017708018 | L131: 0.6798723533 | M131: 84789.16419 | N131: 76773.41656 | O131: 80261.8511 | P131: 4.542944422 | Q131: 3.403105596 | R131: 3.820247765 | S131: 4.220852967 | T131: 2.494478466 | U131: 2.941728679
A132: 入院 | B132: 女性 | C132: ヘリコバクターピロリ感染症 | D132: 11967 | E132: 0 | F132: 0 | G132: 905.4904139 | H132: 2750.215453 | I132: 2653.323753 | J132: 0.02923731952 | K132: 0.1737584378 | L132: 0.141808776 | M132: -905.4904139 | N132: -2750.215453 | O132: -2653.323753 | P132: 0 | Q132: 0 | R132: 0 | S132: 0 | T132: 0 | U132: 0
A133: 入院 | B133: 女性 | C133: 大腸がん | D133: 11967 | E133: 11 | F133: 643744 | G133: 1303793.676 | H133: 1323957.27 | I133: 1316889.185 | J133: 18.8399848 | K133: 22.11846579 | L133: 19.12079271 | M133: -660049.6756 | N133: -680213.2704 | O133: -673145.1855 | P133: 0.4937468344 | Q133: 0.4862271724 | R133: 0.4888368795 | S133: 0.5838645899 | T133: 0.4973220161 | U133: 0.5752899563
A134: 入院 | B134: 女性 | C134: 大腸ポリープ | D134: 11967 | E134: 6 | F134: 202389 | G134: 210493.4064 | H134: 203807.8616 | I134: 209463.4075 | J134: 12.61471395 | K134: 14.16392412 | L134: 12.69619281 | M134: -8104.406422 | N134: -1418.861553 | O134: -7074.407482 | P134: 0.9614980509 | Q134: 0.9930382393 | R134: 0.966226046 | S134: 0.475635042 | T134: 0.4236114192 | U134: 0.4725826151
A135: 入院 | B135: 女性 | C135: 虫垂炎 | D135: 11967 | E135: 1 | F135: 58245 | G135: 148585.7771 | H135: 178216.9237 | I135: 172974.0676 | J135: 3.203695622 | K135: 4.656146358 | L135: 3.966771399 | M135: =+F135-G135 -> -90340.77711 | N135: =+F135-H135 -> -119971.9237 | O135: =+F135-I135 -> -114729.0676 | P135: =+F135/G135 -> 0.3919957962 | Q135: =+F135/H135 -> 0.3268208136 | R135: =+F135/I135 -> 0.3367267753 | S135: =+E135/J135 -> 0.3121395158 | T135: =+E135/K135 -> 0.2147698811 | U135: =+E135/L135 -> 0.2520941843
A136: 入院 | B136: 女性 | C136: 腸閉塞 | D136: 11967 | E136: 9 | F136: 490713 | G136: 304365.8558 | H136: 284617.5266 | I136: 293740.8321 | J136: 6.041753205 | K136: 6.854436696 | L136: 6.14378669 | M136: 186347.1442 | N136: 206095.4734 | O136: 196972.1679 | P136: 1.612247204 | Q136: 1.724113781 | R136: 1.670564478 | S136: 1.489633836 | T136: 1.313018181 | U136: 1.464894609
A137: 入院 | B137: 女性 | C137: 潰瘍性腸炎 | D137: 11967 | E137: 2 | F137: 255484 | G137: 76788.06437 | H137: 79344.63001 | I137: 75129.03876 | J137: 1.068792621 | K137: 1.595724008 | L137: 1.352983132 | M137: 178695.9356 | N137: 176139.37 | O137: 180354.9612 | P137: 3.327131659 | Q137: 3.219928053 | R137: 3.40060254 | S137: 1.871270404 | T137: 1.253349571 | U137: 1.478215029
A138: 入院 | B138: 女性 | C138: クローン病 | D138: 11967 | E138: 0 | F138: 0 | G138: 33689.11806 | H138: 49758.12615 | I138: 38747.59571 | J138: 0.4711886308 | K138: 0.8998495052 | L138: 0.6933137322 | M138: -33689.11806 | N138: -49758.12615 | O138: -38747.59571 | P138: 0 | Q138: 0 | R138: 0 | S138: 0 | T138: 0 | U138: 0
A139: 入院 | B139: 女性 | C139: 肝がん | D139: 11967 | E139: 3 | F139: 327190 | G139: 199247.0963 | H139: 255094.3626 | I139: 257925.0921 | J139: 3.259069361 | K139: 4.618142134 | L139: 4.134205834 | M139: 127942.9037 | N139: 72095.63741 | O139: 69264.90793 | P139: 1.642131836 | Q139: 1.282623405 | R139: 1.268546605 | S139: 0.9205081781 | T139: 0.6496118814 | U139: 0.7256532742
A140: 入院 | B140: 女性 | C140: Ｂ型肝炎 | D140: 11967 | E140: 1 | F140: 41284 | G140: 22346.58583 | H140: 45267.22353 | I140: 48726.42368 | J140: 0.5623820919 | K140: 1.674086662 | L140: 1.525400305 | M140: 18937.41417 | N140: -3983.223529 | O140: -7442.423681 | P140: 1.847441051 | Q140: 0.9120064537 | R140: 0.8472610317 | S140: 1.778150504 | T140: 0.5973406412 | U140: 0.6555656221
A141: 入院 | B141: 女性 | C141: Ｃ型肝炎 | D141: 11967 | E141: 2 | F141: 192839 | G141: 57959.27982 | H141: 93763.24744 | I141: 98757.80069 | J141: 1.392277701 | K141: 2.64214448 | L141: 2.460500402 | M141: 134879.7202 | N141: 99075.75256 | O141: 94081.19931 | P141: 3.327146241 | Q141: 2.056658715 | R141: 1.952645752 | S141: 1.436495032 | T141: 0.756960876 | U141: 0.8128427852
A142: 入院 | B142: 女性 | C142: アルコール性肝障害 | D142: 11967 | E142: 0 | F142: 0 | G142: 12999.68461 | H142: 14301.81984 | I142: 15595.75696 | J142: 0.2065764528 | K142: 0.3674611585 | L142: 0.3724944482 | M142: -12999.68461 | N142: -14301.81984 | O142: -15595.75696 | P142: 0 | Q142: 0 | R142: 0 | S142: 0 | T142: 0 | U142: 0
A143: 入院 | B143: 女性 | C143: 肝硬変 | D143: 11967 | E143: 3 | F143: 262137 | G143: 83492.05841 | H143: 91248.06001 | I143: 83890.66045 | J143: 1.80752987 | K143: 2.383964503 | L143: 2.061388915 | M143: 178644.9416 | N143: 170888.94 | O143: 178246.3396 | P143: 3.139663879 | Q143: 2.872795323 | R143: 3.124745932 | S143: 1.65972361 | T143: 1.258407999 | U143: 1.455329452
A144: 入院 | B144: 女性 | C144: 脂肪肝 | D144: 11967 | E144: 0 | F144: 0 | G144: 9432.412049 | H144: 11398.56439 | I144: 13327.83084 | J144: 0.3195462099 | K144: 0.562484593 | L144: 0.5382461569 | M144: -9432.412049 | N144: -11398.56439 | O144: -13327.83084 | P144: 0 | Q144: 0 | R144: 0 | S144: 0 | T144: 0 | U144: 0
A145: 入院 | B145: 女性 | C145: 胆石症 | D145: 11967 | E145: 10 | F145: 704622 | G145: 493121.0882 | H145: 558761.4173 | I145: 523078.5161 | J145: 8.709014571 | K145: 11.33159425 | L145: 9.284123425 | M145: 211500.9118 | N145: 145860.5827 | O145: 181543.4839 | P145: 1.42890259 | Q145: 1.261042689 | R145: 1.347067368 | S145: 1.148235534 | T145: 0.8824883577 | U145: 1.077107611
A146: 入院 | B146: 女性 | C146: 慢性膵炎 | D146: 11967 | E146: 0 | F146: 0 | G146: 19905.66678 | H146: 17729.34402 | I146: 15866.62014 | J146: 0.309158064 | K146: 0.5513243656 | L146: 0.3887288074 | M146: -19905.66678 | N146: -17729.34402 | O146: -15866.62014 | P146: 0 | Q146: 0 | R146: 0 | S146: 0 | T146: 0 | U146: 0
A147: 入院 | B147: 女性 | C147: 膵臓がん | D147: 11967 | E147: 2 | F147: 147137 | G147: 316353.4894 | H147: 357759.7805 | I147: 351959.5951 | J147: 4.651980825 | K147: 6.208172084 | L147: 5.293343159 | M147: -169216.4894 | N147: -210622.7805 | O147: -204822.5951 | P147: 0.4651031359 | Q147: 0.4112731728 | R147: 0.4180508276 | S147: 0.429924386 | T147: 0.3221560184 | U147: 0.3778330518
A148: 入院 | B148: 女性 | C148: 貧血 | D148: 11967 | E148: 9 | F148: 204953 | G148: 154694.2371 | H148: 193640.1188 | I148: 179207.6713 | J148: 6.984662968 | K148: 9.40235333 | L148: 7.361921766 | M148: 50258.76286 | N148: 11312.88122 | O148: 25745.32872 | P148: 1.324890984 | Q148: 1.058422197 | R148: 1.143661979 | S148: 1.288537477 | T148: 0.9572071676 | U148: 1.222506879
A149: 入院 | B149: 女性 | C149: 白血病 | D149: 11967 | E149: 0 | F149: 0 | G149: 212056.6596 | H149: 285218.8079 | I149: 276460.7936 | J149: 1.44343772 | K149: 2.326872454 | L149: 1.971660231 | M149: -212056.6596 | N149: -285218.8079 | O149: -276460.7936 | P149: 0 | Q149: 0 | R149: 0 | S149: 0 | T149: 0 | U149: 0
A150: 入院 | B150: 女性 | C150: 難聴 | D150: 11967 | E150: 0 | F150: 0 | G150: 40457.2036 | H150: 64777.38404 | I150: 55949.19898 | J150: 0.8862683514 | K150: 1.677389843 | L150: 1.422587818 | M150: -40457.2036 | N150: -64777.38404 | O150: -55949.19898 | P150: 0 | Q150: 0 | R150: 0 | S150: 0 | T150: 0 | U150: 0
A151: 入院 | B151: 女性 | C151: 喉頭がん | D151: 11967 | E151: 3 | F151: 831048 | G151: 45582.56339 | H151: 64573.86109 | I151: 52589.60445 | J151: 0.5016801984 | K151: 0.7919329798 | L151: 0.6386632824 | M151: 785465.4366 | N151: 766474.1389 | O151: 778458.3955 | P151: 18.23170832 | Q151: 12.86972756 | R151: 15.80251475 | S151: 5.979905146 | T151: 3.788199351 | U151: 4.697310904
A152: 入院 | B152: 女性 | C152: 骨折 | D152: 11967 | E152: 35 | F152: 2196638 | G152: 2114799.515 | H152: 2360382.162 | I152: 2357984.143 | J152: 30.5426292 | K152: 44.71059254 | L152: 38.67240907 | M152: 81838.48477 | N152: -163744.1618 | O152: -161346.1434 | P152: 1.038697987 | Q152: 0.9306281142 | R152: 0.9315745427 | S152: 1.145939329 | T152: 0.7828122602 | U152: 0.9050380061
A153: 入院 | B153: 女性 | C153: 骨粗しょう症 | D153: 11967 | E153: 8 | F153: 523279 | G153: 393345.8783 | H153: 445334.042 | I153: 482820.2023 | J153: 6.952245232 | K153: 11.06119562 | L153: 10.2434165 | M153: 129933.1217 | N153: 77944.95799 | O153: 40458.79772 | P153: 1.33032791 | Q153: 1.175025825 | R153: 1.08379682 | S153: 1.150707395 | T153: 0.7232491201 | U153: 0.7809894284
A154: 入院 | B154: 女性 | C154: 骨がん | D154: 11967 | E154: 1 | F154: 153918 | G154: 14723.2002 | H154: 9287.938745 | I154: 12866.20519 | J154: 0.2040766044 | K154: 0.1137316263 | L154: 0.1321849229 | M154: 139194.7998 | N154: 144630.0613 | O154: 141051.7948 | P154: 10.45411309 | Q154: 16.57181472 | R154: 11.96296792 | S154: 4.900120731 | T154: 8.792629035 | U154: 7.565159307
A155: 入院 | B155: 女性 | C155: 関節疾患 | D155: 11967 | E155: 29 | F155: 2618180 | G155: 2417426.165 | H155: 2945944.902 | I155: 2820785.02 | J155: 29.35118852 | K155: 45.39752152 | L155: 38.09506568 | M155: 200753.8352 | N155: -327764.9019 | O155: -202605.0201 | P155: 1.083044454 | Q155: 0.888740315 | R155: 0.9281742428 | S155: 0.988034947 | T155: 0.6388013933 | U155: 0.7612534454
A156: 入院 | B156: 女性 | C156: 腎炎・ネフローゼ | D156: 11967 | E156: 1 | F156: 109065 | G156: 43499.26905 | H156: 51985.42726 | I156: 50592.82727 | J156: 0.9635714126 | K156: 1.452194246 | L156: 1.248021627 | M156: 65565.73095 | N156: 57079.57274 | O156: 58472.17273 | P156: 2.50728351 | Q156: 2.097991798 | R156: 2.155740366 | S156: 1.037805799 | T156: 0.6886131129 | U156: 0.801268166
A157: 入院 | B157: 女性 | C157: 慢性腎不全（透析なし） | D157: 11967 | E157: 2 | F157: 195554 | G157: 136881.9827 | H157: 129671.46 | I157: 125897.17 | J157: 2.774593758 | K157: 3.127298542 | L157: 2.732024886 | M157: 58672.01732 | N157: 65882.54004 | O157: 69656.83 | P157: 1.428632141 | Q157: 1.508072787 | R157: 1.553283525 | S157: 0.720826245 | T157: 0.6395296047 | U157: 0.7320577532
A158: 入院 | B158: 女性 | C158: 慢性腎不全（透析あり） | D158: 11967 | E158: 12 | F158: 866852 | G158: 1013306.566 | H158: 1012940.053 | I158: 996533.285 | J158: 13.72395356 | K158: 15.86366366 | L158: 13.55531036 | M158: -146454.5664 | N158: -146088.0534 | O158: -129681.285 | P158: 0.8554686496 | Q158: 0.8557781846 | R158: 0.869867583 | S158: 0.8743836059 | T158: 0.75644569 | U158: 0.8852619147
A159: 入院 | B159: 女性 | C159: 腎結石 | D159: 11967 | E159: 0 | F159: 0 | G159: 49650.48972 | H159: 61272.38587 | I159: 55146.53411 | J159: 0.9455337407 | K159: 1.499915041 | L159: 1.276879045 | M159: -49650.48972 | N159: -61272.38587 | O159: -55146.53411 | P159: 0 | Q159: 0 | R159: 0 | S159: 0 | T159: 0 | U159: 0
A160: 入院 | B160: 女性 | C160: 尿路結石（尿管・膀胱） | D160: 11967 | E160: 0 | F160: 0 | G160: 76445.39123 | H160: 95740.28699 | I160: 87701.6692 | J160: 2.164148231 | K160: 3.080815424 | L160: 2.492916127 | M160: -76445.39123 | N160: -95740.28699 | O160: -87701.6692 | P160: 0 | Q160: 0 | R160: 0 | S160: 0 | T160: 0 | U160: 0
A161: 入院 | B161: 女性 | C161: 腎臓がん | D161: 11967 | E161: 0 | F161: 0 | G161: 84965.71449 | H161: 113756.3851 | I161: 119591.4861 | J161: 1.084212763 | K161: 1.605895476 | L161: 1.461613785 | M161: -84965.71449 | N161: -113756.3851 | O161: -119591.4861 | P161: 0 | Q161: 0 | R161: 0 | S161: 0 | T161: 0 | U161: 0
A162: 入院 | B162: 女性 | C162: 膀胱がん | D162: 11967 | E162: 6 | F162: 377849 | G162: 158974.8992 | H162: 154320.7974 | I162: 151939.009 | J162: 2.93200378 | K162: 3.229479238 | L162: 2.772609991 | M162: 218874.1008 | N162: 223528.2026 | O162: 225909.991 | P162: 2.37678402 | Q162: 2.448464539 | R162: 2.486846548 | S162: 2.046382082 | T162: 1.85788468 | U162: 2.164025961
A163: 入院 | B163: 女性 | C163: 前立腺がん | D163: 11967 | E163: 0 | F163: 0 | G163: 0 | H163: 52.71241939 | I163: 72.25252588 | J163: 0 | K163: 0.002712800133 | L163: 0.002349276995 | M163: 0 | N163: -52.71241939 | O163: -72.25252588 | Q163: 0 | R163: 0 | T163: 0 | U163: 0
A164: 入院 | B164: 女性 | C164: 前立腺肥大 | D164: 11967 | E164: 0 | F164: 0 | G164: 22.40610376 | H164: 55.11036439 | I164: 14.89174411 | J164: 0.006917599186 | K164: 0.00312133917 | L164: 0.001548067374 | M164: -22.40610376 | N164: -55.11036439 | O164: -14.89174411 | P164: 0 | Q164: 0 | R164: 0 | S164: 0 | T164: 0 | U164: 0
A165: 入院 | B165: 女性 | C165: 子宮頚がん | D165: 11967 | E165: 1 | F165: 34622 | G165: 239879.1507 | H165: 262842.6929 | I165: 270843.2421 | J165: 3.483648218 | K165: 4.540156136 | L165: 4.049832981 | M165: -205257.1507 | N165: -228220.6929 | O165: -236221.2421 | P165: 0.1443310096 | Q165: 0.1317213715 | R165: 0.1278304001 | S165: 0.2870553906 | T165: 0.2202567423 | U165: 0.2469237632
A166: 入院 | B166: 女性 | C166: 子宮体がん | D166: 11967 | E166: 2 | F166: 453241 | G166: 321110.77 | H166: 370870.2189 | I166: 357588.4857 | J166: 5.284133303 | K166: 7.023763005 | L166: 5.869321111 | M166: 132130.23 | N166: 82370.78112 | O166: 95652.51426 | P166: 1.411478662 | Q166: 1.222101363 | R166: 1.267493272 | S166: 0.3784915871 | T166: 0.2847476486 | U166: 0.3407549123
A167: 入院 | B167: 女性 | C167: 子宮筋腫 | D167: 11967 | E167: 6 | F167: 682183 | G167: 490345.7497 | H167: 474420.9743 | I167: 481113.31 | J167: 6.9894849 | K167: 7.931410334 | L167: 7.002836473 | M167: 191837.2503 | N167: 207762.0257 | O167: 201069.69 | P167: 1.391228537 | Q167: 1.437927573 | R167: 1.417925852 | S167: 0.8584323575 | T167: 0.7564858893 | U167: 0.8567956746
A168: 入院 | B168: 女性 | C168: 卵巣腫瘍（悪性） | D168: 11967 | E168: 14 | F168: 662401 | G168: 467117.1658 | H168: 500426.0298 | I168: 500860.6109 | J168: 9.161622929 | K168: 10.2085426 | L168: 8.596924567 | M168: 195283.8342 | N168: 161974.9702 | O168: 161540.3891 | P168: 1.418061781 | Q168: 1.323674151 | R168: 1.32252564 | S168: 1.528113535 | T168: 1.371400458 | U168: 1.628489338
A169: 入院 | B169: 女性 | C169: 卵巣腫瘍（良性） | D169: 11967 | E169: 3 | F169: 188213 | G169: 207893.5135 | H169: 174762.7068 | I169: 178790.4365 | J169: 3.387695209 | K169: 3.556940164 | L169: 3.154717598 | M169: -19680.51352 | N169: 13450.29315 | O169: 9422.563509 | P169: 0.9053336817 | Q169: 1.076963177 | R169: 1.05270172 | S169: 0.8855578246 | T169: 0.8434215539 | U169: 0.9509567518
A170: 入院 | B170: 女性 | C170: 乳がん | D170: 11967 | E170: 8 | F170: 628230 | G170: 1034747.768 | H170: 1116404.739 | I170: 1102188.463 | J170: 17.65015576 | K170: 21.64281769 | L170: 18.40733197 | M170: -406517.768 | N170: -488174.7385 | O170: -473958.4633 | P170: 0.6071334671 | Q170: 0.5627260243 | R170: 0.5699841914 | S170: 0.4532537905 | T170: 0.3696376375 | U170: 0.434609427
A171: 入院 | B171: 女性 | C171: 乳腺症 | D171: 11967 | E171: 0 | F171: 0 | G171: 0 | H171: 144.4880753 | I171: 36.62184586 | J171: 0 | K171: 0.002988254369 | L171: 0.001791982828 | M171: 0 | N171: -144.4880753 | O171: -36.62184586 | Q171: 0 | R171: 0 | T171: 0 | U171: 0
A172: 入院 | B172: 女性 | C172: その他 | D172: 11967 | E172: 441 | F172: 21656171 | G172: 19711985.36 | H172: 23879663.88 | I172: 22684819.37 | J172: 425.8950684 | K172: 595.4447761 | L172: 491.3932025 | M172: 1944185.643 | N172: -2223492.882 | O172: -1028648.372 | P172: 1.098629621 | Q172: 0.9068875972 | R172: 0.9546547691 | S172: 1.035466322 | T172: 0.740622838 | U172: 0.8974483119
A173: 入院 | B173: 女性 | C173: 小児科 | D173: 11967 | E173: 32 | F173: 1807800 | G173: 1478192.099 | H173: 1724074.691 | I173: 1640109.523 | J173: 32.62572469 | K173: 48.76440648 | L173: 39.47794165 | M173: 329607.9011 | N173: 83725.30878 | O173: 167690.477 | P173: 1.222980424 | Q173: 1.04856246 | R173: 1.102243463 | S173: 0.9808211251 | T173: 0.656216333 | U173: 0.8105792416
A174: 外来 | B174: 男性 | C174: 脳梗塞 | D174: 12413 | E174: 257 | F174: 797704 | G174: 1158450.981 | H174: 1143297.551 | I174: 1097448.572 | J174: 425.5038213 | K174: 469.0434712 | L174: 393.8782272 | M174: -360746.9813 | N174: -345593.5506 | O174: -299744.5719 | P174: 0.6885953855 | Q174: 0.697722128 | R174: 0.7268714183 | S174: 0.6039898753 | T174: 0.5479236271 | U174: 0.6524859265
A175: 外来 | B175: 男性 | C175: クモ膜下出血 | D175: 12413 | E175: 2 | F175: 6515 | G175: 12439.38055 | H175: 13969.25081 | I175: 14761.51697 | J175: 5.936195895 | K175: 6.766052574 | L175: 6.19036448 | M175: -5924.38055 | N175: -7454.250812 | O175: -8246.516973 | P175: 0.523739906 | Q175: 0.4663814894 | R175: 0.4413503038 | S175: 0.3369161051 | T175: 0.2955933283 | U175: 0.3230827533
A176: 外来 | B176: 男性 | C176: 脳出血 | D176: 12413 | E176: 31 | F176: 170844 | G176: 72981.81106 | H176: 101242.5346 | I176: 98905.46555 | J176: 28.84090113 | K176: 40.50148336 | L176: 34.27572876 | M176: 97862.18894 | N176: 69601.46541 | O176: 71938.53445 | P176: 2.340912037 | Q176: 1.68747257 | R176: 1.727346401 | S176: 1.074862393 | T176: 0.765404065 | U176: 0.9044300769
A177: 外来 | B177: 男性 | C177: 一過性脳虚血発作 | D177: 12413 | E177: 1 | F177: 97 | G177: 18009.65244 | H177: 16366.74461 | I177: 16968.1924 | J177: 9.250863561 | K177: 10.19940304 | L177: 9.282004171 | M177: -17912.65244 | N177: -16269.74461 | O177: -16871.1924 | P177: 0.005386000664 | Q177: 0.005926652019 | R177: 0.005716578273 | S177: 0.1080980163 | T177: 0.09804495386 | U177: 0.1077353534
A178: 外来 | B178: 男性 | C178: パーキンソン病 | D178: 12413 | E178: 36 | F178: 317370 | G178: 493192.7317 | H178: 529648.318 | I178: 505821.5375 | J178: 78.74492566 | K178: 98.19867973 | L178: 82.74424697 | M178: -175822.7317 | N178: -212278.318 | O178: -188451.5375 | P178: 0.6435009675 | Q178: 0.5992089263 | R178: 0.6274347303 | S178: 0.4571723156 | T178: 0.3666037069 | U178: 0.435075565
A179: 外来 | B179: 男性 | C179: 脳腫瘍 | D179: 12413 | E179: 1 | F179: 9079 | G179: 121828.1466 | H179: 140449.2004 | I179: 135742.9963 | J179: 4.073635671 | K179: 4.939736818 | L179: 4.389297358 | M179: -112749.1466 | N179: -131370.2004 | O179: -126663.9963 | P179: 0.07452300848 | Q179: 0.06464258946 | R179: 0.06688374536 | S179: 0.2454809612 | T179: 0.2024399349 | U179: 0.2278268976
A180: 外来 | B180: 男性 | C180: うつ病 | D180: 12413 | E180: 1153 | F180: 2858366 | G180: 2231239.568 | H180: 2656586.566 | I180: 2439290.259 | J180: 1020.406982 | K180: 1297.105036 | L180: 1055.723128 | M180: 627126.4315 | N180: 201779.4339 | O180: 419075.7405 | P180: 1.281066381 | Q180: 1.075954398 | R180: 1.171802326 | S180: 1.129941308 | T180: 0.8889025699 | U180: 1.092142409
A181: 外来 | B181: 男性 | C181: 認知症 | D181: 12413 | E181: 0 | F181: 0 | G181: 51883.38241 | H181: 24705.00766 | I181: 31005.66829 | J181: 6.77164712 | K181: 6.646296237 | L181: 6.009935084 | M181: -51883.38241 | N181: -24705.00766 | O181: -31005.66829 | P181: 0 | Q181: 0 | R181: 0 | S181: 0 | T181: 0 | U181: 0
A182: 外来 | B182: 男性 | C182: 統合失調症 | D182: 12413 | E182: 782 | F182: 2577106 | G182: 3496505.908 | H182: 4770399.769 | I182: 4008181.716 | J182: 1017.495248 | K182: 1468.22244 | L182: 1082.48086 | M182: -919399.9078 | N182: -2193293.769 | O182: -1431075.716 | P182: 0.7370518077 | Q182: 0.5402285185 | R182: 0.6429613682 | S182: 0.7685539583 | T182: 0.5326168425 | U182: 0.7224146205
A183: 外来 | B183: 男性 | C183: 緑内障 | D183: 12413 | E183: 932 | F183: 1424418 | G183: 1433913.439 | H183: 1245369.721 | I183: 1235560.146 | J183: 869.9441774 | K183: 952.8459203 | L183: 816.5710503 | M183: -9495.438793 | N183: 179048.2793 | O183: 188857.8544 | P183: 0.9933779554 | Q183: 1.143771184 | R183: 1.152852012 | S183: 1.071333109 | T183: 0.9781224647 | U183: 1.141358121
A184: 外来 | B184: 男性 | C184: 白内障 | D184: 12413 | E184: 328 | F184: 542048 | G184: 804155.3833 | H184: 781480.4021 | I184: 764835.2977 | J184: 450.9013572 | K184: 532.7533885 | L184: 440.2045239 | M184: -262107.3833 | N184: -239432.4021 | O184: -222787.2977 | P184: 0.6740587842 | Q184: 0.6936168822 | R184: 0.7087120608 | S184: 0.7274318313 | T184: 0.6156694769 | U184: 0.745108199
A185: 外来 | B185: 男性 | C185: 糖尿病網膜症 | D185: 12413 | E185: 0 | F185: 0 | G185: 0 | H185: 0 | I185: 0 | J185: 0 | K185: 0 | L185: 0 | M185: 0 | N185: 0 | O185: 0
A186: 外来 | B186: 男性 | C186: インフルエンザ | D186: 12413 | E186: 48 | F186: 71351 | G186: 79981.91655 | H186: 102372.7228 | I186: 93031.98174 | J186: 65.96706161 | K186: 94.70626987 | L186: 74.00853743 | M186: -8630.916548 | N186: -31021.72282 | O186: -21680.98174 | P186: 0.8920891506 | Q186: 0.6969727681 | R186: 0.7669513071 | S186: 0.7276358659 | T186: 0.5068302243 | U186: 0.6485738223
A187: 外来 | B187: 男性 | C187: 肺がん | D187: 12413 | E187: 127 | F187: 550459 | G187: 1063968.917 | H187: 1110375.703 | I187: 1081326.677 | J187: 127.3532397 | K187: 143.0505202 | L187: 124.8919556 | M187: -513509.9166 | N187: -559916.7031 | O187: -530867.6769 | P187: 0.5173637983 | Q187: 0.4957412148 | R187: 0.509058929 | S187: 0.9972263002 | T187: 0.8877982395 | U187: 1.016878945
A188: 外来 | B188: 男性 | C188: 肺炎 | D188: 12413 | E188: 32 | F188: 103628 | G188: 119118.5195 | H188: 142916.4654 | I188: 133428.9351 | J188: 45.07408706 | K188: 58.07229768 | L188: 48.3834077 | M188: -15490.51952 | N188: -39288.46541 | O188: -29800.93506 | P188: 0.8699570849 | Q188: 0.7250948986 | R188: 0.7766531296 | S188: 0.709942277 | T188: 0.5510372635 | U188: 0.6613837579
A189: 外来 | B189: 男性 | C189: 肺結核・胸膜炎 | D189: 12413 | E189: 18 | F189: 52888 | G189: 70823.3266 | H189: 71905.55967 | I189: 72155.08764 | J189: 25.49818405 | K189: 26.55863415 | L189: 23.59897 | M189: -17935.3266 | N189: -19017.55967 | O189: -19267.08764 | P189: 0.7467596135 | Q189: 0.7355203164 | R189: 0.7329767273 | S189: 0.705932625 | T189: 0.6777456964 | U189: 0.7627451536
A190: 外来 | B190: 男性 | C190: 気管支喘息 | D190: 12413 | E190: 544 | F190: 1558502 | G190: 1381147.376 | H190: 1444067.169 | I190: 1417093.377 | J190: 618.4074221 | K190: 727.9048022 | L190: 625.5174831 | M190: 177354.6237 | N190: 114434.8311 | O190: 141408.6225 | P190: 1.128411078 | Q190: 1.079244812 | R190: 1.099787794 | S190: 0.8796789633 | T190: 0.7473504755 | U190: 0.8696799286
A191: 外来 | B191: 男性 | C191: 肺気腫 | D191: 12413 | E191: 60 | F191: 388172 | G191: 339235.5701 | H191: 353501.8094 | I191: 330651.9645 | J191: 90.33592286 | K191: 113.6550633 | L191: 93.4406993 | M191: 48936.42992 | N191: 34670.19056 | O191: 57520.03548 | P191: 1.144255008 | Q191: 1.098076416 | R191: 1.173959455 | S191: 0.6641876022 | T191: 0.5279131282 | U191: 0.6421184821
A192: 外来 | B192: 男性 | C192: 慢性閉塞性肺疾患（COPD） | D192: 12413 | E192: 119 | F192: 620405 | G192: 268595.944 | H192: 330938.4771 | I192: 325622.2227 | J192: 67.88801155 | K192: 102.0617037 | L192: 88.33633843 | M192: 351809.056 | N192: 289466.5229 | O192: 294782.7773 | P192: 2.309807776 | Q192: 1.874683794 | R192: 1.905290723 | S192: 1.75288681 | T192: 1.165961332 | U192: 1.347123982
A193: 外来 | B193: 男性 | C193: 間質性肺炎 | D193: 12413 | E193: 15 | F193: 84641 | G193: 138288.5908 | H193: 143510.9976 | I193: 143806.3303 | J193: 25.31039533 | K193: 28.25667608 | L193: 24.35232991 | M193: -53647.59081 | N193: -58869.99761 | O193: -59165.3303 | P193: 0.6120606154 | Q193: 0.5897875522 | R193: 0.5885763152 | S193: 0.5926418693 | T193: 0.5308480006 | U193: 0.6159574898
A194: 外来 | B194: 男性 | C194: 気胸 | D194: 12413 | E194: 3 | F194: 7831 | G194: 10402.92994 | H194: 11197.71511 | I194: 11614.75907 | J194: 7.67071014 | K194: 8.756121993 | L194: 7.952071969 | M194: -2571.929941 | N194: -3366.71511 | O194: -3783.759074 | P194: 0.7527686954 | Q194: 0.6993390994 | R194: 0.6742283633 | S194: 0.391098079 | T194: 0.3426174284 | U194: 0.3772601671
A195: 外来 | B195: 男性 | C195: 睡眠時無呼吸症候群 | D195: 12413 | E195: 337 | F195: 589079 | G195: 611983.6209 | H195: 634385.4732 | I195: 657074.8671 | J195: 274.8620932 | K195: 305.8731718 | L195: 279.5515853 | M195: -22904.62086 | N195: -45306.47325 | O195: -67995.86709 | P195: 0.9625731473 | Q195: 0.9285821079 | R195: 0.8965173217 | S195: 1.226069394 | T195: 1.101763839 | U195: 1.205502017
A196: 外来 | B196: 男性 | C196: 非定型（非結核性）抗酸菌症 | D196: 12413 | E196: 11 | F196: 21607 | G196: 17265.28915 | H196: 17088.43764 | I196: 16317.46889 | J196: 7.364328263 | K196: 7.663393787 | L196: 6.330162897 | M196: 4341.710854 | N196: 4518.562362 | O196: 5289.531105 | P196: 1.251470498 | Q196: 1.264422205 | R196: 1.324163701 | S196: 1.493686811 | T196: 1.435395375 | U196: 1.737711996
A197: 外来 | B197: 男性 | C197: 脂質異常症 | D197: 12413 | E197: 2088 | F197: 3571692 | G197: 3070287.031 | H197: 3200983.862 | I197: 3192111.048 | J197: 1794.799697 | K197: 2232.16136 | L197: 1890.786183 | M197: 501404.9694 | N197: 370708.1384 | O197: 379580.9518 | P197: 1.163308826 | Q197: 1.115810686 | R197: 1.118912201 | S197: 1.163361017 | T197: 0.9354162459 | U197: 1.104302548
A198: 外来 | B198: 男性 | C198: 糖尿病 | D198: 12413 | E198: 3736 | F198: 11131567 | G198: 10139638.28 | H198: 10646904.09 | I198: 10216302.59 | J198: 3562.695728 | K198: 4285.779445 | L198: 3557.569089 | M198: 991928.7164 | N198: 484662.9132 | O198: 915264.4094 | P198: 1.097826835 | Q198: 1.045521488 | R198: 1.089588616 | S198: 1.048644141 | T198: 0.8717200798 | U198: 1.050155291
A199: 外来 | B199: 男性 | C199: 痛風・高尿酸血症 | D199: 12413 | E199: 280 | F199: 274349 | G199: 242030.1128 | H199: 275467.6477 | I199: 268075.3957 | J199: 275.407462 | K199: 361.917034 | L199: 300.2766364 | M199: =+F199-G199 -> 32318.88715 | N199: =+F199-H199 -> -1118.647665 | O199: =+F199-I199 -> 6273.604312 | P199: =+F199/G199 -> 1.133532505 | Q199: =+F199/H199 -> 0.995939096 | R199: =+F199/I199 -> 1.023402388 | S199: =+E199/J199 -> 1.01667543 | T199: =+E199/K199 -> 0.7736579761 | U199: =+E199/L199 -> 0.9324734796
A200: 外来 | B200: 男性 | C200: 甲状腺機能低下症 | D200: 12413 | E200: 24 | F200: 86249 | G200: 101475.78 | H200: 120276.7203 | I200: 122594.068 | J200: 44.20897758 | K200: 63.54025769 | L200: 54.98210356 | M200: -15226.77998 | N200: -34027.72027 | O200: -36345.06804 | P200: 0.8499466574 | Q200: 0.71708806 | R200: 0.7035332245 | S200: 0.5428761603 | T200: 0.3777132935 | U200: 0.4365056708
... 142 more rows
